{"text_format":"1","workbook":"xlsx","n_sheets":4,"sheets":["بيانات الموظفين","جدول الإجازات","الإعدادات","الإحصائية"],"not_rendered":{"charts":0,"images":0,"macros":1,"external_links":0,"defined_names":0,"comments":0,"pivot_tables":0},"unopened":[],"bounds":{"document_bytes":16777216,"sheet_cells":100000,"rows_first":2000,"rows_last":500,"rows_between":2000,"halvings":0,"cell_chars":16384,"cell_head_chars":4096},"cells_cut":0,"cells_raw":0,"read":"whole","date_system":"1900"}

{"sheet":"بيانات الموظفين","index":0,"n_rows":117,"n_cols":8,"rows_kept":117,"cut":false,"hidden":false,"merged":[[1,1,1,7]]}
[]
[null,"القائمة الرئيسية"]
[null,"كود الموظف","اسم الموظف","المسمى الوظيفي","الرقم الوظيفي","تاريخ التعيين","عدد أيام الإجازة خلال السنة","عدد أيام الإجازات المتبقي"]
[null,{"$f":"ROW()-3","v":1},"محمد1","مدرس1",440,"2005-04-09",7,{"$f":"VLOOKUP(Table1[[#This Row],[كود الموظف]],Table3[],18,FALSE)","v":7}]
[null,2,"محمد2","مدرس2",5062,"30/03/1993",7,{"$f":"VLOOKUP(Table1[[#This Row],[كود الموظف]],Table3[],18,FALSE)","v":7}]
[null,3,"محمد3","مدرس3",5290,"16/02/2003",7,{"$f":"VLOOKUP(Table1[[#This Row],[كود الموظف]],Table3[],18,FALSE)","v":7}]
[null,4,"محمد4","مدرس4",11271,"2001-01-09",7,{"$f":"VLOOKUP(Table1[[#This Row],[كود الموظف]],Table3[],18,FALSE)","v":7}]
[null,5,"محمد5","مدرس5",11713,"13/02/1999",7,{"$f":"VLOOKUP(Table1[[#This Row],[كود الموظف]],Table3[],18,FALSE)","v":7}]
[null,6,"محمد6","مدرس6",13265,"17/04/2006",7,{"$f":"VLOOKUP(Table1[[#This Row],[كود الموظف]],Table3[],18,FALSE)","v":7}]
[null,7,"محمد7","مدرس7",13826,"2006-02-04",7,{"$f":"VLOOKUP(Table1[[#This Row],[كود الموظف]],Table3[],18,FALSE)","v":7}]
[null,8,"محمد8","مدرس8",64103,"2005-04-09",7,{"$f":"VLOOKUP(Table1[[#This Row],[كود الموظف]],Table3[],18,FALSE)","v":7}]
[null,9,"محمد9","مدرس9",64602,"2009-01-11",7,{"$f":"VLOOKUP(Table1[[#This Row],[كود الموظف]],Table3[],18,FALSE)","v":7}]
[null,10,"محمد10","مدرس10",64830,"2008-07-09",7,{"$f":"VLOOKUP(Table1[[#This Row],[كود الموظف]],Table3[],18,FALSE)","v":7}]
[null,11,"محمد11","مدرس11",65658,"19/10/2009",7,{"$f":"VLOOKUP(Table1[[#This Row],[كود الموظف]],Table3[],18,FALSE)","v":7}]
[null,12,"محمد12","مدرس12",65662,"2007-04-09",7,{"$f":"VLOOKUP(Table1[[#This Row],[كود الموظف]],Table3[],18,FALSE)","v":7}]
[null,13,"محمد13","مدرس13",65663,"15/10/2008",7,{"$f":"VLOOKUP(Table1[[#This Row],[كود الموظف]],Table3[],18,FALSE)","v":7}]
[null,14,"محمد14","مدرس14",65666,"2006-05-12",7,{"$f":"VLOOKUP(Table1[[#This Row],[كود الموظف]],Table3[],18,FALSE)","v":7}]
[null,15,"محمد15","مدرس15",65668,"2006-10-11",7,{"$f":"VLOOKUP(Table1[[#This Row],[كود الموظف]],Table3[],18,FALSE)","v":7}]
[null,16,"محمد16","مدرس16",65669,"2006-02-10",7,{"$f":"VLOOKUP(Table1[[#This Row],[كود الموظف]],Table3[],18,FALSE)","v":7}]
[null,17,"محمد17","مدرس17",65670,"2008-01-09",7,{"$f":"VLOOKUP(Table1[[#This Row],[كود الموظف]],Table3[],18,FALSE)","v":7}]
[null,18,"محمد18","مدرس18",65671,"2008-01-09",7,{"$f":"VLOOKUP(Table1[[#This Row],[كود الموظف]],Table3[],18,FALSE)","v":7}]
[null,19,"محمد19","مدرس19",65674,"2009-11-10",7,{"$f":"VLOOKUP(Table1[[#This Row],[كود الموظف]],Table3[],18,FALSE)","v":7}]
[null,20,"محمد20","مدرس20",65677,"2008-11-02",7,{"$f":"VLOOKUP(Table1[[#This Row],[كود الموظف]],Table3[],18,FALSE)","v":7}]
[null,21,"محمد21","مدرس21",65678,"19/10/2009",7,{"$f":"VLOOKUP(Table1[[#This Row],[كود الموظف]],Table3[],18,FALSE)","v":7}]
[null,22,"محمد22","مدرس22",65679,"2006-03-12",7,{"$f":"VLOOKUP(Table1[[#This Row],[كود الموظف]],Table3[],18,FALSE)","v":7}]
[null,23,"محمد23","مدرس23",65685,"13/05/2006",7,{"$f":"VLOOKUP(Table1[[#This Row],[كود الموظف]],Table3[],18,FALSE)","v":7}]
[null,24,"محمد24","مدرس24",65688,"13/09/2009",7,{"$f":"VLOOKUP(Table1[[#This Row],[كود الموظف]],Table3[],18,FALSE)","v":7}]
[null,25,"محمد25","مدرس25",65689,"13/08/2006",7,{"$f":"VLOOKUP(Table1[[#This Row],[كود الموظف]],Table3[],18,FALSE)","v":7}]
[null,26,"محمد26","مدرس26",65691,"2007-02-09",7,{"$f":"VLOOKUP(Table1[[#This Row],[كود الموظف]],Table3[],18,FALSE)","v":7}]
[null,27,"محمد27","مدرس27",65694,"13/10/2008",7,{"$f":"VLOOKUP(Table1[[#This Row],[كود الموظف]],Table3[],18,FALSE)","v":7}]
[null,28,"محمد28","مدرس28",65695,"21/10/2008",7,{"$f":"VLOOKUP(Table1[[#This Row],[كود الموظف]],Table3[],18,FALSE)","v":7}]
[null,29,"محمد29","مدرس29",65696,"13/09/2009",7,{"$f":"VLOOKUP(Table1[[#This Row],[كود الموظف]],Table3[],18,FALSE)","v":7}]
[null,30,"محمد30","مدرس30",65697,"16/09/2008",7,{"$f":"VLOOKUP(Table1[[#This Row],[كود الموظف]],Table3[],18,FALSE)","v":7}]
[null,31,"محمد31","مدرس31",66517,"13/09/2009",7,{"$f":"VLOOKUP(Table1[[#This Row],[كود الموظف]],Table3[],18,FALSE)","v":7}]
[null,32,"محمد32","مدرس32",68032,"28/09/2010",7,{"$f":"VLOOKUP(Table1[[#This Row],[كود الموظف]],Table3[],18,FALSE)","v":7}]
[null,{"$f":"ROW()-3","v":33},"محمد33","مدرس33",68036,"2010-10-10",7,{"$f":"VLOOKUP(Table1[[#This Row],[كود الموظف]],Table3[],18,FALSE)","v":7}]
[null,34,"محمد34","مدرس34",68040,"28/09/2010",7,{"$f":"VLOOKUP(Table1[[#This Row],[كود الموظف]],Table3[],18,FALSE)","v":7}]
[null,35,"محمد35","مدرس35",68053,"19/09/2010",7,{"$f":"VLOOKUP(Table1[[#This Row],[كود الموظف]],Table3[],18,FALSE)","v":7}]
[null,36,"محمد36","مدرس36",68055,"28/09/2010",7,{"$f":"VLOOKUP(Table1[[#This Row],[كود الموظف]],Table3[],18,FALSE)","v":7}]
[null,37,"محمد37","مدرس37",70924,"2005-01-10",7,{"$f":"VLOOKUP(Table1[[#This Row],[كود الموظف]],Table3[],18,FALSE)","v":7}]
[null,38,"محمد38","مدرس38",71539,"2009-01-09",7,{"$f":"VLOOKUP(Table1[[#This Row],[كود الموظف]],Table3[],18,FALSE)","v":7}]
[null,39,"محمد39","مدرس39",71548,"2008-01-09",7,{"$f":"VLOOKUP(Table1[[#This Row],[كود الموظف]],Table3[],18,FALSE)","v":7}]
[null,40,"محمد40","مدرس40",71557,"19/12/2009",7,{"$f":"VLOOKUP(Table1[[#This Row],[كود الموظف]],Table3[],18,FALSE)","v":7}]
[null,41,"محمد41","مدرس41",72033,"2009-06-09",7,{"$f":"VLOOKUP(Table1[[#This Row],[كود الموظف]],Table3[],18,FALSE)","v":7}]
[null,42,"محمد42","مدرس42",72214,"13/08/2006",7,{"$f":"VLOOKUP(Table1[[#This Row],[كود الموظف]],Table3[],18,FALSE)","v":7}]
[null,43,"محمد43","مدرس43",72600,"20/10/2010",7,{"$f":"VLOOKUP(Table1[[#This Row],[كود الموظف]],Table3[],18,FALSE)","v":7}]
[null,44,"محمد44","مدرس44",73100,"27/10/2010",7,{"$f":"VLOOKUP(Table1[[#This Row],[كود الموظف]],Table3[],18,FALSE)","v":7}]
[null,45,"محمد45","مدرس45",73972,"19/09/2010",7,{"$f":"VLOOKUP(Table1[[#This Row],[كود الموظف]],Table3[],18,FALSE)","v":7}]
[null,46,"محمد46","مدرس46",77603,"2011-11-09",7,{"$f":"VLOOKUP(Table1[[#This Row],[كود الموظف]],Table3[],18,FALSE)","v":7}]
[null,47,"محمد47","مدرس47",77884,"2011-07-09",7,{"$f":"VLOOKUP(Table1[[#This Row],[كود الموظف]],Table3[],18,FALSE)","v":7}]
[null,48,"محمد48","مدرس48",78848,"2011-02-10",7,{"$f":"VLOOKUP(Table1[[#This Row],[كود الموظف]],Table3[],18,FALSE)","v":7}]
[null,49,"محمد49","مدرس49",81374,"2012-01-04",7,{"$f":"VLOOKUP(Table1[[#This Row],[كود الموظف]],Table3[],18,FALSE)","v":7}]
[null,50,"محمد50","مدرس50",82308,"2012-01-04",7,{"$f":"VLOOKUP(Table1[[#This Row],[كود الموظف]],Table3[],18,FALSE)","v":7}]
[null,51,"محمد51","مدرس51",83818,"2012-05-09",7,{"$f":"VLOOKUP(Table1[[#This Row],[كود الموظف]],Table3[],18,FALSE)","v":7}]
[null,52,"محمد52","مدرس52",83820,"2012-05-09",7,{"$f":"VLOOKUP(Table1[[#This Row],[كود الموظف]],Table3[],18,FALSE)","v":7}]
[null,53,"محمد53","مدرس53",83954,"2012-05-09",7,{"$f":"VLOOKUP(Table1[[#This Row],[كود الموظف]],Table3[],18,FALSE)","v":7}]
[null,54,"محمد54","مدرس54",83983,"20/09/2012",7,{"$f":"VLOOKUP(Table1[[#This Row],[كود الموظف]],Table3[],18,FALSE)","v":7}]
[null,55,"محمد55","مدرس55",84119,"2012-07-10",7,{"$f":"VLOOKUP(Table1[[#This Row],[كود الموظف]],Table3[],18,FALSE)","v":7}]
[null,56,"محمد56","مدرس56",86209,"24/02/2013",7,{"$f":"VLOOKUP(Table1[[#This Row],[كود الموظف]],Table3[],18,FALSE)","v":7}]
[null,57,"محمد57","مدرس57",101317,"2013-01-09",7,{"$f":"VLOOKUP(Table1[[#This Row],[كود الموظف]],Table3[],18,FALSE)","v":7}]
[null,58,"محمد58","مدرس58",101318,"2013-01-09",7,{"$f":"VLOOKUP(Table1[[#This Row],[كود الموظف]],Table3[],18,FALSE)","v":7}]
[null,59,"محمد59","مدرس59",101320,"2013-01-09",7,{"$f":"VLOOKUP(Table1[[#This Row],[كود الموظف]],Table3[],18,FALSE)","v":7}]
[null,60,"محمد60","مدرس60",101625,"2013-01-09",7,{"$f":"VLOOKUP(Table1[[#This Row],[كود الموظف]],Table3[],18,FALSE)","v":7}]
[null,61,"محمد61","مدرس61",104388,"2013-04-11",7,{"$f":"VLOOKUP(Table1[[#This Row],[كود الموظف]],Table3[],18,FALSE)","v":7}]
[null,62,"محمد62","مدرس62",109738,"18/05/2014",7,{"$f":"VLOOKUP(Table1[[#This Row],[كود الموظف]],Table3[],18,FALSE)","v":7}]
[null,63,"محمد63","مدرس63",109756,"2014-07-05",7,{"$f":"VLOOKUP(Table1[[#This Row],[كود الموظف]],Table3[],18,FALSE)","v":7}]
[null,64,"محمد64","مدرس64",110294,"2014-01-09",7,{"$f":"VLOOKUP(Table1[[#This Row],[كود الموظف]],Table3[],18,FALSE)","v":7}]
[null,{"$f":"ROW()-3","v":65},"محمد65","مدرس65",110298,"2014-01-09",7,{"$f":"VLOOKUP(Table1[[#This Row],[كود الموظف]],Table3[],18,FALSE)","v":7}]
[null,66,"محمد66","مدرس66",110301,"2014-01-09",7,{"$f":"VLOOKUP(Table1[[#This Row],[كود الموظف]],Table3[],18,FALSE)","v":7}]
[null,67,"محمد67","مدرس67",110652,"31/08/2014",7,{"$f":"VLOOKUP(Table1[[#This Row],[كود الموظف]],Table3[],18,FALSE)","v":7}]
[null,68,"محمد68","مدرس68",110796,"28/09/2014",7,{"$f":"VLOOKUP(Table1[[#This Row],[كود الموظف]],Table3[],18,FALSE)","v":7}]
[null,69,"محمد69","مدرس69",111139,"2014-04-09",7,{"$f":"VLOOKUP(Table1[[#This Row],[كود الموظف]],Table3[],18,FALSE)","v":7}]
[null,70,"محمد70","مدرس70",111596,"26/10/2014",7,{"$f":"VLOOKUP(Table1[[#This Row],[كود الموظف]],Table3[],18,FALSE)","v":7}]
[null,71,"محمد71","مدرس71",111603,"25/09/2014",7,{"$f":"VLOOKUP(Table1[[#This Row],[كود الموظف]],Table3[],18,FALSE)","v":7}]
[null,72,"محمد72","مدرس72",111615,"31/08/2014",7,{"$f":"VLOOKUP(Table1[[#This Row],[كود الموظف]],Table3[],18,FALSE)","v":7}]
[null,73,"محمد73","مدرس73",113264,"2015-09-02",7,{"$f":"VLOOKUP(Table1[[#This Row],[كود الموظف]],Table3[],18,FALSE)","v":7}]
[null,74,"محمد74","مدرس74",115711,"2015-05-03",7,{"$f":"VLOOKUP(Table1[[#This Row],[كود الموظف]],Table3[],18,FALSE)","v":7}]
[null,75,"محمد75","مدرس75",119864,"23/08/2015",7,{"$f":"VLOOKUP(Table1[[#This Row],[كود الموظف]],Table3[],18,FALSE)","v":7}]
[null,76,"محمد76","مدرس76",119941,"30/08/2015",7,{"$f":"VLOOKUP(Table1[[#This Row],[كود الموظف]],Table3[],18,FALSE)","v":7}]
[null,77,"محمد77","مدرس77",120086,"23/08/2015",7,{"$f":"VLOOKUP(Table1[[#This Row],[كود الموظف]],Table3[],18,FALSE)","v":7}]
[null,78,"محمد78","مدرس78",120091,"2015-05-09",7,{"$f":"VLOOKUP(Table1[[#This Row],[كود الموظف]],Table3[],18,FALSE)","v":7}]
[null,79,"محمد79","مدرس79",120277,"2015-06-09",7,{"$f":"VLOOKUP(Table1[[#This Row],[كود الموظف]],Table3[],18,FALSE)","v":7}]
[null,80,"محمد80","مدرس80",120278,"2015-06-09",7,{"$f":"VLOOKUP(Table1[[#This Row],[كود الموظف]],Table3[],18,FALSE)","v":7}]
[null,81,"محمد81","مدرس81",120279,"2015-08-11",7,{"$f":"VLOOKUP(Table1[[#This Row],[كود الموظف]],Table3[],18,FALSE)","v":7}]
[null,82,"محمد82","مدرس82",120784,"14/09/2015",7,{"$f":"VLOOKUP(Table1[[#This Row],[كود الموظف]],Table3[],18,FALSE)","v":7}]
[null,83,"محمد83","مدرس83",121308,"30/09/2015",7,{"$f":"VLOOKUP(Table1[[#This Row],[كود الموظف]],Table3[],18,FALSE)","v":7}]
[null,84,"محمد84","مدرس84",122519,"2015-01-09",7,{"$f":"VLOOKUP(Table1[[#This Row],[كود الموظف]],Table3[],18,FALSE)","v":7}]
[null,85,"محمد85","مدرس85",122752,"2015-08-11",7,{"$f":"VLOOKUP(Table1[[#This Row],[كود الموظف]],Table3[],18,FALSE)","v":7}]
[null,86,"محمد86","مدرس86",124323,"2016-07-02",7,{"$f":"VLOOKUP(Table1[[#This Row],[كود الموظف]],Table3[],18,FALSE)","v":7}]
[null,87,"محمد87","مدرس87",132193,"27/10/2016",7,{"$f":"VLOOKUP(Table1[[#This Row],[كود الموظف]],Table3[],18,FALSE)","v":7}]
[null,88,"محمد88","مدرس88",132214,"27/10/2016",7,{"$f":"VLOOKUP(Table1[[#This Row],[كود الموظف]],Table3[],18,FALSE)","v":7}]
[null,89,"محمد89","مدرس89",132519,"2016-06-11",7,{"$f":"VLOOKUP(Table1[[#This Row],[كود الموظف]],Table3[],18,FALSE)","v":7}]
[null,90,"محمد90","مدرس90",139941,"27/09/2017",7,{"$f":"VLOOKUP(Table1[[#This Row],[كود الموظف]],Table3[],18,FALSE)","v":7}]
[null,91,"محمد91","مدرس91",140885,"23/11/2017",7,{"$f":"VLOOKUP(Table1[[#This Row],[كود الموظف]],Table3[],18,FALSE)","v":7}]
[null,92,"محمد92","مدرس92",141899,"2017-06-12",7,{"$f":"VLOOKUP(Table1[[#This Row],[كود الموظف]],Table3[],18,FALSE)","v":7}]
[null,93,"محمد93","مدرس93",142005,"2017-05-12",7,{"$f":"VLOOKUP(Table1[[#This Row],[كود الموظف]],Table3[],18,FALSE)","v":7}]
[null,94,"محمد94","مدرس94",142207,"27/12/2017",7,{"$f":"VLOOKUP(Table1[[#This Row],[كود الموظف]],Table3[],18,FALSE)","v":7}]
[null,95,"محمد95","مدرس95",145839,"24/12/2017",7,{"$f":"VLOOKUP(Table1[[#This Row],[كود الموظف]],Table3[],18,FALSE)","v":7}]
[null,96,"محمد96","مدرس96",146628,"29/07/2018",7,{"$f":"VLOOKUP(Table1[[#This Row],[كود الموظف]],Table3[],18,FALSE)","v":7}]
[null,{"$f":"ROW()-3","v":97},"محمد97","مدرس97",146863,"29/07/2018",7,{"$f":"VLOOKUP(Table1[[#This Row],[كود الموظف]],Table3[],18,FALSE)","v":7}]
[null,98,"محمد98","مدرس98",148002,"2018-06-09",7,{"$f":"VLOOKUP(Table1[[#This Row],[كود الموظف]],Table3[],18,FALSE)","v":7}]
[null,99,"محمد99","مدرس99",148077,"15/08/2018",7,{"$f":"VLOOKUP(Table1[[#This Row],[كود الموظف]],Table3[],18,FALSE)","v":7}]
[null,100,"محمد100","مدرس100",148628,"16/10/2018",7,{"$f":"VLOOKUP(Table1[[#This Row],[كود الموظف]],Table3[],18,FALSE)","v":7}]
[null,101,"محمد101","مدرس101",148686,"2018-04-09",7,{"$f":"VLOOKUP(Table1[[#This Row],[كود الموظف]],Table3[],18,FALSE)","v":7}]
[null,102,"محمد102","مدرس102",150099,"23/10/2018",7,{"$f":"VLOOKUP(Table1[[#This Row],[كود الموظف]],Table3[],18,FALSE)","v":7}]
[null,103,"محمد103","مدرس103",154789,"28/08/2019",7,{"$f":"VLOOKUP(Table1[[#This Row],[كود الموظف]],Table3[],18,FALSE)","v":7}]
[null,104,"محمد104","مدرس104",155043,"2019-09-07",7,{"$f":"VLOOKUP(Table1[[#This Row],[كود الموظف]],Table3[],18,FALSE)","v":7}]
[null,105,"محمد105","مدرس105",155233,"21/08/2019",7,{"$f":"VLOOKUP(Table1[[#This Row],[كود الموظف]],Table3[],18,FALSE)","v":7}]
[null,106,"محمد106","مدرس106",155993,"29/07/2019",7,{"$f":"VLOOKUP(Table1[[#This Row],[كود الموظف]],Table3[],18,FALSE)","v":7}]
[null,107,"محمد107","مدرس107",157113,"18/09/2019",7,{"$f":"VLOOKUP(Table1[[#This Row],[كود الموظف]],Table3[],18,FALSE)","v":7}]
[null,108,"محمد108","مدرس108",158886,"2020-05-01",7,{"$f":"VLOOKUP(Table1[[#This Row],[كود الموظف]],Table3[],18,FALSE)","v":7}]
[null,109,"محمد109","مدرس109",160200,"2020-08-03",7,{"$f":"VLOOKUP(Table1[[#This Row],[كود الموظف]],Table3[],18,FALSE)","v":7}]
[null,110,"محمد110","مدرس110",160207,"2020-08-03",7,{"$f":"VLOOKUP(Table1[[#This Row],[كود الموظف]],Table3[],18,FALSE)","v":7}]
[null,111,"محمد111","مدرس111",160266,"2020-08-03",7,{"$f":"VLOOKUP(Table1[[#This Row],[كود الموظف]],Table3[],18,FALSE)","v":7}]
[null,112,"محمد112","مدرس112",161156,"19/08/2020",7,{"$f":"VLOOKUP(Table1[[#This Row],[كود الموظف]],Table3[],18,FALSE)","v":7}]
[null,113,"محمد113","مدرس113",165208,"15/11/2020",7,{"$f":"VLOOKUP(Table1[[#This Row],[كود الموظف]],Table3[],18,FALSE)","v":7}]
[null,114,"محمد114","مدرس114",166425,"17/02/2021",7,{"$f":"VLOOKUP(Table1[[#This Row],[كود الموظف]],Table3[],18,FALSE)","v":7}]

{"sheet":"جدول الإجازات","index":1,"n_rows":130,"n_cols":40,"rows_kept":130,"cut":false,"hidden":false,"merged":[[5,1,6,1],[5,2,6,2],[5,3,6,3],[1,1,1,36],[3,6,4,13]]}
[]
[null,"جدول الاجازات"]
[]
[null,null,"الشهر","السنة",null,null,{"$f":"VLOOKUP($C$5,الإعدادات!A1:B12,2,FALSE)","v":"يناير"}]
[null,null,1,2021]
[null,"كود الموظف","اسم الموظف","المسمى الوظيفي",{"$f":"TEXT(E7,\"DDD\")","v":"الجمعة"},{"$f":"TEXT(F7,\"DDD\")","v":"السبت"},"الأحد","الإثنين","الثلاثاء","الأربعاء","الخميس","الجمعة","السبت","الأحد","الإثنين","الثلاثاء","الأربعاء","الخميس","الجمعة","السبت","الأحد","الإثنين","الثلاثاء","الأربعاء","الخميس","الجمعة","السبت","الأحد","الإثنين","الثلاثاء","الأربعاء","الخميس","الجمعة","السبت","الأحد"]
[null,null,null,null,{"$f":"DATE($D$5,$C$5,COLUMN(A:A))","v":"2021-01-01"},{"$f":"DATE($D$5,$C$5,COLUMN(B:B))","v":"2021-01-02"},"2021-01-03","2021-01-04","2021-01-05","2021-01-06","2021-01-07","2021-01-08","2021-01-09","2021-01-10","2021-01-11","2021-01-12","2021-01-13","2021-01-14","2021-01-15","2021-01-16","2021-01-17","2021-01-18","2021-01-19","2021-01-20","2021-01-21","2021-01-22","2021-01-23","2021-01-24","2021-01-25","2021-01-26","2021-01-27","2021-01-28","2021-01-29","2021-01-30","2021-01-31","المجموع","الرصيد المتبقي"]
[null,"Column1","Column2","Column3","Column6","Column7","Column8","Column9","Column10","Column11","Column12","Column13","Column14","Column15","Column16","Column17","Column18","Column19","Column20","Column21","Column22","Column23","Column24","Column25","Column26","Column27","Column28","Column29","Column30","Column31","Column32","Column33","Column34","Column35","Column36","Column37","Column38"]
[null,{"$f":"ROW()-8","v":1},{"$f":"IFERROR(VLOOKUP(Table2[[#This Row],[Column1]],'بيانات الموظفين'!$B$4:$C$117,2,FALSE),\"\")","v":"محمد1"},{"$f":"IFERROR(VLOOKUP(Table2[[#This Row],[Column1]],'بيانات الموظفين'!$B$4:$D$117,3,FALSE),\"\")","v":"مدرس1"},null,null,null,null,null,null,null,null,null,null,null,null,null,null,null,null,null,null,null,null,null,null,null,null,null,null,null,null,null,null,null,{"$f":"COUNTA(E9:AI9)","v":0},{"$f":"VLOOKUP(Table2[[#This Row],[Column1]],Table3[],18,FALSE)","v":7},null,null,{"$f":"Table2[[#This Row],[Column37]]","v":0}]
[null,{"$f":"ROW()-8","v":2},{"$f":"IFERROR(VLOOKUP(Table2[[#This Row],[Column1]],'بيانات الموظفين'!$B$4:$C$117,2,FALSE),\"\")","v":"محمد2"},{"$f":"IFERROR(VLOOKUP(Table2[[#This Row],[Column1]],'بيانات الموظفين'!$B$4:$D$117,3,FALSE),\"\")","v":"مدرس2"},null,null,null,null,null,null,null,null,null,null,null,null,null,null,null,null,null,null,null,null,null,null,null,null,null,null,null,null,null,null,null,{"$f":"COUNTA(E10:AI10)","v":0},{"$f":"VLOOKUP(Table2[[#This Row],[Column1]],Table3[],18,FALSE)","v":7},null,null,{"$f":"Table2[[#This Row],[Column37]]","v":0}]
[null,3,{"$f":"IFERROR(VLOOKUP(Table2[[#This Row],[Column1]],'بيانات الموظفين'!$B$4:$C$117,2,FALSE),\"\")","v":"محمد3"},{"$f":"IFERROR(VLOOKUP(Table2[[#This Row],[Column1]],'بيانات الموظفين'!$B$4:$D$117,3,FALSE),\"\")","v":"مدرس3"},null,null,null,null,null,null,null,null,null,null,null,null,null,null,null,null,null,null,null,null,null,null,null,null,null,null,null,null,null,null,null,0,{"$f":"VLOOKUP(Table2[[#This Row],[Column1]],Table3[],18,FALSE)","v":7},null,null,{"$f":"Table2[[#This Row],[Column37]]","v":0}]
[null,4,{"$f":"IFERROR(VLOOKUP(Table2[[#This Row],[Column1]],'بيانات الموظفين'!$B$4:$C$117,2,FALSE),\"\")","v":"محمد4"},{"$f":"IFERROR(VLOOKUP(Table2[[#This Row],[Column1]],'بيانات الموظفين'!$B$4:$D$117,3,FALSE),\"\")","v":"مدرس4"},null,null,null,null,null,null,null,null,null,null,null,null,null,null,null,null,null,null,null,null,null,null,null,null,null,null,null,null,null,null,null,0,{"$f":"VLOOKUP(Table2[[#This Row],[Column1]],Table3[],18,FALSE)","v":7},null,null,{"$f":"Table2[[#This Row],[Column37]]","v":0}]
[null,5,{"$f":"IFERROR(VLOOKUP(Table2[[#This Row],[Column1]],'بيانات الموظفين'!$B$4:$C$117,2,FALSE),\"\")","v":"محمد5"},{"$f":"IFERROR(VLOOKUP(Table2[[#This Row],[Column1]],'بيانات الموظفين'!$B$4:$D$117,3,FALSE),\"\")","v":"مدرس5"},null,null,null,null,null,null,null,null,null,null,null,null,null,null,null,null,null,null,null,null,null,null,null,null,null,null,null,null,null,null,null,0,{"$f":"VLOOKUP(Table2[[#This Row],[Column1]],Table3[],18,FALSE)","v":7},null,null,{"$f":"Table2[[#This Row],[Column37]]","v":0}]
[null,6,{"$f":"IFERROR(VLOOKUP(Table2[[#This Row],[Column1]],'بيانات الموظفين'!$B$4:$C$117,2,FALSE),\"\")","v":"محمد6"},{"$f":"IFERROR(VLOOKUP(Table2[[#This Row],[Column1]],'بيانات الموظفين'!$B$4:$D$117,3,FALSE),\"\")","v":"مدرس6"},null,null,null,null,null,null,null,null,null,null,null,null,null,null,null,null,null,null,null,null,null,null,null,null,null,null,null,null,null,null,null,0,{"$f":"VLOOKUP(Table2[[#This Row],[Column1]],Table3[],18,FALSE)","v":7},null,null,{"$f":"Table2[[#This Row],[Column37]]","v":0}]
[null,7,{"$f":"IFERROR(VLOOKUP(Table2[[#This Row],[Column1]],'بيانات الموظفين'!$B$4:$C$117,2,FALSE),\"\")","v":"محمد7"},{"$f":"IFERROR(VLOOKUP(Table2[[#This Row],[Column1]],'بيانات الموظفين'!$B$4:$D$117,3,FALSE),\"\")","v":"مدرس7"},null,null,null,null,null,null,null,null,null,null,null,null,null,null,null,null,null,null,null,null,null,null,null,null,null,null,null,null,null,null,null,0,{"$f":"VLOOKUP(Table2[[#This Row],[Column1]],Table3[],18,FALSE)","v":7},null,null,{"$f":"Table2[[#This Row],[Column37]]","v":0}]
[null,8,{"$f":"IFERROR(VLOOKUP(Table2[[#This Row],[Column1]],'بيانات الموظفين'!$B$4:$C$117,2,FALSE),\"\")","v":"محمد8"},{"$f":"IFERROR(VLOOKUP(Table2[[#This Row],[Column1]],'بيانات الموظفين'!$B$4:$D$117,3,FALSE),\"\")","v":"مدرس8"},null,null,null,null,null,null,null,null,null,null,null,null,null,null,null,null,null,null,null,null,null,null,null,null,null,null,null,null,null,null,null,0,{"$f":"VLOOKUP(Table2[[#This Row],[Column1]],Table3[],18,FALSE)","v":7},null,null,{"$f":"Table2[[#This Row],[Column37]]","v":0}]
[null,9,{"$f":"IFERROR(VLOOKUP(Table2[[#This Row],[Column1]],'بيانات الموظفين'!$B$4:$C$117,2,FALSE),\"\")","v":"محمد9"},{"$f":"IFERROR(VLOOKUP(Table2[[#This Row],[Column1]],'بيانات الموظفين'!$B$4:$D$117,3,FALSE),\"\")","v":"مدرس9"},null,null,null,null,null,null,null,null,null,null,null,null,null,null,null,null,null,null,null,null,null,null,null,null,null,null,null,null,null,null,null,0,{"$f":"VLOOKUP(Table2[[#This Row],[Column1]],Table3[],18,FALSE)","v":7},null,null,{"$f":"Table2[[#This Row],[Column37]]","v":0}]
[null,10,{"$f":"IFERROR(VLOOKUP(Table2[[#This Row],[Column1]],'بيانات الموظفين'!$B$4:$C$117,2,FALSE),\"\")","v":"محمد10"},{"$f":"IFERROR(VLOOKUP(Table2[[#This Row],[Column1]],'بيانات الموظفين'!$B$4:$D$117,3,FALSE),\"\")","v":"مدرس10"},null,null,null,null,null,null,null,null,null,null,null,null,null,null,null,null,null,null,null,null,null,null,null,null,null,null,null,null,null,null,null,0,{"$f":"VLOOKUP(Table2[[#This Row],[Column1]],Table3[],18,FALSE)","v":7},null,null,{"$f":"Table2[[#This Row],[Column37]]","v":0}]
[null,11,{"$f":"IFERROR(VLOOKUP(Table2[[#This Row],[Column1]],'بيانات الموظفين'!$B$4:$C$117,2,FALSE),\"\")","v":"محمد11"},{"$f":"IFERROR(VLOOKUP(Table2[[#This Row],[Column1]],'بيانات الموظفين'!$B$4:$D$117,3,FALSE),\"\")","v":"مدرس11"},null,null,null,null,null,null,null,null,null,null,null,null,null,null,null,null,null,null,null,null,null,null,null,null,null,null,null,null,null,null,null,0,{"$f":"VLOOKUP(Table2[[#This Row],[Column1]],Table3[],18,FALSE)","v":7},null,null,{"$f":"Table2[[#This Row],[Column37]]","v":0}]
[null,12,{"$f":"IFERROR(VLOOKUP(Table2[[#This Row],[Column1]],'بيانات الموظفين'!$B$4:$C$117,2,FALSE),\"\")","v":"محمد12"},{"$f":"IFERROR(VLOOKUP(Table2[[#This Row],[Column1]],'بيانات الموظفين'!$B$4:$D$117,3,FALSE),\"\")","v":"مدرس12"},null,null,null,null,null,null,null,null,null,null,null,null,null,null,null,null,null,null,null,null,null,null,null,null,null,null,null,null,null,null,null,0,{"$f":"VLOOKUP(Table2[[#This Row],[Column1]],Table3[],18,FALSE)","v":7},null,null,{"$f":"Table2[[#This Row],[Column37]]","v":0}]
[null,13,{"$f":"IFERROR(VLOOKUP(Table2[[#This Row],[Column1]],'بيانات الموظفين'!$B$4:$C$117,2,FALSE),\"\")","v":"محمد13"},{"$f":"IFERROR(VLOOKUP(Table2[[#This Row],[Column1]],'بيانات الموظفين'!$B$4:$D$117,3,FALSE),\"\")","v":"مدرس13"},null,null,null,null,null,null,null,null,null,null,null,null,null,null,null,null,null,null,null,null,null,null,null,null,null,null,null,null,null,null,null,0,{"$f":"VLOOKUP(Table2[[#This Row],[Column1]],Table3[],18,FALSE)","v":7},null,null,{"$f":"Table2[[#This Row],[Column37]]","v":0}]
[null,14,{"$f":"IFERROR(VLOOKUP(Table2[[#This Row],[Column1]],'بيانات الموظفين'!$B$4:$C$117,2,FALSE),\"\")","v":"محمد14"},{"$f":"IFERROR(VLOOKUP(Table2[[#This Row],[Column1]],'بيانات الموظفين'!$B$4:$D$117,3,FALSE),\"\")","v":"مدرس14"},null,null,null,null,null,null,null,null,null,null,null,null,null,null,null,null,null,null,null,null,null,null,null,null,null,null,null,null,null,null,null,0,{"$f":"VLOOKUP(Table2[[#This Row],[Column1]],Table3[],18,FALSE)","v":7},null,null,{"$f":"Table2[[#This Row],[Column37]]","v":0}]
[null,15,{"$f":"IFERROR(VLOOKUP(Table2[[#This Row],[Column1]],'بيانات الموظفين'!$B$4:$C$117,2,FALSE),\"\")","v":"محمد15"},{"$f":"IFERROR(VLOOKUP(Table2[[#This Row],[Column1]],'بيانات الموظفين'!$B$4:$D$117,3,FALSE),\"\")","v":"مدرس15"},null,null,null,null,null,null,null,null,null,null,null,null,null,null,null,null,null,null,null,null,null,null,null,null,null,null,null,null,null,null,null,0,{"$f":"VLOOKUP(Table2[[#This Row],[Column1]],Table3[],18,FALSE)","v":7},null,null,{"$f":"Table2[[#This Row],[Column37]]","v":0}]
[null,16,{"$f":"IFERROR(VLOOKUP(Table2[[#This Row],[Column1]],'بيانات الموظفين'!$B$4:$C$117,2,FALSE),\"\")","v":"محمد16"},{"$f":"IFERROR(VLOOKUP(Table2[[#This Row],[Column1]],'بيانات الموظفين'!$B$4:$D$117,3,FALSE),\"\")","v":"مدرس16"},null,null,null,null,null,null,null,null,null,null,null,null,null,null,null,null,null,null,null,null,null,null,null,null,null,null,null,null,null,null,null,0,{"$f":"VLOOKUP(Table2[[#This Row],[Column1]],Table3[],18,FALSE)","v":7},null,null,{"$f":"Table2[[#This Row],[Column37]]","v":0}]
[null,17,{"$f":"IFERROR(VLOOKUP(Table2[[#This Row],[Column1]],'بيانات الموظفين'!$B$4:$C$117,2,FALSE),\"\")","v":"محمد17"},{"$f":"IFERROR(VLOOKUP(Table2[[#This Row],[Column1]],'بيانات الموظفين'!$B$4:$D$117,3,FALSE),\"\")","v":"مدرس17"},null,null,null,null,null,null,null,null,null,null,null,null,null,null,null,null,null,null,null,null,null,null,null,null,null,null,null,null,null,null,null,0,{"$f":"VLOOKUP(Table2[[#This Row],[Column1]],Table3[],18,FALSE)","v":7},null,null,{"$f":"Table2[[#This Row],[Column37]]","v":0}]
[null,18,{"$f":"IFERROR(VLOOKUP(Table2[[#This Row],[Column1]],'بيانات الموظفين'!$B$4:$C$117,2,FALSE),\"\")","v":"محمد18"},{"$f":"IFERROR(VLOOKUP(Table2[[#This Row],[Column1]],'بيانات الموظفين'!$B$4:$D$117,3,FALSE),\"\")","v":"مدرس18"},null,null,null,null,null,null,null,null,null,null,null,null,null,null,null,null,null,null,null,null,null,null,null,null,null,null,null,null,null,null,null,0,{"$f":"VLOOKUP(Table2[[#This Row],[Column1]],Table3[],18,FALSE)","v":7},null,null,{"$f":"Table2[[#This Row],[Column37]]","v":0}]
[null,19,{"$f":"IFERROR(VLOOKUP(Table2[[#This Row],[Column1]],'بيانات الموظفين'!$B$4:$C$117,2,FALSE),\"\")","v":"محمد19"},{"$f":"IFERROR(VLOOKUP(Table2[[#This Row],[Column1]],'بيانات الموظفين'!$B$4:$D$117,3,FALSE),\"\")","v":"مدرس19"},null,null,null,null,null,null,null,null,null,null,null,null,null,null,null,null,null,null,null,null,null,null,null,null,null,null,null,null,null,null,null,0,{"$f":"VLOOKUP(Table2[[#This Row],[Column1]],Table3[],18,FALSE)","v":7},null,null,{"$f":"Table2[[#This Row],[Column37]]","v":0}]
[null,20,{"$f":"IFERROR(VLOOKUP(Table2[[#This Row],[Column1]],'بيانات الموظفين'!$B$4:$C$117,2,FALSE),\"\")","v":"محمد20"},{"$f":"IFERROR(VLOOKUP(Table2[[#This Row],[Column1]],'بيانات الموظفين'!$B$4:$D$117,3,FALSE),\"\")","v":"مدرس20"},null,null,null,null,null,null,null,null,null,null,null,null,null,null,null,null,null,null,null,null,null,null,null,null,null,null,null,null,null,null,null,0,{"$f":"VLOOKUP(Table2[[#This Row],[Column1]],Table3[],18,FALSE)","v":7},null,null,{"$f":"Table2[[#This Row],[Column37]]","v":0}]
[null,21,{"$f":"IFERROR(VLOOKUP(Table2[[#This Row],[Column1]],'بيانات الموظفين'!$B$4:$C$117,2,FALSE),\"\")","v":"محمد21"},{"$f":"IFERROR(VLOOKUP(Table2[[#This Row],[Column1]],'بيانات الموظفين'!$B$4:$D$117,3,FALSE),\"\")","v":"مدرس21"},null,null,null,null,null,null,null,null,null,null,null,null,null,null,null,null,null,null,null,null,null,null,null,null,null,null,null,null,null,null,null,0,{"$f":"VLOOKUP(Table2[[#This Row],[Column1]],Table3[],18,FALSE)","v":7},null,null,{"$f":"Table2[[#This Row],[Column37]]","v":0}]
[null,22,{"$f":"IFERROR(VLOOKUP(Table2[[#This Row],[Column1]],'بيانات الموظفين'!$B$4:$C$117,2,FALSE),\"\")","v":"محمد22"},{"$f":"IFERROR(VLOOKUP(Table2[[#This Row],[Column1]],'بيانات الموظفين'!$B$4:$D$117,3,FALSE),\"\")","v":"مدرس22"},null,null,null,null,null,null,null,null,null,null,null,null,null,null,null,null,null,null,null,null,null,null,null,null,null,null,null,null,null,null,null,0,{"$f":"VLOOKUP(Table2[[#This Row],[Column1]],Table3[],18,FALSE)","v":7},null,null,{"$f":"Table2[[#This Row],[Column37]]","v":0}]
[null,23,{"$f":"IFERROR(VLOOKUP(Table2[[#This Row],[Column1]],'بيانات الموظفين'!$B$4:$C$117,2,FALSE),\"\")","v":"محمد23"},{"$f":"IFERROR(VLOOKUP(Table2[[#This Row],[Column1]],'بيانات الموظفين'!$B$4:$D$117,3,FALSE),\"\")","v":"مدرس23"},null,null,null,null,null,null,null,null,null,null,null,null,null,null,null,null,null,null,null,null,null,null,null,null,null,null,null,null,null,null,null,0,{"$f":"VLOOKUP(Table2[[#This Row],[Column1]],Table3[],18,FALSE)","v":7},null,null,{"$f":"Table2[[#This Row],[Column37]]","v":0}]
[null,24,{"$f":"IFERROR(VLOOKUP(Table2[[#This Row],[Column1]],'بيانات الموظفين'!$B$4:$C$117,2,FALSE),\"\")","v":"محمد24"},{"$f":"IFERROR(VLOOKUP(Table2[[#This Row],[Column1]],'بيانات الموظفين'!$B$4:$D$117,3,FALSE),\"\")","v":"مدرس24"},null,null,null,null,null,null,null,null,null,null,null,null,null,null,null,null,null,null,null,null,null,null,null,null,null,null,null,null,null,null,null,0,{"$f":"VLOOKUP(Table2[[#This Row],[Column1]],Table3[],18,FALSE)","v":7},null,null,{"$f":"Table2[[#This Row],[Column37]]","v":0}]
[null,25,{"$f":"IFERROR(VLOOKUP(Table2[[#This Row],[Column1]],'بيانات الموظفين'!$B$4:$C$117,2,FALSE),\"\")","v":"محمد25"},{"$f":"IFERROR(VLOOKUP(Table2[[#This Row],[Column1]],'بيانات الموظفين'!$B$4:$D$117,3,FALSE),\"\")","v":"مدرس25"},null,null,null,null,null,null,null,null,null,null,null,null,null,null,null,null,null,null,null,null,null,null,null,null,null,null,null,null,null,null,null,0,{"$f":"VLOOKUP(Table2[[#This Row],[Column1]],Table3[],18,FALSE)","v":7},null,null,{"$f":"Table2[[#This Row],[Column37]]","v":0}]
[null,26,{"$f":"IFERROR(VLOOKUP(Table2[[#This Row],[Column1]],'بيانات الموظفين'!$B$4:$C$117,2,FALSE),\"\")","v":"محمد26"},{"$f":"IFERROR(VLOOKUP(Table2[[#This Row],[Column1]],'بيانات الموظفين'!$B$4:$D$117,3,FALSE),\"\")","v":"مدرس26"},null,null,null,null,null,null,null,null,null,null,null,null,null,null,null,null,null,null,null,null,null,null,null,null,null,null,null,null,null,null,null,0,{"$f":"VLOOKUP(Table2[[#This Row],[Column1]],Table3[],18,FALSE)","v":7},null,null,{"$f":"Table2[[#This Row],[Column37]]","v":0}]
[null,27,{"$f":"IFERROR(VLOOKUP(Table2[[#This Row],[Column1]],'بيانات الموظفين'!$B$4:$C$117,2,FALSE),\"\")","v":"محمد27"},{"$f":"IFERROR(VLOOKUP(Table2[[#This Row],[Column1]],'بيانات الموظفين'!$B$4:$D$117,3,FALSE),\"\")","v":"مدرس27"},null,null,null,null,null,null,null,null,null,null,null,null,null,null,null,null,null,null,null,null,null,null,null,null,null,null,null,null,null,null,null,0,{"$f":"VLOOKUP(Table2[[#This Row],[Column1]],Table3[],18,FALSE)","v":7},null,null,{"$f":"Table2[[#This Row],[Column37]]","v":0}]
[null,28,{"$f":"IFERROR(VLOOKUP(Table2[[#This Row],[Column1]],'بيانات الموظفين'!$B$4:$C$117,2,FALSE),\"\")","v":"محمد28"},{"$f":"IFERROR(VLOOKUP(Table2[[#This Row],[Column1]],'بيانات الموظفين'!$B$4:$D$117,3,FALSE),\"\")","v":"مدرس28"},null,null,null,null,null,null,null,null,null,null,null,null,null,null,null,null,null,null,null,null,null,null,null,null,null,null,null,null,null,null,null,0,{"$f":"VLOOKUP(Table2[[#This Row],[Column1]],Table3[],18,FALSE)","v":7},null,null,{"$f":"Table2[[#This Row],[Column37]]","v":0}]
[null,29,{"$f":"IFERROR(VLOOKUP(Table2[[#This Row],[Column1]],'بيانات الموظفين'!$B$4:$C$117,2,FALSE),\"\")","v":"محمد29"},{"$f":"IFERROR(VLOOKUP(Table2[[#This Row],[Column1]],'بيانات الموظفين'!$B$4:$D$117,3,FALSE),\"\")","v":"مدرس29"},null,null,null,null,null,null,null,null,null,null,null,null,null,null,null,null,null,null,null,null,null,null,null,null,null,null,null,null,null,null,null,0,{"$f":"VLOOKUP(Table2[[#This Row],[Column1]],Table3[],18,FALSE)","v":7},null,null,{"$f":"Table2[[#This Row],[Column37]]","v":0}]
[null,30,{"$f":"IFERROR(VLOOKUP(Table2[[#This Row],[Column1]],'بيانات الموظفين'!$B$4:$C$117,2,FALSE),\"\")","v":"محمد30"},{"$f":"IFERROR(VLOOKUP(Table2[[#This Row],[Column1]],'بيانات الموظفين'!$B$4:$D$117,3,FALSE),\"\")","v":"مدرس30"},null,null,null,null,null,null,null,null,null,null,null,null,null,null,null,null,null,null,null,null,null,null,null,null,null,null,null,null,null,null,null,0,{"$f":"VLOOKUP(Table2[[#This Row],[Column1]],Table3[],18,FALSE)","v":7},null,null,{"$f":"Table2[[#This Row],[Column37]]","v":0}]
[null,31,{"$f":"IFERROR(VLOOKUP(Table2[[#This Row],[Column1]],'بيانات الموظفين'!$B$4:$C$117,2,FALSE),\"\")","v":"محمد31"},{"$f":"IFERROR(VLOOKUP(Table2[[#This Row],[Column1]],'بيانات الموظفين'!$B$4:$D$117,3,FALSE),\"\")","v":"مدرس31"},null,null,null,null,null,null,null,null,null,null,null,null,null,null,null,null,null,null,null,null,null,null,null,null,null,null,null,null,null,null,null,0,{"$f":"VLOOKUP(Table2[[#This Row],[Column1]],Table3[],18,FALSE)","v":7},null,null,{"$f":"Table2[[#This Row],[Column37]]","v":0}]
[null,32,{"$f":"IFERROR(VLOOKUP(Table2[[#This Row],[Column1]],'بيانات الموظفين'!$B$4:$C$117,2,FALSE),\"\")","v":"محمد32"},{"$f":"IFERROR(VLOOKUP(Table2[[#This Row],[Column1]],'بيانات الموظفين'!$B$4:$D$117,3,FALSE),\"\")","v":"مدرس32"},null,null,null,null,null,null,null,null,null,null,null,null,null,null,null,null,null,null,null,null,null,null,null,null,null,null,null,null,null,null,null,0,{"$f":"VLOOKUP(Table2[[#This Row],[Column1]],Table3[],18,FALSE)","v":7},null,null,{"$f":"Table2[[#This Row],[Column37]]","v":0}]
[null,33,{"$f":"IFERROR(VLOOKUP(Table2[[#This Row],[Column1]],'بيانات الموظفين'!$B$4:$C$117,2,FALSE),\"\")","v":"محمد33"},{"$f":"IFERROR(VLOOKUP(Table2[[#This Row],[Column1]],'بيانات الموظفين'!$B$4:$D$117,3,FALSE),\"\")","v":"مدرس33"},null,null,null,null,null,null,null,null,null,null,null,null,null,null,null,null,null,null,null,null,null,null,null,null,null,null,null,null,null,null,null,0,{"$f":"VLOOKUP(Table2[[#This Row],[Column1]],Table3[],18,FALSE)","v":7},null,null,{"$f":"Table2[[#This Row],[Column37]]","v":0}]
[null,34,{"$f":"IFERROR(VLOOKUP(Table2[[#This Row],[Column1]],'بيانات الموظفين'!$B$4:$C$117,2,FALSE),\"\")","v":"محمد34"},{"$f":"IFERROR(VLOOKUP(Table2[[#This Row],[Column1]],'بيانات الموظفين'!$B$4:$D$117,3,FALSE),\"\")","v":"مدرس34"},null,null,null,null,null,null,null,null,null,null,null,null,null,null,null,null,null,null,null,null,null,null,null,null,null,null,null,null,null,null,null,0,{"$f":"VLOOKUP(Table2[[#This Row],[Column1]],Table3[],18,FALSE)","v":7},null,null,{"$f":"Table2[[#This Row],[Column37]]","v":0}]
[null,35,{"$f":"IFERROR(VLOOKUP(Table2[[#This Row],[Column1]],'بيانات الموظفين'!$B$4:$C$117,2,FALSE),\"\")","v":"محمد35"},{"$f":"IFERROR(VLOOKUP(Table2[[#This Row],[Column1]],'بيانات الموظفين'!$B$4:$D$117,3,FALSE),\"\")","v":"مدرس35"},null,null,null,null,null,null,null,null,null,null,null,null,null,null,null,null,null,null,null,null,null,null,null,null,null,null,null,null,null,null,null,0,{"$f":"VLOOKUP(Table2[[#This Row],[Column1]],Table3[],18,FALSE)","v":7},null,null,{"$f":"Table2[[#This Row],[Column37]]","v":0}]
[null,36,{"$f":"IFERROR(VLOOKUP(Table2[[#This Row],[Column1]],'بيانات الموظفين'!$B$4:$C$117,2,FALSE),\"\")","v":"محمد36"},{"$f":"IFERROR(VLOOKUP(Table2[[#This Row],[Column1]],'بيانات الموظفين'!$B$4:$D$117,3,FALSE),\"\")","v":"مدرس36"},null,null,null,null,null,null,null,null,null,null,null,null,null,null,null,null,null,null,null,null,null,null,null,null,null,null,null,null,null,null,null,0,{"$f":"VLOOKUP(Table2[[#This Row],[Column1]],Table3[],18,FALSE)","v":7},null,null,{"$f":"Table2[[#This Row],[Column37]]","v":0}]
[null,37,{"$f":"IFERROR(VLOOKUP(Table2[[#This Row],[Column1]],'بيانات الموظفين'!$B$4:$C$117,2,FALSE),\"\")","v":"محمد37"},{"$f":"IFERROR(VLOOKUP(Table2[[#This Row],[Column1]],'بيانات الموظفين'!$B$4:$D$117,3,FALSE),\"\")","v":"مدرس37"},null,null,null,null,null,null,null,null,null,null,null,null,null,null,null,null,null,null,null,null,null,null,null,null,null,null,null,null,null,null,null,0,{"$f":"VLOOKUP(Table2[[#This Row],[Column1]],Table3[],18,FALSE)","v":7},null,null,{"$f":"Table2[[#This Row],[Column37]]","v":0}]
[null,38,{"$f":"IFERROR(VLOOKUP(Table2[[#This Row],[Column1]],'بيانات الموظفين'!$B$4:$C$117,2,FALSE),\"\")","v":"محمد38"},{"$f":"IFERROR(VLOOKUP(Table2[[#This Row],[Column1]],'بيانات الموظفين'!$B$4:$D$117,3,FALSE),\"\")","v":"مدرس38"},null,null,null,null,null,null,null,null,null,null,null,null,null,null,null,null,null,null,null,null,null,null,null,null,null,null,null,null,null,null,null,0,{"$f":"VLOOKUP(Table2[[#This Row],[Column1]],Table3[],18,FALSE)","v":7},null,null,{"$f":"Table2[[#This Row],[Column37]]","v":0}]
[null,39,{"$f":"IFERROR(VLOOKUP(Table2[[#This Row],[Column1]],'بيانات الموظفين'!$B$4:$C$117,2,FALSE),\"\")","v":"محمد39"},{"$f":"IFERROR(VLOOKUP(Table2[[#This Row],[Column1]],'بيانات الموظفين'!$B$4:$D$117,3,FALSE),\"\")","v":"مدرس39"},null,null,null,null,null,null,null,null,null,null,null,null,null,null,null,null,null,null,null,null,null,null,null,null,null,null,null,null,null,null,null,0,{"$f":"VLOOKUP(Table2[[#This Row],[Column1]],Table3[],18,FALSE)","v":7},null,null,{"$f":"Table2[[#This Row],[Column37]]","v":0}]
[null,40,{"$f":"IFERROR(VLOOKUP(Table2[[#This Row],[Column1]],'بيانات الموظفين'!$B$4:$C$117,2,FALSE),\"\")","v":"محمد40"},{"$f":"IFERROR(VLOOKUP(Table2[[#This Row],[Column1]],'بيانات الموظفين'!$B$4:$D$117,3,FALSE),\"\")","v":"مدرس40"},null,null,null,null,null,null,null,null,null,null,null,null,null,null,null,null,null,null,null,null,null,null,null,null,null,null,null,null,null,null,null,0,{"$f":"VLOOKUP(Table2[[#This Row],[Column1]],Table3[],18,FALSE)","v":7},null,null,{"$f":"Table2[[#This Row],[Column37]]","v":0}]
[null,41,{"$f":"IFERROR(VLOOKUP(Table2[[#This Row],[Column1]],'بيانات الموظفين'!$B$4:$C$117,2,FALSE),\"\")","v":"محمد41"},{"$f":"IFERROR(VLOOKUP(Table2[[#This Row],[Column1]],'بيانات الموظفين'!$B$4:$D$117,3,FALSE),\"\")","v":"مدرس41"},null,null,null,null,null,null,null,null,null,null,null,null,null,null,null,null,null,null,null,null,null,null,null,null,null,null,null,null,null,null,null,0,{"$f":"VLOOKUP(Table2[[#This Row],[Column1]],Table3[],18,FALSE)","v":7},null,null,{"$f":"Table2[[#This Row],[Column37]]","v":0}]
[null,42,{"$f":"IFERROR(VLOOKUP(Table2[[#This Row],[Column1]],'بيانات الموظفين'!$B$4:$C$117,2,FALSE),\"\")","v":"محمد42"},{"$f":"IFERROR(VLOOKUP(Table2[[#This Row],[Column1]],'بيانات الموظفين'!$B$4:$D$117,3,FALSE),\"\")","v":"مدرس42"},null,null,null,null,null,null,null,null,null,null,null,null,null,null,null,null,null,null,null,null,null,null,null,null,null,null,null,null,null,null,null,0,{"$f":"VLOOKUP(Table2[[#This Row],[Column1]],Table3[],18,FALSE)","v":7},null,null,{"$f":"Table2[[#This Row],[Column37]]","v":0}]
[null,43,{"$f":"IFERROR(VLOOKUP(Table2[[#This Row],[Column1]],'بيانات الموظفين'!$B$4:$C$117,2,FALSE),\"\")","v":"محمد43"},{"$f":"IFERROR(VLOOKUP(Table2[[#This Row],[Column1]],'بيانات الموظفين'!$B$4:$D$117,3,FALSE),\"\")","v":"مدرس43"},null,null,null,null,null,null,null,null,null,null,null,null,null,null,null,null,null,null,null,null,null,null,null,null,null,null,null,null,null,null,null,0,{"$f":"VLOOKUP(Table2[[#This Row],[Column1]],Table3[],18,FALSE)","v":7},null,null,{"$f":"Table2[[#This Row],[Column37]]","v":0}]
[null,44,{"$f":"IFERROR(VLOOKUP(Table2[[#This Row],[Column1]],'بيانات الموظفين'!$B$4:$C$117,2,FALSE),\"\")","v":"محمد44"},{"$f":"IFERROR(VLOOKUP(Table2[[#This Row],[Column1]],'بيانات الموظفين'!$B$4:$D$117,3,FALSE),\"\")","v":"مدرس44"},null,null,null,null,null,null,null,null,null,null,null,null,null,null,null,null,null,null,null,null,null,null,null,null,null,null,null,null,null,null,null,0,{"$f":"VLOOKUP(Table2[[#This Row],[Column1]],Table3[],18,FALSE)","v":7},null,null,{"$f":"Table2[[#This Row],[Column37]]","v":0}]
[null,45,{"$f":"IFERROR(VLOOKUP(Table2[[#This Row],[Column1]],'بيانات الموظفين'!$B$4:$C$117,2,FALSE),\"\")","v":"محمد45"},{"$f":"IFERROR(VLOOKUP(Table2[[#This Row],[Column1]],'بيانات الموظفين'!$B$4:$D$117,3,FALSE),\"\")","v":"مدرس45"},null,null,null,null,null,null,null,null,null,null,null,null,null,null,null,null,null,null,null,null,null,null,null,null,null,null,null,null,null,null,null,0,{"$f":"VLOOKUP(Table2[[#This Row],[Column1]],Table3[],18,FALSE)","v":7},null,null,{"$f":"Table2[[#This Row],[Column37]]","v":0}]
[null,46,{"$f":"IFERROR(VLOOKUP(Table2[[#This Row],[Column1]],'بيانات الموظفين'!$B$4:$C$117,2,FALSE),\"\")","v":"محمد46"},{"$f":"IFERROR(VLOOKUP(Table2[[#This Row],[Column1]],'بيانات الموظفين'!$B$4:$D$117,3,FALSE),\"\")","v":"مدرس46"},null,null,null,null,null,null,null,null,null,null,null,null,null,null,null,null,null,null,null,null,null,null,null,null,null,null,null,null,null,null,null,0,{"$f":"VLOOKUP(Table2[[#This Row],[Column1]],Table3[],18,FALSE)","v":7},null,null,{"$f":"Table2[[#This Row],[Column37]]","v":0}]
[null,47,{"$f":"IFERROR(VLOOKUP(Table2[[#This Row],[Column1]],'بيانات الموظفين'!$B$4:$C$117,2,FALSE),\"\")","v":"محمد47"},{"$f":"IFERROR(VLOOKUP(Table2[[#This Row],[Column1]],'بيانات الموظفين'!$B$4:$D$117,3,FALSE),\"\")","v":"مدرس47"},null,null,null,null,null,null,null,null,null,null,null,null,null,null,null,null,null,null,null,null,null,null,null,null,null,null,null,null,null,null,null,0,{"$f":"VLOOKUP(Table2[[#This Row],[Column1]],Table3[],18,FALSE)","v":7},null,null,{"$f":"Table2[[#This Row],[Column37]]","v":0}]
[null,48,{"$f":"IFERROR(VLOOKUP(Table2[[#This Row],[Column1]],'بيانات الموظفين'!$B$4:$C$117,2,FALSE),\"\")","v":"محمد48"},{"$f":"IFERROR(VLOOKUP(Table2[[#This Row],[Column1]],'بيانات الموظفين'!$B$4:$D$117,3,FALSE),\"\")","v":"مدرس48"},null,null,null,null,null,null,null,null,null,null,null,null,null,null,null,null,null,null,null,null,null,null,null,null,null,null,null,null,null,null,null,0,{"$f":"VLOOKUP(Table2[[#This Row],[Column1]],Table3[],18,FALSE)","v":7},null,null,{"$f":"Table2[[#This Row],[Column37]]","v":0}]
[null,49,{"$f":"IFERROR(VLOOKUP(Table2[[#This Row],[Column1]],'بيانات الموظفين'!$B$4:$C$117,2,FALSE),\"\")","v":"محمد49"},{"$f":"IFERROR(VLOOKUP(Table2[[#This Row],[Column1]],'بيانات الموظفين'!$B$4:$D$117,3,FALSE),\"\")","v":"مدرس49"},null,null,null,null,null,null,null,null,null,null,null,null,null,null,null,null,null,null,null,null,null,null,null,null,null,null,null,null,null,null,null,0,{"$f":"VLOOKUP(Table2[[#This Row],[Column1]],Table3[],18,FALSE)","v":7},null,null,{"$f":"Table2[[#This Row],[Column37]]","v":0}]
[null,50,{"$f":"IFERROR(VLOOKUP(Table2[[#This Row],[Column1]],'بيانات الموظفين'!$B$4:$C$117,2,FALSE),\"\")","v":"محمد50"},{"$f":"IFERROR(VLOOKUP(Table2[[#This Row],[Column1]],'بيانات الموظفين'!$B$4:$D$117,3,FALSE),\"\")","v":"مدرس50"},null,null,null,null,null,null,null,null,null,null,null,null,null,null,null,null,null,null,null,null,null,null,null,null,null,null,null,null,null,null,null,0,{"$f":"VLOOKUP(Table2[[#This Row],[Column1]],Table3[],18,FALSE)","v":7},null,null,{"$f":"Table2[[#This Row],[Column37]]","v":0}]
[null,51,{"$f":"IFERROR(VLOOKUP(Table2[[#This Row],[Column1]],'بيانات الموظفين'!$B$4:$C$117,2,FALSE),\"\")","v":"محمد51"},{"$f":"IFERROR(VLOOKUP(Table2[[#This Row],[Column1]],'بيانات الموظفين'!$B$4:$D$117,3,FALSE),\"\")","v":"مدرس51"},null,null,null,null,null,null,null,null,null,null,null,null,null,null,null,null,null,null,null,null,null,null,null,null,null,null,null,null,null,null,null,0,{"$f":"VLOOKUP(Table2[[#This Row],[Column1]],Table3[],18,FALSE)","v":7},null,null,{"$f":"Table2[[#This Row],[Column37]]","v":0}]
[null,52,{"$f":"IFERROR(VLOOKUP(Table2[[#This Row],[Column1]],'بيانات الموظفين'!$B$4:$C$117,2,FALSE),\"\")","v":"محمد52"},{"$f":"IFERROR(VLOOKUP(Table2[[#This Row],[Column1]],'بيانات الموظفين'!$B$4:$D$117,3,FALSE),\"\")","v":"مدرس52"},null,null,null,null,null,null,null,null,null,null,null,null,null,null,null,null,null,null,null,null,null,null,null,null,null,null,null,null,null,null,null,0,{"$f":"VLOOKUP(Table2[[#This Row],[Column1]],Table3[],18,FALSE)","v":7},null,null,{"$f":"Table2[[#This Row],[Column37]]","v":0}]
[null,53,{"$f":"IFERROR(VLOOKUP(Table2[[#This Row],[Column1]],'بيانات الموظفين'!$B$4:$C$117,2,FALSE),\"\")","v":"محمد53"},{"$f":"IFERROR(VLOOKUP(Table2[[#This Row],[Column1]],'بيانات الموظفين'!$B$4:$D$117,3,FALSE),\"\")","v":"مدرس53"},null,null,null,null,null,null,null,null,null,null,null,null,null,null,null,null,null,null,null,null,null,null,null,null,null,null,null,null,null,null,null,0,{"$f":"VLOOKUP(Table2[[#This Row],[Column1]],Table3[],18,FALSE)","v":7},null,null,{"$f":"Table2[[#This Row],[Column37]]","v":0}]
[null,54,{"$f":"IFERROR(VLOOKUP(Table2[[#This Row],[Column1]],'بيانات الموظفين'!$B$4:$C$117,2,FALSE),\"\")","v":"محمد54"},{"$f":"IFERROR(VLOOKUP(Table2[[#This Row],[Column1]],'بيانات الموظفين'!$B$4:$D$117,3,FALSE),\"\")","v":"مدرس54"},null,null,null,null,null,null,null,null,null,null,null,null,null,null,null,null,null,null,null,null,null,null,null,null,null,null,null,null,null,null,null,0,{"$f":"VLOOKUP(Table2[[#This Row],[Column1]],Table3[],18,FALSE)","v":7},null,null,{"$f":"Table2[[#This Row],[Column37]]","v":0}]
[null,55,{"$f":"IFERROR(VLOOKUP(Table2[[#This Row],[Column1]],'بيانات الموظفين'!$B$4:$C$117,2,FALSE),\"\")","v":"محمد55"},{"$f":"IFERROR(VLOOKUP(Table2[[#This Row],[Column1]],'بيانات الموظفين'!$B$4:$D$117,3,FALSE),\"\")","v":"مدرس55"},null,null,null,null,null,null,null,null,null,null,null,null,null,null,null,null,null,null,null,null,null,null,null,null,null,null,null,null,null,null,null,0,{"$f":"VLOOKUP(Table2[[#This Row],[Column1]],Table3[],18,FALSE)","v":7},null,null,{"$f":"Table2[[#This Row],[Column37]]","v":0}]
[null,56,{"$f":"IFERROR(VLOOKUP(Table2[[#This Row],[Column1]],'بيانات الموظفين'!$B$4:$C$117,2,FALSE),\"\")","v":"محمد56"},{"$f":"IFERROR(VLOOKUP(Table2[[#This Row],[Column1]],'بيانات الموظفين'!$B$4:$D$117,3,FALSE),\"\")","v":"مدرس56"},null,null,null,null,null,null,null,null,null,null,null,null,null,null,null,null,null,null,null,null,null,null,null,null,null,null,null,null,null,null,null,0,{"$f":"VLOOKUP(Table2[[#This Row],[Column1]],Table3[],18,FALSE)","v":7},null,null,{"$f":"Table2[[#This Row],[Column37]]","v":0}]
[null,57,{"$f":"IFERROR(VLOOKUP(Table2[[#This Row],[Column1]],'بيانات الموظفين'!$B$4:$C$117,2,FALSE),\"\")","v":"محمد57"},{"$f":"IFERROR(VLOOKUP(Table2[[#This Row],[Column1]],'بيانات الموظفين'!$B$4:$D$117,3,FALSE),\"\")","v":"مدرس57"},null,null,null,null,null,null,null,null,null,null,null,null,null,null,null,null,null,null,null,null,null,null,null,null,null,null,null,null,null,null,null,0,{"$f":"VLOOKUP(Table2[[#This Row],[Column1]],Table3[],18,FALSE)","v":7},null,null,{"$f":"Table2[[#This Row],[Column37]]","v":0}]
[null,58,{"$f":"IFERROR(VLOOKUP(Table2[[#This Row],[Column1]],'بيانات الموظفين'!$B$4:$C$117,2,FALSE),\"\")","v":"محمد58"},{"$f":"IFERROR(VLOOKUP(Table2[[#This Row],[Column1]],'بيانات الموظفين'!$B$4:$D$117,3,FALSE),\"\")","v":"مدرس58"},null,null,null,null,null,null,null,null,null,null,null,null,null,null,null,null,null,null,null,null,null,null,null,null,null,null,null,null,null,null,null,0,{"$f":"VLOOKUP(Table2[[#This Row],[Column1]],Table3[],18,FALSE)","v":7},null,null,{"$f":"Table2[[#This Row],[Column37]]","v":0}]
[null,59,{"$f":"IFERROR(VLOOKUP(Table2[[#This Row],[Column1]],'بيانات الموظفين'!$B$4:$C$117,2,FALSE),\"\")","v":"محمد59"},{"$f":"IFERROR(VLOOKUP(Table2[[#This Row],[Column1]],'بيانات الموظفين'!$B$4:$D$117,3,FALSE),\"\")","v":"مدرس59"},null,null,null,null,null,null,null,null,null,null,null,null,null,null,null,null,null,null,null,null,null,null,null,null,null,null,null,null,null,null,null,0,{"$f":"VLOOKUP(Table2[[#This Row],[Column1]],Table3[],18,FALSE)","v":7},null,null,{"$f":"Table2[[#This Row],[Column37]]","v":0}]
[null,60,{"$f":"IFERROR(VLOOKUP(Table2[[#This Row],[Column1]],'بيانات الموظفين'!$B$4:$C$117,2,FALSE),\"\")","v":"محمد60"},{"$f":"IFERROR(VLOOKUP(Table2[[#This Row],[Column1]],'بيانات الموظفين'!$B$4:$D$117,3,FALSE),\"\")","v":"مدرس60"},null,null,null,null,null,null,null,null,null,null,null,null,null,null,null,null,null,null,null,null,null,null,null,null,null,null,null,null,null,null,null,0,{"$f":"VLOOKUP(Table2[[#This Row],[Column1]],Table3[],18,FALSE)","v":7},null,null,{"$f":"Table2[[#This Row],[Column37]]","v":0}]
[null,61,{"$f":"IFERROR(VLOOKUP(Table2[[#This Row],[Column1]],'بيانات الموظفين'!$B$4:$C$117,2,FALSE),\"\")","v":"محمد61"},{"$f":"IFERROR(VLOOKUP(Table2[[#This Row],[Column1]],'بيانات الموظفين'!$B$4:$D$117,3,FALSE),\"\")","v":"مدرس61"},null,null,null,null,null,null,null,null,null,null,null,null,null,null,null,null,null,null,null,null,null,null,null,null,null,null,null,null,null,null,null,0,{"$f":"VLOOKUP(Table2[[#This Row],[Column1]],Table3[],18,FALSE)","v":7},null,null,{"$f":"Table2[[#This Row],[Column37]]","v":0}]
[null,62,{"$f":"IFERROR(VLOOKUP(Table2[[#This Row],[Column1]],'بيانات الموظفين'!$B$4:$C$117,2,FALSE),\"\")","v":"محمد62"},{"$f":"IFERROR(VLOOKUP(Table2[[#This Row],[Column1]],'بيانات الموظفين'!$B$4:$D$117,3,FALSE),\"\")","v":"مدرس62"},null,null,null,null,null,null,null,null,null,null,null,null,null,null,null,null,null,null,null,null,null,null,null,null,null,null,null,null,null,null,null,0,{"$f":"VLOOKUP(Table2[[#This Row],[Column1]],Table3[],18,FALSE)","v":7},null,null,{"$f":"Table2[[#This Row],[Column37]]","v":0}]
[null,63,{"$f":"IFERROR(VLOOKUP(Table2[[#This Row],[Column1]],'بيانات الموظفين'!$B$4:$C$117,2,FALSE),\"\")","v":"محمد63"},{"$f":"IFERROR(VLOOKUP(Table2[[#This Row],[Column1]],'بيانات الموظفين'!$B$4:$D$117,3,FALSE),\"\")","v":"مدرس63"},null,null,null,null,null,null,null,null,null,null,null,null,null,null,null,null,null,null,null,null,null,null,null,null,null,null,null,null,null,null,null,0,{"$f":"VLOOKUP(Table2[[#This Row],[Column1]],Table3[],18,FALSE)","v":7},null,null,{"$f":"Table2[[#This Row],[Column37]]","v":0}]
[null,64,{"$f":"IFERROR(VLOOKUP(Table2[[#This Row],[Column1]],'بيانات الموظفين'!$B$4:$C$117,2,FALSE),\"\")","v":"محمد64"},{"$f":"IFERROR(VLOOKUP(Table2[[#This Row],[Column1]],'بيانات الموظفين'!$B$4:$D$117,3,FALSE),\"\")","v":"مدرس64"},null,null,null,null,null,null,null,null,null,null,null,null,null,null,null,null,null,null,null,null,null,null,null,null,null,null,null,null,null,null,null,0,{"$f":"VLOOKUP(Table2[[#This Row],[Column1]],Table3[],18,FALSE)","v":7},null,null,{"$f":"Table2[[#This Row],[Column37]]","v":0}]
[null,65,{"$f":"IFERROR(VLOOKUP(Table2[[#This Row],[Column1]],'بيانات الموظفين'!$B$4:$C$117,2,FALSE),\"\")","v":"محمد65"},{"$f":"IFERROR(VLOOKUP(Table2[[#This Row],[Column1]],'بيانات الموظفين'!$B$4:$D$117,3,FALSE),\"\")","v":"مدرس65"},null,null,null,null,null,null,null,null,null,null,null,null,null,null,null,null,null,null,null,null,null,null,null,null,null,null,null,null,null,null,null,0,{"$f":"VLOOKUP(Table2[[#This Row],[Column1]],Table3[],18,FALSE)","v":7},null,null,{"$f":"Table2[[#This Row],[Column37]]","v":0}]
[null,{"$f":"ROW()-8","v":66},{"$f":"IFERROR(VLOOKUP(Table2[[#This Row],[Column1]],'بيانات الموظفين'!$B$4:$C$117,2,FALSE),\"\")","v":"محمد66"},{"$f":"IFERROR(VLOOKUP(Table2[[#This Row],[Column1]],'بيانات الموظفين'!$B$4:$D$117,3,FALSE),\"\")","v":"مدرس66"},null,null,null,null,null,null,null,null,null,null,null,null,null,null,null,null,null,null,null,null,null,null,null,null,null,null,null,null,null,null,null,{"$f":"COUNTA(E74:AI74)","v":0},{"$f":"VLOOKUP(Table2[[#This Row],[Column1]],Table3[],18,FALSE)","v":7},null,null,{"$f":"Table2[[#This Row],[Column37]]","v":0}]
[null,67,{"$f":"IFERROR(VLOOKUP(Table2[[#This Row],[Column1]],'بيانات الموظفين'!$B$4:$C$117,2,FALSE),\"\")","v":"محمد67"},{"$f":"IFERROR(VLOOKUP(Table2[[#This Row],[Column1]],'بيانات الموظفين'!$B$4:$D$117,3,FALSE),\"\")","v":"مدرس67"},null,null,null,null,null,null,null,null,null,null,null,null,null,null,null,null,null,null,null,null,null,null,null,null,null,null,null,null,null,null,null,0,{"$f":"VLOOKUP(Table2[[#This Row],[Column1]],Table3[],18,FALSE)","v":7},null,null,{"$f":"Table2[[#This Row],[Column37]]","v":0}]
[null,68,{"$f":"IFERROR(VLOOKUP(Table2[[#This Row],[Column1]],'بيانات الموظفين'!$B$4:$C$117,2,FALSE),\"\")","v":"محمد68"},{"$f":"IFERROR(VLOOKUP(Table2[[#This Row],[Column1]],'بيانات الموظفين'!$B$4:$D$117,3,FALSE),\"\")","v":"مدرس68"},null,null,null,null,null,null,null,null,null,null,null,null,null,null,null,null,null,null,null,null,null,null,null,null,null,null,null,null,null,null,null,0,{"$f":"VLOOKUP(Table2[[#This Row],[Column1]],Table3[],18,FALSE)","v":7},null,null,{"$f":"Table2[[#This Row],[Column37]]","v":0}]
[null,69,{"$f":"IFERROR(VLOOKUP(Table2[[#This Row],[Column1]],'بيانات الموظفين'!$B$4:$C$117,2,FALSE),\"\")","v":"محمد69"},{"$f":"IFERROR(VLOOKUP(Table2[[#This Row],[Column1]],'بيانات الموظفين'!$B$4:$D$117,3,FALSE),\"\")","v":"مدرس69"},null,null,null,null,null,null,null,null,null,null,null,null,null,null,null,null,null,null,null,null,null,null,null,null,null,null,null,null,null,null,null,0,{"$f":"VLOOKUP(Table2[[#This Row],[Column1]],Table3[],18,FALSE)","v":7},null,null,{"$f":"Table2[[#This Row],[Column37]]","v":0}]
[null,70,{"$f":"IFERROR(VLOOKUP(Table2[[#This Row],[Column1]],'بيانات الموظفين'!$B$4:$C$117,2,FALSE),\"\")","v":"محمد70"},{"$f":"IFERROR(VLOOKUP(Table2[[#This Row],[Column1]],'بيانات الموظفين'!$B$4:$D$117,3,FALSE),\"\")","v":"مدرس70"},null,null,null,null,null,null,null,null,null,null,null,null,null,null,null,null,null,null,null,null,null,null,null,null,null,null,null,null,null,null,null,0,{"$f":"VLOOKUP(Table2[[#This Row],[Column1]],Table3[],18,FALSE)","v":7},null,null,{"$f":"Table2[[#This Row],[Column37]]","v":0}]
[null,71,{"$f":"IFERROR(VLOOKUP(Table2[[#This Row],[Column1]],'بيانات الموظفين'!$B$4:$C$117,2,FALSE),\"\")","v":"محمد71"},{"$f":"IFERROR(VLOOKUP(Table2[[#This Row],[Column1]],'بيانات الموظفين'!$B$4:$D$117,3,FALSE),\"\")","v":"مدرس71"},null,null,null,null,null,null,null,null,null,null,null,null,null,null,null,null,null,null,null,null,null,null,null,null,null,null,null,null,null,null,null,0,{"$f":"VLOOKUP(Table2[[#This Row],[Column1]],Table3[],18,FALSE)","v":7},null,null,{"$f":"Table2[[#This Row],[Column37]]","v":0}]
[null,72,{"$f":"IFERROR(VLOOKUP(Table2[[#This Row],[Column1]],'بيانات الموظفين'!$B$4:$C$117,2,FALSE),\"\")","v":"محمد72"},{"$f":"IFERROR(VLOOKUP(Table2[[#This Row],[Column1]],'بيانات الموظفين'!$B$4:$D$117,3,FALSE),\"\")","v":"مدرس72"},null,null,null,null,null,null,null,null,null,null,null,null,null,null,null,null,null,null,null,null,null,null,null,null,null,null,null,null,null,null,null,0,{"$f":"VLOOKUP(Table2[[#This Row],[Column1]],Table3[],18,FALSE)","v":7},null,null,{"$f":"Table2[[#This Row],[Column37]]","v":0}]
[null,73,{"$f":"IFERROR(VLOOKUP(Table2[[#This Row],[Column1]],'بيانات الموظفين'!$B$4:$C$117,2,FALSE),\"\")","v":"محمد73"},{"$f":"IFERROR(VLOOKUP(Table2[[#This Row],[Column1]],'بيانات الموظفين'!$B$4:$D$117,3,FALSE),\"\")","v":"مدرس73"},null,null,null,null,null,null,null,null,null,null,null,null,null,null,null,null,null,null,null,null,null,null,null,null,null,null,null,null,null,null,null,0,{"$f":"VLOOKUP(Table2[[#This Row],[Column1]],Table3[],18,FALSE)","v":7},null,null,{"$f":"Table2[[#This Row],[Column37]]","v":0}]
[null,74,{"$f":"IFERROR(VLOOKUP(Table2[[#This Row],[Column1]],'بيانات الموظفين'!$B$4:$C$117,2,FALSE),\"\")","v":"محمد74"},{"$f":"IFERROR(VLOOKUP(Table2[[#This Row],[Column1]],'بيانات الموظفين'!$B$4:$D$117,3,FALSE),\"\")","v":"مدرس74"},null,null,null,null,null,null,null,null,null,null,null,null,null,null,null,null,null,null,null,null,null,null,null,null,null,null,null,null,null,null,null,0,{"$f":"VLOOKUP(Table2[[#This Row],[Column1]],Table3[],18,FALSE)","v":7},null,null,{"$f":"Table2[[#This Row],[Column37]]","v":0}]
[null,75,{"$f":"IFERROR(VLOOKUP(Table2[[#This Row],[Column1]],'بيانات الموظفين'!$B$4:$C$117,2,FALSE),\"\")","v":"محمد75"},{"$f":"IFERROR(VLOOKUP(Table2[[#This Row],[Column1]],'بيانات الموظفين'!$B$4:$D$117,3,FALSE),\"\")","v":"مدرس75"},null,null,null,null,null,null,null,null,null,null,null,null,null,null,null,null,null,null,null,null,null,null,null,null,null,null,null,null,null,null,null,0,{"$f":"VLOOKUP(Table2[[#This Row],[Column1]],Table3[],18,FALSE)","v":7},null,null,{"$f":"Table2[[#This Row],[Column37]]","v":0}]
[null,76,{"$f":"IFERROR(VLOOKUP(Table2[[#This Row],[Column1]],'بيانات الموظفين'!$B$4:$C$117,2,FALSE),\"\")","v":"محمد76"},{"$f":"IFERROR(VLOOKUP(Table2[[#This Row],[Column1]],'بيانات الموظفين'!$B$4:$D$117,3,FALSE),\"\")","v":"مدرس76"},null,null,null,null,null,null,null,null,null,null,null,null,null,null,null,null,null,null,null,null,null,null,null,null,null,null,null,null,null,null,null,0,{"$f":"VLOOKUP(Table2[[#This Row],[Column1]],Table3[],18,FALSE)","v":7},null,null,{"$f":"Table2[[#This Row],[Column37]]","v":0}]
[null,77,{"$f":"IFERROR(VLOOKUP(Table2[[#This Row],[Column1]],'بيانات الموظفين'!$B$4:$C$117,2,FALSE),\"\")","v":"محمد77"},{"$f":"IFERROR(VLOOKUP(Table2[[#This Row],[Column1]],'بيانات الموظفين'!$B$4:$D$117,3,FALSE),\"\")","v":"مدرس77"},null,null,null,null,null,null,null,null,null,null,null,null,null,null,null,null,null,null,null,null,null,null,null,null,null,null,null,null,null,null,null,0,{"$f":"VLOOKUP(Table2[[#This Row],[Column1]],Table3[],18,FALSE)","v":7},null,null,{"$f":"Table2[[#This Row],[Column37]]","v":0}]
[null,78,{"$f":"IFERROR(VLOOKUP(Table2[[#This Row],[Column1]],'بيانات الموظفين'!$B$4:$C$117,2,FALSE),\"\")","v":"محمد78"},{"$f":"IFERROR(VLOOKUP(Table2[[#This Row],[Column1]],'بيانات الموظفين'!$B$4:$D$117,3,FALSE),\"\")","v":"مدرس78"},null,null,null,null,null,null,null,null,null,null,null,null,null,null,null,null,null,null,null,null,null,null,null,null,null,null,null,null,null,null,null,0,{"$f":"VLOOKUP(Table2[[#This Row],[Column1]],Table3[],18,FALSE)","v":7},null,null,{"$f":"Table2[[#This Row],[Column37]]","v":0}]
[null,79,{"$f":"IFERROR(VLOOKUP(Table2[[#This Row],[Column1]],'بيانات الموظفين'!$B$4:$C$117,2,FALSE),\"\")","v":"محمد79"},{"$f":"IFERROR(VLOOKUP(Table2[[#This Row],[Column1]],'بيانات الموظفين'!$B$4:$D$117,3,FALSE),\"\")","v":"مدرس79"},null,null,null,null,null,null,null,null,null,null,null,null,null,null,null,null,null,null,null,null,null,null,null,null,null,null,null,null,null,null,null,0,{"$f":"VLOOKUP(Table2[[#This Row],[Column1]],Table3[],18,FALSE)","v":7},null,null,{"$f":"Table2[[#This Row],[Column37]]","v":0}]
[null,80,{"$f":"IFERROR(VLOOKUP(Table2[[#This Row],[Column1]],'بيانات الموظفين'!$B$4:$C$117,2,FALSE),\"\")","v":"محمد80"},{"$f":"IFERROR(VLOOKUP(Table2[[#This Row],[Column1]],'بيانات الموظفين'!$B$4:$D$117,3,FALSE),\"\")","v":"مدرس80"},null,null,null,null,null,null,null,null,null,null,null,null,null,null,null,null,null,null,null,null,null,null,null,null,null,null,null,null,null,null,null,0,{"$f":"VLOOKUP(Table2[[#This Row],[Column1]],Table3[],18,FALSE)","v":7},null,null,{"$f":"Table2[[#This Row],[Column37]]","v":0}]
[null,81,{"$f":"IFERROR(VLOOKUP(Table2[[#This Row],[Column1]],'بيانات الموظفين'!$B$4:$C$117,2,FALSE),\"\")","v":"محمد81"},{"$f":"IFERROR(VLOOKUP(Table2[[#This Row],[Column1]],'بيانات الموظفين'!$B$4:$D$117,3,FALSE),\"\")","v":"مدرس81"},null,null,null,null,null,null,null,null,null,null,null,null,null,null,null,null,null,null,null,null,null,null,null,null,null,null,null,null,null,null,null,0,{"$f":"VLOOKUP(Table2[[#This Row],[Column1]],Table3[],18,FALSE)","v":7},null,null,{"$f":"Table2[[#This Row],[Column37]]","v":0}]
[null,82,{"$f":"IFERROR(VLOOKUP(Table2[[#This Row],[Column1]],'بيانات الموظفين'!$B$4:$C$117,2,FALSE),\"\")","v":"محمد82"},{"$f":"IFERROR(VLOOKUP(Table2[[#This Row],[Column1]],'بيانات الموظفين'!$B$4:$D$117,3,FALSE),\"\")","v":"مدرس82"},null,null,null,null,null,null,null,null,null,null,null,null,null,null,null,null,null,null,null,null,null,null,null,null,null,null,null,null,null,null,null,0,{"$f":"VLOOKUP(Table2[[#This Row],[Column1]],Table3[],18,FALSE)","v":7},null,null,{"$f":"Table2[[#This Row],[Column37]]","v":0}]
[null,83,{"$f":"IFERROR(VLOOKUP(Table2[[#This Row],[Column1]],'بيانات الموظفين'!$B$4:$C$117,2,FALSE),\"\")","v":"محمد83"},{"$f":"IFERROR(VLOOKUP(Table2[[#This Row],[Column1]],'بيانات الموظفين'!$B$4:$D$117,3,FALSE),\"\")","v":"مدرس83"},null,null,null,null,null,null,null,null,null,null,null,null,null,null,null,null,null,null,null,null,null,null,null,null,null,null,null,null,null,null,null,0,{"$f":"VLOOKUP(Table2[[#This Row],[Column1]],Table3[],18,FALSE)","v":7},null,null,{"$f":"Table2[[#This Row],[Column37]]","v":0}]
[null,84,{"$f":"IFERROR(VLOOKUP(Table2[[#This Row],[Column1]],'بيانات الموظفين'!$B$4:$C$117,2,FALSE),\"\")","v":"محمد84"},{"$f":"IFERROR(VLOOKUP(Table2[[#This Row],[Column1]],'بيانات الموظفين'!$B$4:$D$117,3,FALSE),\"\")","v":"مدرس84"},null,null,null,null,null,null,null,null,null,null,null,null,null,null,null,null,null,null,null,null,null,null,null,null,null,null,null,null,null,null,null,0,{"$f":"VLOOKUP(Table2[[#This Row],[Column1]],Table3[],18,FALSE)","v":7},null,null,{"$f":"Table2[[#This Row],[Column37]]","v":0}]
[null,85,{"$f":"IFERROR(VLOOKUP(Table2[[#This Row],[Column1]],'بيانات الموظفين'!$B$4:$C$117,2,FALSE),\"\")","v":"محمد85"},{"$f":"IFERROR(VLOOKUP(Table2[[#This Row],[Column1]],'بيانات الموظفين'!$B$4:$D$117,3,FALSE),\"\")","v":"مدرس85"},null,null,null,null,null,null,null,null,null,null,null,null,null,null,null,null,null,null,null,null,null,null,null,null,null,null,null,null,null,null,null,0,{"$f":"VLOOKUP(Table2[[#This Row],[Column1]],Table3[],18,FALSE)","v":7},null,null,{"$f":"Table2[[#This Row],[Column37]]","v":0}]
[null,86,{"$f":"IFERROR(VLOOKUP(Table2[[#This Row],[Column1]],'بيانات الموظفين'!$B$4:$C$117,2,FALSE),\"\")","v":"محمد86"},{"$f":"IFERROR(VLOOKUP(Table2[[#This Row],[Column1]],'بيانات الموظفين'!$B$4:$D$117,3,FALSE),\"\")","v":"مدرس86"},null,null,null,null,null,null,null,null,null,null,null,null,null,null,null,null,null,null,null,null,null,null,null,null,null,null,null,null,null,null,null,0,{"$f":"VLOOKUP(Table2[[#This Row],[Column1]],Table3[],18,FALSE)","v":7},null,null,{"$f":"Table2[[#This Row],[Column37]]","v":0}]
[null,87,{"$f":"IFERROR(VLOOKUP(Table2[[#This Row],[Column1]],'بيانات الموظفين'!$B$4:$C$117,2,FALSE),\"\")","v":"محمد87"},{"$f":"IFERROR(VLOOKUP(Table2[[#This Row],[Column1]],'بيانات الموظفين'!$B$4:$D$117,3,FALSE),\"\")","v":"مدرس87"},null,null,null,null,null,null,null,null,null,null,null,null,null,null,null,null,null,null,null,null,null,null,null,null,null,null,null,null,null,null,null,0,{"$f":"VLOOKUP(Table2[[#This Row],[Column1]],Table3[],18,FALSE)","v":7},null,null,{"$f":"Table2[[#This Row],[Column37]]","v":0}]
[null,88,{"$f":"IFERROR(VLOOKUP(Table2[[#This Row],[Column1]],'بيانات الموظفين'!$B$4:$C$117,2,FALSE),\"\")","v":"محمد88"},{"$f":"IFERROR(VLOOKUP(Table2[[#This Row],[Column1]],'بيانات الموظفين'!$B$4:$D$117,3,FALSE),\"\")","v":"مدرس88"},null,null,null,null,null,null,null,null,null,null,null,null,null,null,null,null,null,null,null,null,null,null,null,null,null,null,null,null,null,null,null,0,{"$f":"VLOOKUP(Table2[[#This Row],[Column1]],Table3[],18,FALSE)","v":7},null,null,{"$f":"Table2[[#This Row],[Column37]]","v":0}]
[null,89,{"$f":"IFERROR(VLOOKUP(Table2[[#This Row],[Column1]],'بيانات الموظفين'!$B$4:$C$117,2,FALSE),\"\")","v":"محمد89"},{"$f":"IFERROR(VLOOKUP(Table2[[#This Row],[Column1]],'بيانات الموظفين'!$B$4:$D$117,3,FALSE),\"\")","v":"مدرس89"},null,null,null,null,null,null,null,null,null,null,null,null,null,null,null,null,null,null,null,null,null,null,null,null,null,null,null,null,null,null,null,0,{"$f":"VLOOKUP(Table2[[#This Row],[Column1]],Table3[],18,FALSE)","v":7},null,null,{"$f":"Table2[[#This Row],[Column37]]","v":0}]
[null,90,{"$f":"IFERROR(VLOOKUP(Table2[[#This Row],[Column1]],'بيانات الموظفين'!$B$4:$C$117,2,FALSE),\"\")","v":"محمد90"},{"$f":"IFERROR(VLOOKUP(Table2[[#This Row],[Column1]],'بيانات الموظفين'!$B$4:$D$117,3,FALSE),\"\")","v":"مدرس90"},null,null,null,null,null,null,null,null,null,null,null,null,null,null,null,null,null,null,null,null,null,null,null,null,null,null,null,null,null,null,null,0,{"$f":"VLOOKUP(Table2[[#This Row],[Column1]],Table3[],18,FALSE)","v":7},null,null,{"$f":"Table2[[#This Row],[Column37]]","v":0}]
[null,91,{"$f":"IFERROR(VLOOKUP(Table2[[#This Row],[Column1]],'بيانات الموظفين'!$B$4:$C$117,2,FALSE),\"\")","v":"محمد91"},{"$f":"IFERROR(VLOOKUP(Table2[[#This Row],[Column1]],'بيانات الموظفين'!$B$4:$D$117,3,FALSE),\"\")","v":"مدرس91"},null,null,null,null,null,null,null,null,null,null,null,null,null,null,null,null,null,null,null,null,null,null,null,null,null,null,null,null,null,null,null,0,{"$f":"VLOOKUP(Table2[[#This Row],[Column1]],Table3[],18,FALSE)","v":7},null,null,{"$f":"Table2[[#This Row],[Column37]]","v":0}]
[null,92,{"$f":"IFERROR(VLOOKUP(Table2[[#This Row],[Column1]],'بيانات الموظفين'!$B$4:$C$117,2,FALSE),\"\")","v":"محمد92"},{"$f":"IFERROR(VLOOKUP(Table2[[#This Row],[Column1]],'بيانات الموظفين'!$B$4:$D$117,3,FALSE),\"\")","v":"مدرس92"},null,null,null,null,null,null,null,null,null,null,null,null,null,null,null,null,null,null,null,null,null,null,null,null,null,null,null,null,null,null,null,0,{"$f":"VLOOKUP(Table2[[#This Row],[Column1]],Table3[],18,FALSE)","v":7},null,null,{"$f":"Table2[[#This Row],[Column37]]","v":0}]
[null,93,{"$f":"IFERROR(VLOOKUP(Table2[[#This Row],[Column1]],'بيانات الموظفين'!$B$4:$C$117,2,FALSE),\"\")","v":"محمد93"},{"$f":"IFERROR(VLOOKUP(Table2[[#This Row],[Column1]],'بيانات الموظفين'!$B$4:$D$117,3,FALSE),\"\")","v":"مدرس93"},null,null,null,null,null,null,null,null,null,null,null,null,null,null,null,null,null,null,null,null,null,null,null,null,null,null,null,null,null,null,null,0,{"$f":"VLOOKUP(Table2[[#This Row],[Column1]],Table3[],18,FALSE)","v":7},null,null,{"$f":"Table2[[#This Row],[Column37]]","v":0}]
[null,94,{"$f":"IFERROR(VLOOKUP(Table2[[#This Row],[Column1]],'بيانات الموظفين'!$B$4:$C$117,2,FALSE),\"\")","v":"محمد94"},{"$f":"IFERROR(VLOOKUP(Table2[[#This Row],[Column1]],'بيانات الموظفين'!$B$4:$D$117,3,FALSE),\"\")","v":"مدرس94"},null,null,null,null,null,null,null,null,null,null,null,null,null,null,null,null,null,null,null,null,null,null,null,null,null,null,null,null,null,null,null,0,{"$f":"VLOOKUP(Table2[[#This Row],[Column1]],Table3[],18,FALSE)","v":7},null,null,{"$f":"Table2[[#This Row],[Column37]]","v":0}]
[null,95,{"$f":"IFERROR(VLOOKUP(Table2[[#This Row],[Column1]],'بيانات الموظفين'!$B$4:$C$117,2,FALSE),\"\")","v":"محمد95"},{"$f":"IFERROR(VLOOKUP(Table2[[#This Row],[Column1]],'بيانات الموظفين'!$B$4:$D$117,3,FALSE),\"\")","v":"مدرس95"},null,null,null,null,null,null,null,null,null,null,null,null,null,null,null,null,null,null,null,null,null,null,null,null,null,null,null,null,null,null,null,0,{"$f":"VLOOKUP(Table2[[#This Row],[Column1]],Table3[],18,FALSE)","v":7},null,null,{"$f":"Table2[[#This Row],[Column37]]","v":0}]
[null,96,{"$f":"IFERROR(VLOOKUP(Table2[[#This Row],[Column1]],'بيانات الموظفين'!$B$4:$C$117,2,FALSE),\"\")","v":"محمد96"},{"$f":"IFERROR(VLOOKUP(Table2[[#This Row],[Column1]],'بيانات الموظفين'!$B$4:$D$117,3,FALSE),\"\")","v":"مدرس96"},null,null,null,null,null,null,null,null,null,null,null,null,null,null,null,null,null,null,null,null,null,null,null,null,null,null,null,null,null,null,null,0,{"$f":"VLOOKUP(Table2[[#This Row],[Column1]],Table3[],18,FALSE)","v":7},null,null,{"$f":"Table2[[#This Row],[Column37]]","v":0}]
[null,97,{"$f":"IFERROR(VLOOKUP(Table2[[#This Row],[Column1]],'بيانات الموظفين'!$B$4:$C$117,2,FALSE),\"\")","v":"محمد97"},{"$f":"IFERROR(VLOOKUP(Table2[[#This Row],[Column1]],'بيانات الموظفين'!$B$4:$D$117,3,FALSE),\"\")","v":"مدرس97"},null,null,null,null,null,null,null,null,null,null,null,null,null,null,null,null,null,null,null,null,null,null,null,null,null,null,null,null,null,null,null,0,{"$f":"VLOOKUP(Table2[[#This Row],[Column1]],Table3[],18,FALSE)","v":7},null,null,{"$f":"Table2[[#This Row],[Column37]]","v":0}]
[null,98,{"$f":"IFERROR(VLOOKUP(Table2[[#This Row],[Column1]],'بيانات الموظفين'!$B$4:$C$117,2,FALSE),\"\")","v":"محمد98"},{"$f":"IFERROR(VLOOKUP(Table2[[#This Row],[Column1]],'بيانات الموظفين'!$B$4:$D$117,3,FALSE),\"\")","v":"مدرس98"},null,null,null,null,null,null,null,null,null,null,null,null,null,null,null,null,null,null,null,null,null,null,null,null,null,null,null,null,null,null,null,0,{"$f":"VLOOKUP(Table2[[#This Row],[Column1]],Table3[],18,FALSE)","v":7},null,null,{"$f":"Table2[[#This Row],[Column37]]","v":0}]
[null,99,{"$f":"IFERROR(VLOOKUP(Table2[[#This Row],[Column1]],'بيانات الموظفين'!$B$4:$C$117,2,FALSE),\"\")","v":"محمد99"},{"$f":"IFERROR(VLOOKUP(Table2[[#This Row],[Column1]],'بيانات الموظفين'!$B$4:$D$117,3,FALSE),\"\")","v":"مدرس99"},null,null,null,null,null,null,null,null,null,null,null,null,null,null,null,null,null,null,null,null,null,null,null,null,null,null,null,null,null,null,null,0,{"$f":"VLOOKUP(Table2[[#This Row],[Column1]],Table3[],18,FALSE)","v":7},null,null,{"$f":"Table2[[#This Row],[Column37]]","v":0}]
[null,100,{"$f":"IFERROR(VLOOKUP(Table2[[#This Row],[Column1]],'بيانات الموظفين'!$B$4:$C$117,2,FALSE),\"\")","v":"محمد100"},{"$f":"IFERROR(VLOOKUP(Table2[[#This Row],[Column1]],'بيانات الموظفين'!$B$4:$D$117,3,FALSE),\"\")","v":"مدرس100"},null,null,null,null,null,null,null,null,null,null,null,null,null,null,null,null,null,null,null,null,null,null,null,null,null,null,null,null,null,null,null,0,{"$f":"VLOOKUP(Table2[[#This Row],[Column1]],Table3[],18,FALSE)","v":7},null,null,{"$f":"Table2[[#This Row],[Column37]]","v":0}]
[null,101,{"$f":"IFERROR(VLOOKUP(Table2[[#This Row],[Column1]],'بيانات الموظفين'!$B$4:$C$117,2,FALSE),\"\")","v":"محمد101"},{"$f":"IFERROR(VLOOKUP(Table2[[#This Row],[Column1]],'بيانات الموظفين'!$B$4:$D$117,3,FALSE),\"\")","v":"مدرس101"},null,null,null,null,null,null,null,null,null,null,null,null,null,null,null,null,null,null,null,null,null,null,null,null,null,null,null,null,null,null,null,0,{"$f":"VLOOKUP(Table2[[#This Row],[Column1]],Table3[],18,FALSE)","v":7},null,null,{"$f":"Table2[[#This Row],[Column37]]","v":0}]
[null,102,{"$f":"IFERROR(VLOOKUP(Table2[[#This Row],[Column1]],'بيانات الموظفين'!$B$4:$C$117,2,FALSE),\"\")","v":"محمد102"},{"$f":"IFERROR(VLOOKUP(Table2[[#This Row],[Column1]],'بيانات الموظفين'!$B$4:$D$117,3,FALSE),\"\")","v":"مدرس102"},null,null,null,null,null,null,null,null,null,null,null,null,null,null,null,null,null,null,null,null,null,null,null,null,null,null,null,null,null,null,null,0,{"$f":"VLOOKUP(Table2[[#This Row],[Column1]],Table3[],18,FALSE)","v":7},null,null,{"$f":"Table2[[#This Row],[Column37]]","v":0}]
[null,103,{"$f":"IFERROR(VLOOKUP(Table2[[#This Row],[Column1]],'بيانات الموظفين'!$B$4:$C$117,2,FALSE),\"\")","v":"محمد103"},{"$f":"IFERROR(VLOOKUP(Table2[[#This Row],[Column1]],'بيانات الموظفين'!$B$4:$D$117,3,FALSE),\"\")","v":"مدرس103"},null,null,null,null,null,null,null,null,null,null,null,null,null,null,null,null,null,null,null,null,null,null,null,null,null,null,null,null,null,null,null,0,{"$f":"VLOOKUP(Table2[[#This Row],[Column1]],Table3[],18,FALSE)","v":7},null,null,{"$f":"Table2[[#This Row],[Column37]]","v":0}]
[null,104,{"$f":"IFERROR(VLOOKUP(Table2[[#This Row],[Column1]],'بيانات الموظفين'!$B$4:$C$117,2,FALSE),\"\")","v":"محمد104"},{"$f":"IFERROR(VLOOKUP(Table2[[#This Row],[Column1]],'بيانات الموظفين'!$B$4:$D$117,3,FALSE),\"\")","v":"مدرس104"},null,null,null,null,null,null,null,null,null,null,null,null,null,null,null,null,null,null,null,null,null,null,null,null,null,null,null,null,null,null,null,0,{"$f":"VLOOKUP(Table2[[#This Row],[Column1]],Table3[],18,FALSE)","v":7},null,null,{"$f":"Table2[[#This Row],[Column37]]","v":0}]
[null,105,{"$f":"IFERROR(VLOOKUP(Table2[[#This Row],[Column1]],'بيانات الموظفين'!$B$4:$C$117,2,FALSE),\"\")","v":"محمد105"},{"$f":"IFERROR(VLOOKUP(Table2[[#This Row],[Column1]],'بيانات الموظفين'!$B$4:$D$117,3,FALSE),\"\")","v":"مدرس105"},null,null,null,null,null,null,null,null,null,null,null,null,null,null,null,null,null,null,null,null,null,null,null,null,null,null,null,null,null,null,null,0,{"$f":"VLOOKUP(Table2[[#This Row],[Column1]],Table3[],18,FALSE)","v":7},null,null,{"$f":"Table2[[#This Row],[Column37]]","v":0}]
[null,106,{"$f":"IFERROR(VLOOKUP(Table2[[#This Row],[Column1]],'بيانات الموظفين'!$B$4:$C$117,2,FALSE),\"\")","v":"محمد106"},{"$f":"IFERROR(VLOOKUP(Table2[[#This Row],[Column1]],'بيانات الموظفين'!$B$4:$D$117,3,FALSE),\"\")","v":"مدرس106"},null,null,null,null,null,null,null,null,null,null,null,null,null,null,null,null,null,null,null,null,null,null,null,null,null,null,null,null,null,null,null,0,{"$f":"VLOOKUP(Table2[[#This Row],[Column1]],Table3[],18,FALSE)","v":7},null,null,{"$f":"Table2[[#This Row],[Column37]]","v":0}]
[null,107,{"$f":"IFERROR(VLOOKUP(Table2[[#This Row],[Column1]],'بيانات الموظفين'!$B$4:$C$117,2,FALSE),\"\")","v":"محمد107"},{"$f":"IFERROR(VLOOKUP(Table2[[#This Row],[Column1]],'بيانات الموظفين'!$B$4:$D$117,3,FALSE),\"\")","v":"مدرس107"},null,null,null,null,null,null,null,null,null,null,null,null,null,null,null,null,null,null,null,null,null,null,null,null,null,null,null,null,null,null,null,0,{"$f":"VLOOKUP(Table2[[#This Row],[Column1]],Table3[],18,FALSE)","v":7},null,null,{"$f":"Table2[[#This Row],[Column37]]","v":0}]
[null,108,{"$f":"IFERROR(VLOOKUP(Table2[[#This Row],[Column1]],'بيانات الموظفين'!$B$4:$C$117,2,FALSE),\"\")","v":"محمد108"},{"$f":"IFERROR(VLOOKUP(Table2[[#This Row],[Column1]],'بيانات الموظفين'!$B$4:$D$117,3,FALSE),\"\")","v":"مدرس108"},null,null,null,null,null,null,null,null,null,null,null,null,null,null,null,null,null,null,null,null,null,null,null,null,null,null,null,null,null,null,null,0,{"$f":"VLOOKUP(Table2[[#This Row],[Column1]],Table3[],18,FALSE)","v":7},null,null,{"$f":"Table2[[#This Row],[Column37]]","v":0}]
[null,109,{"$f":"IFERROR(VLOOKUP(Table2[[#This Row],[Column1]],'بيانات الموظفين'!$B$4:$C$117,2,FALSE),\"\")","v":"محمد109"},{"$f":"IFERROR(VLOOKUP(Table2[[#This Row],[Column1]],'بيانات الموظفين'!$B$4:$D$117,3,FALSE),\"\")","v":"مدرس109"},null,null,null,null,null,null,null,null,null,null,null,null,null,null,null,null,null,null,null,null,null,null,null,null,null,null,null,null,null,null,null,0,{"$f":"VLOOKUP(Table2[[#This Row],[Column1]],Table3[],18,FALSE)","v":7},null,null,{"$f":"Table2[[#This Row],[Column37]]","v":0}]
[null,110,{"$f":"IFERROR(VLOOKUP(Table2[[#This Row],[Column1]],'بيانات الموظفين'!$B$4:$C$117,2,FALSE),\"\")","v":"محمد110"},{"$f":"IFERROR(VLOOKUP(Table2[[#This Row],[Column1]],'بيانات الموظفين'!$B$4:$D$117,3,FALSE),\"\")","v":"مدرس110"},null,null,null,null,null,null,null,null,null,null,null,null,null,null,null,null,null,null,null,null,null,null,null,null,null,null,null,null,null,null,null,0,{"$f":"VLOOKUP(Table2[[#This Row],[Column1]],Table3[],18,FALSE)","v":7},null,null,{"$f":"Table2[[#This Row],[Column37]]","v":0}]
[null,111,{"$f":"IFERROR(VLOOKUP(Table2[[#This Row],[Column1]],'بيانات الموظفين'!$B$4:$C$117,2,FALSE),\"\")","v":"محمد111"},{"$f":"IFERROR(VLOOKUP(Table2[[#This Row],[Column1]],'بيانات الموظفين'!$B$4:$D$117,3,FALSE),\"\")","v":"مدرس111"},null,null,null,null,null,null,null,null,null,null,null,null,null,null,null,null,null,null,null,null,null,null,null,null,null,null,null,null,null,null,null,0,{"$f":"VLOOKUP(Table2[[#This Row],[Column1]],Table3[],18,FALSE)","v":7},null,null,{"$f":"Table2[[#This Row],[Column37]]","v":0}]
[null,112,{"$f":"IFERROR(VLOOKUP(Table2[[#This Row],[Column1]],'بيانات الموظفين'!$B$4:$C$117,2,FALSE),\"\")","v":"محمد112"},{"$f":"IFERROR(VLOOKUP(Table2[[#This Row],[Column1]],'بيانات الموظفين'!$B$4:$D$117,3,FALSE),\"\")","v":"مدرس112"},null,null,null,null,null,null,null,null,null,null,null,null,null,null,null,null,null,null,null,null,null,null,null,null,null,null,null,null,null,null,null,0,{"$f":"VLOOKUP(Table2[[#This Row],[Column1]],Table3[],18,FALSE)","v":7},null,null,{"$f":"Table2[[#This Row],[Column37]]","v":0}]
[null,113,{"$f":"IFERROR(VLOOKUP(Table2[[#This Row],[Column1]],'بيانات الموظفين'!$B$4:$C$117,2,FALSE),\"\")","v":"محمد113"},{"$f":"IFERROR(VLOOKUP(Table2[[#This Row],[Column1]],'بيانات الموظفين'!$B$4:$D$117,3,FALSE),\"\")","v":"مدرس113"},null,null,null,null,null,null,null,null,null,null,null,null,null,null,null,null,null,null,null,null,null,null,null,null,null,null,null,null,null,null,null,0,{"$f":"VLOOKUP(Table2[[#This Row],[Column1]],Table3[],18,FALSE)","v":7},null,null,{"$f":"Table2[[#This Row],[Column37]]","v":0}]
[null,114,{"$f":"IFERROR(VLOOKUP(Table2[[#This Row],[Column1]],'بيانات الموظفين'!$B$4:$C$117,2,FALSE),\"\")","v":"محمد114"},{"$f":"IFERROR(VLOOKUP(Table2[[#This Row],[Column1]],'بيانات الموظفين'!$B$4:$D$117,3,FALSE),\"\")","v":"مدرس114"},null,null,null,null,null,null,null,null,null,null,null,null,null,null,null,null,null,null,null,null,null,null,null,null,null,null,null,null,null,null,null,0,{"$f":"VLOOKUP(Table2[[#This Row],[Column1]],Table3[],18,FALSE)","v":7},null,null,{"$f":"Table2[[#This Row],[Column37]]","v":0}]
[null,115,{"$f":"IFERROR(VLOOKUP(Table2[[#This Row],[Column1]],'بيانات الموظفين'!$B$4:$C$117,2,FALSE),\"\")","v":""},{"$f":"IFERROR(VLOOKUP(Table2[[#This Row],[Column1]],'بيانات الموظفين'!$B$4:$D$117,3,FALSE),\"\")","v":""},null,null,null,null,null,null,null,null,null,null,null,null,null,null,null,null,null,null,null,null,null,null,null,null,null,null,null,null,null,null,null,0,{"$f":"VLOOKUP(Table2[[#This Row],[Column1]],Table3[],18,FALSE)","v":{"$error":"#VALUE!"}},null,null,{"$f":"Table2[[#This Row],[Column37]]","v":0}]
[null,116,{"$f":"IFERROR(VLOOKUP(Table2[[#This Row],[Column1]],'بيانات الموظفين'!$B$4:$C$117,2,FALSE),\"\")","v":""},{"$f":"IFERROR(VLOOKUP(Table2[[#This Row],[Column1]],'بيانات الموظفين'!$B$4:$D$117,3,FALSE),\"\")","v":""},null,null,null,null,null,null,null,null,null,null,null,null,null,null,null,null,null,null,null,null,null,null,null,null,null,null,null,null,null,null,null,0,{"$f":"VLOOKUP(Table2[[#This Row],[Column1]],Table3[],18,FALSE)","v":{"$error":"#VALUE!"}},null,null,{"$f":"Table2[[#This Row],[Column37]]","v":0}]
[null,117,{"$f":"IFERROR(VLOOKUP(Table2[[#This Row],[Column1]],'بيانات الموظفين'!$B$4:$C$117,2,FALSE),\"\")","v":""},{"$f":"IFERROR(VLOOKUP(Table2[[#This Row],[Column1]],'بيانات الموظفين'!$B$4:$D$117,3,FALSE),\"\")","v":""},null,null,null,null,null,null,null,null,null,null,null,null,null,null,null,null,null,null,null,null,null,null,null,null,null,null,null,null,null,null,null,0,{"$f":"VLOOKUP(Table2[[#This Row],[Column1]],Table3[],18,FALSE)","v":{"$error":"#N/A"}},null,null,{"$f":"Table2[[#This Row],[Column37]]","v":0}]
[null,118,{"$f":"IFERROR(VLOOKUP(Table2[[#This Row],[Column1]],'بيانات الموظفين'!$B$4:$C$117,2,FALSE),\"\")","v":""},{"$f":"IFERROR(VLOOKUP(Table2[[#This Row],[Column1]],'بيانات الموظفين'!$B$4:$D$117,3,FALSE),\"\")","v":""},null,null,null,null,null,null,null,null,null,null,null,null,null,null,null,null,null,null,null,null,null,null,null,null,null,null,null,null,null,null,null,0,{"$f":"VLOOKUP(Table2[[#This Row],[Column1]],Table3[],18,FALSE)","v":{"$error":"#N/A"}},null,null,{"$f":"Table2[[#This Row],[Column37]]","v":0}]
[null,119,{"$f":"IFERROR(VLOOKUP(Table2[[#This Row],[Column1]],'بيانات الموظفين'!$B$4:$C$117,2,FALSE),\"\")","v":""},{"$f":"IFERROR(VLOOKUP(Table2[[#This Row],[Column1]],'بيانات الموظفين'!$B$4:$D$117,3,FALSE),\"\")","v":""},null,null,null,null,null,null,null,null,null,null,null,null,null,null,null,null,null,null,null,null,null,null,null,null,null,null,null,null,null,null,null,0,{"$f":"VLOOKUP(Table2[[#This Row],[Column1]],Table3[],18,FALSE)","v":{"$error":"#N/A"}},null,null,{"$f":"Table2[[#This Row],[Column37]]","v":0}]
[null,120,{"$f":"IFERROR(VLOOKUP(Table2[[#This Row],[Column1]],'بيانات الموظفين'!$B$4:$C$117,2,FALSE),\"\")","v":""},{"$f":"IFERROR(VLOOKUP(Table2[[#This Row],[Column1]],'بيانات الموظفين'!$B$4:$D$117,3,FALSE),\"\")","v":""},null,null,null,null,null,null,null,null,null,null,null,null,null,null,null,null,null,null,null,null,null,null,null,null,null,null,null,null,null,null,null,0,{"$f":"VLOOKUP(Table2[[#This Row],[Column1]],Table3[],18,FALSE)","v":{"$error":"#N/A"}},null,null,{"$f":"Table2[[#This Row],[Column37]]","v":0}]
[null,121,{"$f":"IFERROR(VLOOKUP(Table2[[#This Row],[Column1]],'بيانات الموظفين'!$B$4:$C$117,2,FALSE),\"\")","v":""},{"$f":"IFERROR(VLOOKUP(Table2[[#This Row],[Column1]],'بيانات الموظفين'!$B$4:$D$117,3,FALSE),\"\")","v":""},null,null,null,null,null,null,null,null,null,null,null,null,null,null,null,null,null,null,null,null,null,null,null,null,null,null,null,null,null,null,null,0,{"$f":"VLOOKUP(Table2[[#This Row],[Column1]],Table3[],18,FALSE)","v":{"$error":"#N/A"}},null,null,{"$f":"Table2[[#This Row],[Column37]]","v":0}]
[null,122,{"$f":"IFERROR(VLOOKUP(Table2[[#This Row],[Column1]],'بيانات الموظفين'!$B$4:$C$117,2,FALSE),\"\")","v":""},{"$f":"IFERROR(VLOOKUP(Table2[[#This Row],[Column1]],'بيانات الموظفين'!$B$4:$D$117,3,FALSE),\"\")","v":""},null,null,null,null,null,null,null,null,null,null,null,null,null,null,null,null,null,null,null,null,null,null,null,null,null,null,null,null,null,null,null,0,{"$f":"VLOOKUP(Table2[[#This Row],[Column1]],Table3[],18,FALSE)","v":{"$error":"#N/A"}},null,null,{"$f":"Table2[[#This Row],[Column37]]","v":0}]

{"sheet":"الإعدادات","index":2,"n_rows":12,"n_cols":2,"rows_kept":12,"cut":false,"hidden":true,"merged":[]}
[1,"يناير"]
[2,"فبراير"]
[3,"مارس"]
[4,"أبريل"]
[5,"مايو"]
[6,"يونيو"]
[7,"يوليو"]
[8,"أغسطس"]
[9,"سبتمبر"]
[10,"أكتوبر"]
[11,"نوفمبر"]
[12,"ديسمبر"]

{"sheet":"الإحصائية","index":3,"n_rows":118,"n_cols":19,"rows_kept":118,"cut":false,"hidden":false,"merged":[]}
[]
[null,"كود الموظف","اسم الموظف","المسمى الوظيفي ","Jan-21","Feb-21","Mar-21","Apr-21","May-21","Jun-21","Jul-21","Aug-21","Sep-21","Oct-21","Nov-21","Dec-21","المجموع","رصيد الإجازات","الرصيد المتبقي "]
[null,{"$f":"ROW()-2","v":1},{"$f":"IFERROR(VLOOKUP(Table3[[#This Row],[كود الموظف]],'بيانات الموظفين'!$B$4:$C$117,2,FALSE),\"\")","v":"محمد1"},{"$f":"IFERROR(VLOOKUP(Table3[[#This Row],[كود الموظف]],'بيانات الموظفين'!$B$4:$D$117,3,FALSE),\"\")","v":"مدرس1"},null,null,null,null,null,null,null,null,null,null,null,null,{"$f":"SUM(Table3[[#This Row],[Jan-21]:[Dec-21]])","v":0},{"$f":"IFERROR(VLOOKUP(Table3[[#This Row],[كود الموظف]],'بيانات الموظفين'!$B$4:$G$117,6,FALSE),\"\")","v":7},{"$f":"R3-Q3","v":7}]
[null,{"$f":"ROW()-2","v":2},{"$f":"IFERROR(VLOOKUP(Table3[[#This Row],[كود الموظف]],'بيانات الموظفين'!$B$4:$C$117,2,FALSE),\"\")","v":"محمد2"},{"$f":"IFERROR(VLOOKUP(Table3[[#This Row],[كود الموظف]],'بيانات الموظفين'!$B$4:$D$117,3,FALSE),\"\")","v":"مدرس2"},null,null,null,null,null,null,null,null,null,null,null,null,{"$f":"SUM(Table3[[#This Row],[Jan-21]:[Dec-21]])","v":0},{"$f":"IFERROR(VLOOKUP(Table3[[#This Row],[كود الموظف]],'بيانات الموظفين'!$B$4:$G$117,6,FALSE),\"\")","v":7},7]
[null,3,{"$f":"IFERROR(VLOOKUP(Table3[[#This Row],[كود الموظف]],'بيانات الموظفين'!$B$4:$C$117,2,FALSE),\"\")","v":"محمد3"},{"$f":"IFERROR(VLOOKUP(Table3[[#This Row],[كود الموظف]],'بيانات الموظفين'!$B$4:$D$117,3,FALSE),\"\")","v":"مدرس3"},null,null,null,null,null,null,null,null,null,null,null,null,{"$f":"SUM(Table3[[#This Row],[Jan-21]:[Dec-21]])","v":0},{"$f":"IFERROR(VLOOKUP(Table3[[#This Row],[كود الموظف]],'بيانات الموظفين'!$B$4:$G$117,6,FALSE),\"\")","v":7},7]
[null,4,{"$f":"IFERROR(VLOOKUP(Table3[[#This Row],[كود الموظف]],'بيانات الموظفين'!$B$4:$C$117,2,FALSE),\"\")","v":"محمد4"},{"$f":"IFERROR(VLOOKUP(Table3[[#This Row],[كود الموظف]],'بيانات الموظفين'!$B$4:$D$117,3,FALSE),\"\")","v":"مدرس4"},null,null,null,null,null,null,null,null,null,null,null,null,{"$f":"SUM(Table3[[#This Row],[Jan-21]:[Dec-21]])","v":0},{"$f":"IFERROR(VLOOKUP(Table3[[#This Row],[كود الموظف]],'بيانات الموظفين'!$B$4:$G$117,6,FALSE),\"\")","v":7},7]
[null,5,{"$f":"IFERROR(VLOOKUP(Table3[[#This Row],[كود الموظف]],'بيانات الموظفين'!$B$4:$C$117,2,FALSE),\"\")","v":"محمد5"},{"$f":"IFERROR(VLOOKUP(Table3[[#This Row],[كود الموظف]],'بيانات الموظفين'!$B$4:$D$117,3,FALSE),\"\")","v":"مدرس5"},null,null,null,null,null,null,null,null,null,null,null,null,{"$f":"SUM(Table3[[#This Row],[Jan-21]:[Dec-21]])","v":0},{"$f":"IFERROR(VLOOKUP(Table3[[#This Row],[كود الموظف]],'بيانات الموظفين'!$B$4:$G$117,6,FALSE),\"\")","v":7},7]
[null,6,{"$f":"IFERROR(VLOOKUP(Table3[[#This Row],[كود الموظف]],'بيانات الموظفين'!$B$4:$C$117,2,FALSE),\"\")","v":"محمد6"},{"$f":"IFERROR(VLOOKUP(Table3[[#This Row],[كود الموظف]],'بيانات الموظفين'!$B$4:$D$117,3,FALSE),\"\")","v":"مدرس6"},null,null,null,null,null,null,null,null,null,null,null,null,{"$f":"SUM(Table3[[#This Row],[Jan-21]:[Dec-21]])","v":0},{"$f":"IFERROR(VLOOKUP(Table3[[#This Row],[كود الموظف]],'بيانات الموظفين'!$B$4:$G$117,6,FALSE),\"\")","v":7},7]
[null,7,{"$f":"IFERROR(VLOOKUP(Table3[[#This Row],[كود الموظف]],'بيانات الموظفين'!$B$4:$C$117,2,FALSE),\"\")","v":"محمد7"},{"$f":"IFERROR(VLOOKUP(Table3[[#This Row],[كود الموظف]],'بيانات الموظفين'!$B$4:$D$117,3,FALSE),\"\")","v":"مدرس7"},null,null,null,null,null,null,null,null,null,null,null,null,{"$f":"SUM(Table3[[#This Row],[Jan-21]:[Dec-21]])","v":0},{"$f":"IFERROR(VLOOKUP(Table3[[#This Row],[كود الموظف]],'بيانات الموظفين'!$B$4:$G$117,6,FALSE),\"\")","v":7},7]
[null,8,{"$f":"IFERROR(VLOOKUP(Table3[[#This Row],[كود الموظف]],'بيانات الموظفين'!$B$4:$C$117,2,FALSE),\"\")","v":"محمد8"},{"$f":"IFERROR(VLOOKUP(Table3[[#This Row],[كود الموظف]],'بيانات الموظفين'!$B$4:$D$117,3,FALSE),\"\")","v":"مدرس8"},null,null,null,null,null,null,null,null,null,null,null,null,{"$f":"SUM(Table3[[#This Row],[Jan-21]:[Dec-21]])","v":0},{"$f":"IFERROR(VLOOKUP(Table3[[#This Row],[كود الموظف]],'بيانات الموظفين'!$B$4:$G$117,6,FALSE),\"\")","v":7},7]
[null,9,{"$f":"IFERROR(VLOOKUP(Table3[[#This Row],[كود الموظف]],'بيانات الموظفين'!$B$4:$C$117,2,FALSE),\"\")","v":"محمد9"},{"$f":"IFERROR(VLOOKUP(Table3[[#This Row],[كود الموظف]],'بيانات الموظفين'!$B$4:$D$117,3,FALSE),\"\")","v":"مدرس9"},null,null,null,null,null,null,null,null,null,null,null,null,{"$f":"SUM(Table3[[#This Row],[Jan-21]:[Dec-21]])","v":0},{"$f":"IFERROR(VLOOKUP(Table3[[#This Row],[كود الموظف]],'بيانات الموظفين'!$B$4:$G$117,6,FALSE),\"\")","v":7},7]
[null,10,{"$f":"IFERROR(VLOOKUP(Table3[[#This Row],[كود الموظف]],'بيانات الموظفين'!$B$4:$C$117,2,FALSE),\"\")","v":"محمد10"},{"$f":"IFERROR(VLOOKUP(Table3[[#This Row],[كود الموظف]],'بيانات الموظفين'!$B$4:$D$117,3,FALSE),\"\")","v":"مدرس10"},null,null,null,null,null,null,null,null,null,null,null,null,{"$f":"SUM(Table3[[#This Row],[Jan-21]:[Dec-21]])","v":0},{"$f":"IFERROR(VLOOKUP(Table3[[#This Row],[كود الموظف]],'بيانات الموظفين'!$B$4:$G$117,6,FALSE),\"\")","v":7},7]
[null,11,{"$f":"IFERROR(VLOOKUP(Table3[[#This Row],[كود الموظف]],'بيانات الموظفين'!$B$4:$C$117,2,FALSE),\"\")","v":"محمد11"},{"$f":"IFERROR(VLOOKUP(Table3[[#This Row],[كود الموظف]],'بيانات الموظفين'!$B$4:$D$117,3,FALSE),\"\")","v":"مدرس11"},null,null,null,null,null,null,null,null,null,null,null,null,{"$f":"SUM(Table3[[#This Row],[Jan-21]:[Dec-21]])","v":0},{"$f":"IFERROR(VLOOKUP(Table3[[#This Row],[كود الموظف]],'بيانات الموظفين'!$B$4:$G$117,6,FALSE),\"\")","v":7},7]
[null,12,{"$f":"IFERROR(VLOOKUP(Table3[[#This Row],[كود الموظف]],'بيانات الموظفين'!$B$4:$C$117,2,FALSE),\"\")","v":"محمد12"},{"$f":"IFERROR(VLOOKUP(Table3[[#This Row],[كود الموظف]],'بيانات الموظفين'!$B$4:$D$117,3,FALSE),\"\")","v":"مدرس12"},null,null,null,null,null,null,null,null,null,null,null,null,{"$f":"SUM(Table3[[#This Row],[Jan-21]:[Dec-21]])","v":0},{"$f":"IFERROR(VLOOKUP(Table3[[#This Row],[كود الموظف]],'بيانات الموظفين'!$B$4:$G$117,6,FALSE),\"\")","v":7},7]
[null,13,{"$f":"IFERROR(VLOOKUP(Table3[[#This Row],[كود الموظف]],'بيانات الموظفين'!$B$4:$C$117,2,FALSE),\"\")","v":"محمد13"},{"$f":"IFERROR(VLOOKUP(Table3[[#This Row],[كود الموظف]],'بيانات الموظفين'!$B$4:$D$117,3,FALSE),\"\")","v":"مدرس13"},null,null,null,null,null,null,null,null,null,null,null,null,{"$f":"SUM(Table3[[#This Row],[Jan-21]:[Dec-21]])","v":0},{"$f":"IFERROR(VLOOKUP(Table3[[#This Row],[كود الموظف]],'بيانات الموظفين'!$B$4:$G$117,6,FALSE),\"\")","v":7},{"$f":"R15-Q15","v":7}]
[null,14,{"$f":"IFERROR(VLOOKUP(Table3[[#This Row],[كود الموظف]],'بيانات الموظفين'!$B$4:$C$117,2,FALSE),\"\")","v":"محمد14"},{"$f":"IFERROR(VLOOKUP(Table3[[#This Row],[كود الموظف]],'بيانات الموظفين'!$B$4:$D$117,3,FALSE),\"\")","v":"مدرس14"},null,null,null,null,null,null,null,null,null,null,null,null,{"$f":"SUM(Table3[[#This Row],[Jan-21]:[Dec-21]])","v":0},{"$f":"IFERROR(VLOOKUP(Table3[[#This Row],[كود الموظف]],'بيانات الموظفين'!$B$4:$G$117,6,FALSE),\"\")","v":7},7]
[null,15,{"$f":"IFERROR(VLOOKUP(Table3[[#This Row],[كود الموظف]],'بيانات الموظفين'!$B$4:$C$117,2,FALSE),\"\")","v":"محمد15"},{"$f":"IFERROR(VLOOKUP(Table3[[#This Row],[كود الموظف]],'بيانات الموظفين'!$B$4:$D$117,3,FALSE),\"\")","v":"مدرس15"},null,null,null,null,null,null,null,null,null,null,null,null,{"$f":"SUM(Table3[[#This Row],[Jan-21]:[Dec-21]])","v":0},{"$f":"IFERROR(VLOOKUP(Table3[[#This Row],[كود الموظف]],'بيانات الموظفين'!$B$4:$G$117,6,FALSE),\"\")","v":7},7]
[null,16,{"$f":"IFERROR(VLOOKUP(Table3[[#This Row],[كود الموظف]],'بيانات الموظفين'!$B$4:$C$117,2,FALSE),\"\")","v":"محمد16"},{"$f":"IFERROR(VLOOKUP(Table3[[#This Row],[كود الموظف]],'بيانات الموظفين'!$B$4:$D$117,3,FALSE),\"\")","v":"مدرس16"},null,null,null,null,null,null,null,null,null,null,null,null,{"$f":"SUM(Table3[[#This Row],[Jan-21]:[Dec-21]])","v":0},{"$f":"IFERROR(VLOOKUP(Table3[[#This Row],[كود الموظف]],'بيانات الموظفين'!$B$4:$G$117,6,FALSE),\"\")","v":7},7]
[null,17,{"$f":"IFERROR(VLOOKUP(Table3[[#This Row],[كود الموظف]],'بيانات الموظفين'!$B$4:$C$117,2,FALSE),\"\")","v":"محمد17"},{"$f":"IFERROR(VLOOKUP(Table3[[#This Row],[كود الموظف]],'بيانات الموظفين'!$B$4:$D$117,3,FALSE),\"\")","v":"مدرس17"},null,null,null,null,null,null,null,null,null,null,null,null,{"$f":"SUM(Table3[[#This Row],[Jan-21]:[Dec-21]])","v":0},{"$f":"IFERROR(VLOOKUP(Table3[[#This Row],[كود الموظف]],'بيانات الموظفين'!$B$4:$G$117,6,FALSE),\"\")","v":7},7]
[null,18,{"$f":"IFERROR(VLOOKUP(Table3[[#This Row],[كود الموظف]],'بيانات الموظفين'!$B$4:$C$117,2,FALSE),\"\")","v":"محمد18"},{"$f":"IFERROR(VLOOKUP(Table3[[#This Row],[كود الموظف]],'بيانات الموظفين'!$B$4:$D$117,3,FALSE),\"\")","v":"مدرس18"},null,null,null,null,null,null,null,null,null,null,null,null,{"$f":"SUM(Table3[[#This Row],[Jan-21]:[Dec-21]])","v":0},{"$f":"IFERROR(VLOOKUP(Table3[[#This Row],[كود الموظف]],'بيانات الموظفين'!$B$4:$G$117,6,FALSE),\"\")","v":7},7]
[null,19,{"$f":"IFERROR(VLOOKUP(Table3[[#This Row],[كود الموظف]],'بيانات الموظفين'!$B$4:$C$117,2,FALSE),\"\")","v":"محمد19"},{"$f":"IFERROR(VLOOKUP(Table3[[#This Row],[كود الموظف]],'بيانات الموظفين'!$B$4:$D$117,3,FALSE),\"\")","v":"مدرس19"},null,null,null,null,null,null,null,null,null,null,null,null,{"$f":"SUM(Table3[[#This Row],[Jan-21]:[Dec-21]])","v":0},{"$f":"IFERROR(VLOOKUP(Table3[[#This Row],[كود الموظف]],'بيانات الموظفين'!$B$4:$G$117,6,FALSE),\"\")","v":7},7]
[null,20,{"$f":"IFERROR(VLOOKUP(Table3[[#This Row],[كود الموظف]],'بيانات الموظفين'!$B$4:$C$117,2,FALSE),\"\")","v":"محمد20"},{"$f":"IFERROR(VLOOKUP(Table3[[#This Row],[كود الموظف]],'بيانات الموظفين'!$B$4:$D$117,3,FALSE),\"\")","v":"مدرس20"},null,null,null,null,null,null,null,null,null,null,null,null,{"$f":"SUM(Table3[[#This Row],[Jan-21]:[Dec-21]])","v":0},{"$f":"IFERROR(VLOOKUP(Table3[[#This Row],[كود الموظف]],'بيانات الموظفين'!$B$4:$G$117,6,FALSE),\"\")","v":7},7]
[null,21,{"$f":"IFERROR(VLOOKUP(Table3[[#This Row],[كود الموظف]],'بيانات الموظفين'!$B$4:$C$117,2,FALSE),\"\")","v":"محمد21"},{"$f":"IFERROR(VLOOKUP(Table3[[#This Row],[كود الموظف]],'بيانات الموظفين'!$B$4:$D$117,3,FALSE),\"\")","v":"مدرس21"},null,null,null,null,null,null,null,null,null,null,null,null,{"$f":"SUM(Table3[[#This Row],[Jan-21]:[Dec-21]])","v":0},{"$f":"IFERROR(VLOOKUP(Table3[[#This Row],[كود الموظف]],'بيانات الموظفين'!$B$4:$G$117,6,FALSE),\"\")","v":7},7]
[null,22,{"$f":"IFERROR(VLOOKUP(Table3[[#This Row],[كود الموظف]],'بيانات الموظفين'!$B$4:$C$117,2,FALSE),\"\")","v":"محمد22"},{"$f":"IFERROR(VLOOKUP(Table3[[#This Row],[كود الموظف]],'بيانات الموظفين'!$B$4:$D$117,3,FALSE),\"\")","v":"مدرس22"},null,null,null,null,null,null,null,null,null,null,null,null,{"$f":"SUM(Table3[[#This Row],[Jan-21]:[Dec-21]])","v":0},{"$f":"IFERROR(VLOOKUP(Table3[[#This Row],[كود الموظف]],'بيانات الموظفين'!$B$4:$G$117,6,FALSE),\"\")","v":7},7]
[null,23,{"$f":"IFERROR(VLOOKUP(Table3[[#This Row],[كود الموظف]],'بيانات الموظفين'!$B$4:$C$117,2,FALSE),\"\")","v":"محمد23"},{"$f":"IFERROR(VLOOKUP(Table3[[#This Row],[كود الموظف]],'بيانات الموظفين'!$B$4:$D$117,3,FALSE),\"\")","v":"مدرس23"},null,null,null,null,null,null,null,null,null,null,null,null,{"$f":"SUM(Table3[[#This Row],[Jan-21]:[Dec-21]])","v":0},{"$f":"IFERROR(VLOOKUP(Table3[[#This Row],[كود الموظف]],'بيانات الموظفين'!$B$4:$G$117,6,FALSE),\"\")","v":7},7]
[null,24,{"$f":"IFERROR(VLOOKUP(Table3[[#This Row],[كود الموظف]],'بيانات الموظفين'!$B$4:$C$117,2,FALSE),\"\")","v":"محمد24"},{"$f":"IFERROR(VLOOKUP(Table3[[#This Row],[كود الموظف]],'بيانات الموظفين'!$B$4:$D$117,3,FALSE),\"\")","v":"مدرس24"},null,null,null,null,null,null,null,null,null,null,null,null,{"$f":"SUM(Table3[[#This Row],[Jan-21]:[Dec-21]])","v":0},{"$f":"IFERROR(VLOOKUP(Table3[[#This Row],[كود الموظف]],'بيانات الموظفين'!$B$4:$G$117,6,FALSE),\"\")","v":7},7]
[null,25,{"$f":"IFERROR(VLOOKUP(Table3[[#This Row],[كود الموظف]],'بيانات الموظفين'!$B$4:$C$117,2,FALSE),\"\")","v":"محمد25"},{"$f":"IFERROR(VLOOKUP(Table3[[#This Row],[كود الموظف]],'بيانات الموظفين'!$B$4:$D$117,3,FALSE),\"\")","v":"مدرس25"},null,null,null,null,null,null,null,null,null,null,null,null,{"$f":"SUM(Table3[[#This Row],[Jan-21]:[Dec-21]])","v":0},{"$f":"IFERROR(VLOOKUP(Table3[[#This Row],[كود الموظف]],'بيانات الموظفين'!$B$4:$G$117,6,FALSE),\"\")","v":7},7]
[null,26,{"$f":"IFERROR(VLOOKUP(Table3[[#This Row],[كود الموظف]],'بيانات الموظفين'!$B$4:$C$117,2,FALSE),\"\")","v":"محمد26"},{"$f":"IFERROR(VLOOKUP(Table3[[#This Row],[كود الموظف]],'بيانات الموظفين'!$B$4:$D$117,3,FALSE),\"\")","v":"مدرس26"},null,null,null,null,null,null,null,null,null,null,null,null,{"$f":"SUM(Table3[[#This Row],[Jan-21]:[Dec-21]])","v":0},{"$f":"IFERROR(VLOOKUP(Table3[[#This Row],[كود الموظف]],'بيانات الموظفين'!$B$4:$G$117,6,FALSE),\"\")","v":7},7]
[null,27,{"$f":"IFERROR(VLOOKUP(Table3[[#This Row],[كود الموظف]],'بيانات الموظفين'!$B$4:$C$117,2,FALSE),\"\")","v":"محمد27"},{"$f":"IFERROR(VLOOKUP(Table3[[#This Row],[كود الموظف]],'بيانات الموظفين'!$B$4:$D$117,3,FALSE),\"\")","v":"مدرس27"},null,null,null,null,null,null,null,null,null,null,null,null,{"$f":"SUM(Table3[[#This Row],[Jan-21]:[Dec-21]])","v":0},{"$f":"IFERROR(VLOOKUP(Table3[[#This Row],[كود الموظف]],'بيانات الموظفين'!$B$4:$G$117,6,FALSE),\"\")","v":7},7]
[null,28,{"$f":"IFERROR(VLOOKUP(Table3[[#This Row],[كود الموظف]],'بيانات الموظفين'!$B$4:$C$117,2,FALSE),\"\")","v":"محمد28"},{"$f":"IFERROR(VLOOKUP(Table3[[#This Row],[كود الموظف]],'بيانات الموظفين'!$B$4:$D$117,3,FALSE),\"\")","v":"مدرس28"},null,null,null,null,null,null,null,null,null,null,null,null,{"$f":"SUM(Table3[[#This Row],[Jan-21]:[Dec-21]])","v":0},{"$f":"IFERROR(VLOOKUP(Table3[[#This Row],[كود الموظف]],'بيانات الموظفين'!$B$4:$G$117,6,FALSE),\"\")","v":7},7]
[null,29,{"$f":"IFERROR(VLOOKUP(Table3[[#This Row],[كود الموظف]],'بيانات الموظفين'!$B$4:$C$117,2,FALSE),\"\")","v":"محمد29"},{"$f":"IFERROR(VLOOKUP(Table3[[#This Row],[كود الموظف]],'بيانات الموظفين'!$B$4:$D$117,3,FALSE),\"\")","v":"مدرس29"},null,null,null,null,null,null,null,null,null,null,null,null,{"$f":"SUM(Table3[[#This Row],[Jan-21]:[Dec-21]])","v":0},{"$f":"IFERROR(VLOOKUP(Table3[[#This Row],[كود الموظف]],'بيانات الموظفين'!$B$4:$G$117,6,FALSE),\"\")","v":7},7]
[null,30,{"$f":"IFERROR(VLOOKUP(Table3[[#This Row],[كود الموظف]],'بيانات الموظفين'!$B$4:$C$117,2,FALSE),\"\")","v":"محمد30"},{"$f":"IFERROR(VLOOKUP(Table3[[#This Row],[كود الموظف]],'بيانات الموظفين'!$B$4:$D$117,3,FALSE),\"\")","v":"مدرس30"},null,null,null,null,null,null,null,null,null,null,null,null,{"$f":"SUM(Table3[[#This Row],[Jan-21]:[Dec-21]])","v":0},{"$f":"IFERROR(VLOOKUP(Table3[[#This Row],[كود الموظف]],'بيانات الموظفين'!$B$4:$G$117,6,FALSE),\"\")","v":7},7]
[null,31,{"$f":"IFERROR(VLOOKUP(Table3[[#This Row],[كود الموظف]],'بيانات الموظفين'!$B$4:$C$117,2,FALSE),\"\")","v":"محمد31"},{"$f":"IFERROR(VLOOKUP(Table3[[#This Row],[كود الموظف]],'بيانات الموظفين'!$B$4:$D$117,3,FALSE),\"\")","v":"مدرس31"},null,null,null,null,null,null,null,null,null,null,null,null,{"$f":"SUM(Table3[[#This Row],[Jan-21]:[Dec-21]])","v":0},{"$f":"IFERROR(VLOOKUP(Table3[[#This Row],[كود الموظف]],'بيانات الموظفين'!$B$4:$G$117,6,FALSE),\"\")","v":7},7]
[null,32,{"$f":"IFERROR(VLOOKUP(Table3[[#This Row],[كود الموظف]],'بيانات الموظفين'!$B$4:$C$117,2,FALSE),\"\")","v":"محمد32"},{"$f":"IFERROR(VLOOKUP(Table3[[#This Row],[كود الموظف]],'بيانات الموظفين'!$B$4:$D$117,3,FALSE),\"\")","v":"مدرس32"},null,null,null,null,null,null,null,null,null,null,null,null,{"$f":"SUM(Table3[[#This Row],[Jan-21]:[Dec-21]])","v":0},{"$f":"IFERROR(VLOOKUP(Table3[[#This Row],[كود الموظف]],'بيانات الموظفين'!$B$4:$G$117,6,FALSE),\"\")","v":7},7]
[null,33,{"$f":"IFERROR(VLOOKUP(Table3[[#This Row],[كود الموظف]],'بيانات الموظفين'!$B$4:$C$117,2,FALSE),\"\")","v":"محمد33"},{"$f":"IFERROR(VLOOKUP(Table3[[#This Row],[كود الموظف]],'بيانات الموظفين'!$B$4:$D$117,3,FALSE),\"\")","v":"مدرس33"},null,null,null,null,null,null,null,null,null,null,null,null,{"$f":"SUM(Table3[[#This Row],[Jan-21]:[Dec-21]])","v":0},{"$f":"IFERROR(VLOOKUP(Table3[[#This Row],[كود الموظف]],'بيانات الموظفين'!$B$4:$G$117,6,FALSE),\"\")","v":7},7]
[null,34,{"$f":"IFERROR(VLOOKUP(Table3[[#This Row],[كود الموظف]],'بيانات الموظفين'!$B$4:$C$117,2,FALSE),\"\")","v":"محمد34"},{"$f":"IFERROR(VLOOKUP(Table3[[#This Row],[كود الموظف]],'بيانات الموظفين'!$B$4:$D$117,3,FALSE),\"\")","v":"مدرس34"},null,null,null,null,null,null,null,null,null,null,null,null,{"$f":"SUM(Table3[[#This Row],[Jan-21]:[Dec-21]])","v":0},{"$f":"IFERROR(VLOOKUP(Table3[[#This Row],[كود الموظف]],'بيانات الموظفين'!$B$4:$G$117,6,FALSE),\"\")","v":7},7]
[null,35,{"$f":"IFERROR(VLOOKUP(Table3[[#This Row],[كود الموظف]],'بيانات الموظفين'!$B$4:$C$117,2,FALSE),\"\")","v":"محمد35"},{"$f":"IFERROR(VLOOKUP(Table3[[#This Row],[كود الموظف]],'بيانات الموظفين'!$B$4:$D$117,3,FALSE),\"\")","v":"مدرس35"},null,null,null,null,null,null,null,null,null,null,null,null,{"$f":"SUM(Table3[[#This Row],[Jan-21]:[Dec-21]])","v":0},{"$f":"IFERROR(VLOOKUP(Table3[[#This Row],[كود الموظف]],'بيانات الموظفين'!$B$4:$G$117,6,FALSE),\"\")","v":7},7]
[null,36,{"$f":"IFERROR(VLOOKUP(Table3[[#This Row],[كود الموظف]],'بيانات الموظفين'!$B$4:$C$117,2,FALSE),\"\")","v":"محمد36"},{"$f":"IFERROR(VLOOKUP(Table3[[#This Row],[كود الموظف]],'بيانات الموظفين'!$B$4:$D$117,3,FALSE),\"\")","v":"مدرس36"},null,null,null,null,null,null,null,null,null,null,null,null,{"$f":"SUM(Table3[[#This Row],[Jan-21]:[Dec-21]])","v":0},{"$f":"IFERROR(VLOOKUP(Table3[[#This Row],[كود الموظف]],'بيانات الموظفين'!$B$4:$G$117,6,FALSE),\"\")","v":7},7]
[null,37,{"$f":"IFERROR(VLOOKUP(Table3[[#This Row],[كود الموظف]],'بيانات الموظفين'!$B$4:$C$117,2,FALSE),\"\")","v":"محمد37"},{"$f":"IFERROR(VLOOKUP(Table3[[#This Row],[كود الموظف]],'بيانات الموظفين'!$B$4:$D$117,3,FALSE),\"\")","v":"مدرس37"},null,null,null,null,null,null,null,null,null,null,null,null,{"$f":"SUM(Table3[[#This Row],[Jan-21]:[Dec-21]])","v":0},{"$f":"IFERROR(VLOOKUP(Table3[[#This Row],[كود الموظف]],'بيانات الموظفين'!$B$4:$G$117,6,FALSE),\"\")","v":7},7]
[null,38,{"$f":"IFERROR(VLOOKUP(Table3[[#This Row],[كود الموظف]],'بيانات الموظفين'!$B$4:$C$117,2,FALSE),\"\")","v":"محمد38"},{"$f":"IFERROR(VLOOKUP(Table3[[#This Row],[كود الموظف]],'بيانات الموظفين'!$B$4:$D$117,3,FALSE),\"\")","v":"مدرس38"},null,null,null,null,null,null,null,null,null,null,null,null,{"$f":"SUM(Table3[[#This Row],[Jan-21]:[Dec-21]])","v":0},{"$f":"IFERROR(VLOOKUP(Table3[[#This Row],[كود الموظف]],'بيانات الموظفين'!$B$4:$G$117,6,FALSE),\"\")","v":7},7]
[null,39,{"$f":"IFERROR(VLOOKUP(Table3[[#This Row],[كود الموظف]],'بيانات الموظفين'!$B$4:$C$117,2,FALSE),\"\")","v":"محمد39"},{"$f":"IFERROR(VLOOKUP(Table3[[#This Row],[كود الموظف]],'بيانات الموظفين'!$B$4:$D$117,3,FALSE),\"\")","v":"مدرس39"},null,null,null,null,null,null,null,null,null,null,null,null,{"$f":"SUM(Table3[[#This Row],[Jan-21]:[Dec-21]])","v":0},{"$f":"IFERROR(VLOOKUP(Table3[[#This Row],[كود الموظف]],'بيانات الموظفين'!$B$4:$G$117,6,FALSE),\"\")","v":7},7]
[null,40,{"$f":"IFERROR(VLOOKUP(Table3[[#This Row],[كود الموظف]],'بيانات الموظفين'!$B$4:$C$117,2,FALSE),\"\")","v":"محمد40"},{"$f":"IFERROR(VLOOKUP(Table3[[#This Row],[كود الموظف]],'بيانات الموظفين'!$B$4:$D$117,3,FALSE),\"\")","v":"مدرس40"},null,null,null,null,null,null,null,null,null,null,null,null,{"$f":"SUM(Table3[[#This Row],[Jan-21]:[Dec-21]])","v":0},{"$f":"IFERROR(VLOOKUP(Table3[[#This Row],[كود الموظف]],'بيانات الموظفين'!$B$4:$G$117,6,FALSE),\"\")","v":7},7]
[null,41,{"$f":"IFERROR(VLOOKUP(Table3[[#This Row],[كود الموظف]],'بيانات الموظفين'!$B$4:$C$117,2,FALSE),\"\")","v":"محمد41"},{"$f":"IFERROR(VLOOKUP(Table3[[#This Row],[كود الموظف]],'بيانات الموظفين'!$B$4:$D$117,3,FALSE),\"\")","v":"مدرس41"},null,null,null,null,null,null,null,null,null,null,null,null,{"$f":"SUM(Table3[[#This Row],[Jan-21]:[Dec-21]])","v":0},{"$f":"IFERROR(VLOOKUP(Table3[[#This Row],[كود الموظف]],'بيانات الموظفين'!$B$4:$G$117,6,FALSE),\"\")","v":7},7]
[null,42,{"$f":"IFERROR(VLOOKUP(Table3[[#This Row],[كود الموظف]],'بيانات الموظفين'!$B$4:$C$117,2,FALSE),\"\")","v":"محمد42"},{"$f":"IFERROR(VLOOKUP(Table3[[#This Row],[كود الموظف]],'بيانات الموظفين'!$B$4:$D$117,3,FALSE),\"\")","v":"مدرس42"},null,null,null,null,null,null,null,null,null,null,null,null,{"$f":"SUM(Table3[[#This Row],[Jan-21]:[Dec-21]])","v":0},{"$f":"IFERROR(VLOOKUP(Table3[[#This Row],[كود الموظف]],'بيانات الموظفين'!$B$4:$G$117,6,FALSE),\"\")","v":7},7]
[null,43,{"$f":"IFERROR(VLOOKUP(Table3[[#This Row],[كود الموظف]],'بيانات الموظفين'!$B$4:$C$117,2,FALSE),\"\")","v":"محمد43"},{"$f":"IFERROR(VLOOKUP(Table3[[#This Row],[كود الموظف]],'بيانات الموظفين'!$B$4:$D$117,3,FALSE),\"\")","v":"مدرس43"},null,null,null,null,null,null,null,null,null,null,null,null,{"$f":"SUM(Table3[[#This Row],[Jan-21]:[Dec-21]])","v":0},{"$f":"IFERROR(VLOOKUP(Table3[[#This Row],[كود الموظف]],'بيانات الموظفين'!$B$4:$G$117,6,FALSE),\"\")","v":7},7]
[null,44,{"$f":"IFERROR(VLOOKUP(Table3[[#This Row],[كود الموظف]],'بيانات الموظفين'!$B$4:$C$117,2,FALSE),\"\")","v":"محمد44"},{"$f":"IFERROR(VLOOKUP(Table3[[#This Row],[كود الموظف]],'بيانات الموظفين'!$B$4:$D$117,3,FALSE),\"\")","v":"مدرس44"},null,null,null,null,null,null,null,null,null,null,null,null,{"$f":"SUM(Table3[[#This Row],[Jan-21]:[Dec-21]])","v":0},{"$f":"IFERROR(VLOOKUP(Table3[[#This Row],[كود الموظف]],'بيانات الموظفين'!$B$4:$G$117,6,FALSE),\"\")","v":7},7]
[null,45,{"$f":"IFERROR(VLOOKUP(Table3[[#This Row],[كود الموظف]],'بيانات الموظفين'!$B$4:$C$117,2,FALSE),\"\")","v":"محمد45"},{"$f":"IFERROR(VLOOKUP(Table3[[#This Row],[كود الموظف]],'بيانات الموظفين'!$B$4:$D$117,3,FALSE),\"\")","v":"مدرس45"},null,null,null,null,null,null,null,null,null,null,null,null,{"$f":"SUM(Table3[[#This Row],[Jan-21]:[Dec-21]])","v":0},{"$f":"IFERROR(VLOOKUP(Table3[[#This Row],[كود الموظف]],'بيانات الموظفين'!$B$4:$G$117,6,FALSE),\"\")","v":7},{"$f":"R47-Q47","v":7}]
[null,46,{"$f":"IFERROR(VLOOKUP(Table3[[#This Row],[كود الموظف]],'بيانات الموظفين'!$B$4:$C$117,2,FALSE),\"\")","v":"محمد46"},{"$f":"IFERROR(VLOOKUP(Table3[[#This Row],[كود الموظف]],'بيانات الموظفين'!$B$4:$D$117,3,FALSE),\"\")","v":"مدرس46"},null,null,null,null,null,null,null,null,null,null,null,null,{"$f":"SUM(Table3[[#This Row],[Jan-21]:[Dec-21]])","v":0},{"$f":"IFERROR(VLOOKUP(Table3[[#This Row],[كود الموظف]],'بيانات الموظفين'!$B$4:$G$117,6,FALSE),\"\")","v":7},7]
[null,47,{"$f":"IFERROR(VLOOKUP(Table3[[#This Row],[كود الموظف]],'بيانات الموظفين'!$B$4:$C$117,2,FALSE),\"\")","v":"محمد47"},{"$f":"IFERROR(VLOOKUP(Table3[[#This Row],[كود الموظف]],'بيانات الموظفين'!$B$4:$D$117,3,FALSE),\"\")","v":"مدرس47"},null,null,null,null,null,null,null,null,null,null,null,null,{"$f":"SUM(Table3[[#This Row],[Jan-21]:[Dec-21]])","v":0},{"$f":"IFERROR(VLOOKUP(Table3[[#This Row],[كود الموظف]],'بيانات الموظفين'!$B$4:$G$117,6,FALSE),\"\")","v":7},7]
[null,48,{"$f":"IFERROR(VLOOKUP(Table3[[#This Row],[كود الموظف]],'بيانات الموظفين'!$B$4:$C$117,2,FALSE),\"\")","v":"محمد48"},{"$f":"IFERROR(VLOOKUP(Table3[[#This Row],[كود الموظف]],'بيانات الموظفين'!$B$4:$D$117,3,FALSE),\"\")","v":"مدرس48"},null,null,null,null,null,null,null,null,null,null,null,null,{"$f":"SUM(Table3[[#This Row],[Jan-21]:[Dec-21]])","v":0},{"$f":"IFERROR(VLOOKUP(Table3[[#This Row],[كود الموظف]],'بيانات الموظفين'!$B$4:$G$117,6,FALSE),\"\")","v":7},7]
[null,49,{"$f":"IFERROR(VLOOKUP(Table3[[#This Row],[كود الموظف]],'بيانات الموظفين'!$B$4:$C$117,2,FALSE),\"\")","v":"محمد49"},{"$f":"IFERROR(VLOOKUP(Table3[[#This Row],[كود الموظف]],'بيانات الموظفين'!$B$4:$D$117,3,FALSE),\"\")","v":"مدرس49"},null,null,null,null,null,null,null,null,null,null,null,null,{"$f":"SUM(Table3[[#This Row],[Jan-21]:[Dec-21]])","v":0},{"$f":"IFERROR(VLOOKUP(Table3[[#This Row],[كود الموظف]],'بيانات الموظفين'!$B$4:$G$117,6,FALSE),\"\")","v":7},7]
[null,50,{"$f":"IFERROR(VLOOKUP(Table3[[#This Row],[كود الموظف]],'بيانات الموظفين'!$B$4:$C$117,2,FALSE),\"\")","v":"محمد50"},{"$f":"IFERROR(VLOOKUP(Table3[[#This Row],[كود الموظف]],'بيانات الموظفين'!$B$4:$D$117,3,FALSE),\"\")","v":"مدرس50"},null,null,null,null,null,null,null,null,null,null,null,null,{"$f":"SUM(Table3[[#This Row],[Jan-21]:[Dec-21]])","v":0},{"$f":"IFERROR(VLOOKUP(Table3[[#This Row],[كود الموظف]],'بيانات الموظفين'!$B$4:$G$117,6,FALSE),\"\")","v":7},7]
[null,51,{"$f":"IFERROR(VLOOKUP(Table3[[#This Row],[كود الموظف]],'بيانات الموظفين'!$B$4:$C$117,2,FALSE),\"\")","v":"محمد51"},{"$f":"IFERROR(VLOOKUP(Table3[[#This Row],[كود الموظف]],'بيانات الموظفين'!$B$4:$D$117,3,FALSE),\"\")","v":"مدرس51"},null,null,null,null,null,null,null,null,null,null,null,null,{"$f":"SUM(Table3[[#This Row],[Jan-21]:[Dec-21]])","v":0},{"$f":"IFERROR(VLOOKUP(Table3[[#This Row],[كود الموظف]],'بيانات الموظفين'!$B$4:$G$117,6,FALSE),\"\")","v":7},7]
[null,52,{"$f":"IFERROR(VLOOKUP(Table3[[#This Row],[كود الموظف]],'بيانات الموظفين'!$B$4:$C$117,2,FALSE),\"\")","v":"محمد52"},{"$f":"IFERROR(VLOOKUP(Table3[[#This Row],[كود الموظف]],'بيانات الموظفين'!$B$4:$D$117,3,FALSE),\"\")","v":"مدرس52"},null,null,null,null,null,null,null,null,null,null,null,null,{"$f":"SUM(Table3[[#This Row],[Jan-21]:[Dec-21]])","v":0},{"$f":"IFERROR(VLOOKUP(Table3[[#This Row],[كود الموظف]],'بيانات الموظفين'!$B$4:$G$117,6,FALSE),\"\")","v":7},7]
[null,53,{"$f":"IFERROR(VLOOKUP(Table3[[#This Row],[كود الموظف]],'بيانات الموظفين'!$B$4:$C$117,2,FALSE),\"\")","v":"محمد53"},{"$f":"IFERROR(VLOOKUP(Table3[[#This Row],[كود الموظف]],'بيانات الموظفين'!$B$4:$D$117,3,FALSE),\"\")","v":"مدرس53"},null,null,null,null,null,null,null,null,null,null,null,null,{"$f":"SUM(Table3[[#This Row],[Jan-21]:[Dec-21]])","v":0},{"$f":"IFERROR(VLOOKUP(Table3[[#This Row],[كود الموظف]],'بيانات الموظفين'!$B$4:$G$117,6,FALSE),\"\")","v":7},7]
[null,54,{"$f":"IFERROR(VLOOKUP(Table3[[#This Row],[كود الموظف]],'بيانات الموظفين'!$B$4:$C$117,2,FALSE),\"\")","v":"محمد54"},{"$f":"IFERROR(VLOOKUP(Table3[[#This Row],[كود الموظف]],'بيانات الموظفين'!$B$4:$D$117,3,FALSE),\"\")","v":"مدرس54"},null,null,null,null,null,null,null,null,null,null,null,null,{"$f":"SUM(Table3[[#This Row],[Jan-21]:[Dec-21]])","v":0},{"$f":"IFERROR(VLOOKUP(Table3[[#This Row],[كود الموظف]],'بيانات الموظفين'!$B$4:$G$117,6,FALSE),\"\")","v":7},7]
[null,55,{"$f":"IFERROR(VLOOKUP(Table3[[#This Row],[كود الموظف]],'بيانات الموظفين'!$B$4:$C$117,2,FALSE),\"\")","v":"محمد55"},{"$f":"IFERROR(VLOOKUP(Table3[[#This Row],[كود الموظف]],'بيانات الموظفين'!$B$4:$D$117,3,FALSE),\"\")","v":"مدرس55"},null,null,null,null,null,null,null,null,null,null,null,null,{"$f":"SUM(Table3[[#This Row],[Jan-21]:[Dec-21]])","v":0},{"$f":"IFERROR(VLOOKUP(Table3[[#This Row],[كود الموظف]],'بيانات الموظفين'!$B$4:$G$117,6,FALSE),\"\")","v":7},7]
[null,56,{"$f":"IFERROR(VLOOKUP(Table3[[#This Row],[كود الموظف]],'بيانات الموظفين'!$B$4:$C$117,2,FALSE),\"\")","v":"محمد56"},{"$f":"IFERROR(VLOOKUP(Table3[[#This Row],[كود الموظف]],'بيانات الموظفين'!$B$4:$D$117,3,FALSE),\"\")","v":"مدرس56"},null,null,null,null,null,null,null,null,null,null,null,null,{"$f":"SUM(Table3[[#This Row],[Jan-21]:[Dec-21]])","v":0},{"$f":"IFERROR(VLOOKUP(Table3[[#This Row],[كود الموظف]],'بيانات الموظفين'!$B$4:$G$117,6,FALSE),\"\")","v":7},7]
[null,57,{"$f":"IFERROR(VLOOKUP(Table3[[#This Row],[كود الموظف]],'بيانات الموظفين'!$B$4:$C$117,2,FALSE),\"\")","v":"محمد57"},{"$f":"IFERROR(VLOOKUP(Table3[[#This Row],[كود الموظف]],'بيانات الموظفين'!$B$4:$D$117,3,FALSE),\"\")","v":"مدرس57"},null,null,null,null,null,null,null,null,null,null,null,null,{"$f":"SUM(Table3[[#This Row],[Jan-21]:[Dec-21]])","v":0},{"$f":"IFERROR(VLOOKUP(Table3[[#This Row],[كود الموظف]],'بيانات الموظفين'!$B$4:$G$117,6,FALSE),\"\")","v":7},7]
[null,58,{"$f":"IFERROR(VLOOKUP(Table3[[#This Row],[كود الموظف]],'بيانات الموظفين'!$B$4:$C$117,2,FALSE),\"\")","v":"محمد58"},{"$f":"IFERROR(VLOOKUP(Table3[[#This Row],[كود الموظف]],'بيانات الموظفين'!$B$4:$D$117,3,FALSE),\"\")","v":"مدرس58"},null,null,null,null,null,null,null,null,null,null,null,null,{"$f":"SUM(Table3[[#This Row],[Jan-21]:[Dec-21]])","v":0},{"$f":"IFERROR(VLOOKUP(Table3[[#This Row],[كود الموظف]],'بيانات الموظفين'!$B$4:$G$117,6,FALSE),\"\")","v":7},7]
[null,59,{"$f":"IFERROR(VLOOKUP(Table3[[#This Row],[كود الموظف]],'بيانات الموظفين'!$B$4:$C$117,2,FALSE),\"\")","v":"محمد59"},{"$f":"IFERROR(VLOOKUP(Table3[[#This Row],[كود الموظف]],'بيانات الموظفين'!$B$4:$D$117,3,FALSE),\"\")","v":"مدرس59"},null,null,null,null,null,null,null,null,null,null,null,null,{"$f":"SUM(Table3[[#This Row],[Jan-21]:[Dec-21]])","v":0},{"$f":"IFERROR(VLOOKUP(Table3[[#This Row],[كود الموظف]],'بيانات الموظفين'!$B$4:$G$117,6,FALSE),\"\")","v":7},7]
[null,60,{"$f":"IFERROR(VLOOKUP(Table3[[#This Row],[كود الموظف]],'بيانات الموظفين'!$B$4:$C$117,2,FALSE),\"\")","v":"محمد60"},{"$f":"IFERROR(VLOOKUP(Table3[[#This Row],[كود الموظف]],'بيانات الموظفين'!$B$4:$D$117,3,FALSE),\"\")","v":"مدرس60"},null,null,null,null,null,null,null,null,null,null,null,null,{"$f":"SUM(Table3[[#This Row],[Jan-21]:[Dec-21]])","v":0},{"$f":"IFERROR(VLOOKUP(Table3[[#This Row],[كود الموظف]],'بيانات الموظفين'!$B$4:$G$117,6,FALSE),\"\")","v":7},7]
[null,61,{"$f":"IFERROR(VLOOKUP(Table3[[#This Row],[كود الموظف]],'بيانات الموظفين'!$B$4:$C$117,2,FALSE),\"\")","v":"محمد61"},{"$f":"IFERROR(VLOOKUP(Table3[[#This Row],[كود الموظف]],'بيانات الموظفين'!$B$4:$D$117,3,FALSE),\"\")","v":"مدرس61"},null,null,null,null,null,null,null,null,null,null,null,null,{"$f":"SUM(Table3[[#This Row],[Jan-21]:[Dec-21]])","v":0},{"$f":"IFERROR(VLOOKUP(Table3[[#This Row],[كود الموظف]],'بيانات الموظفين'!$B$4:$G$117,6,FALSE),\"\")","v":7},7]
[null,62,{"$f":"IFERROR(VLOOKUP(Table3[[#This Row],[كود الموظف]],'بيانات الموظفين'!$B$4:$C$117,2,FALSE),\"\")","v":"محمد62"},{"$f":"IFERROR(VLOOKUP(Table3[[#This Row],[كود الموظف]],'بيانات الموظفين'!$B$4:$D$117,3,FALSE),\"\")","v":"مدرس62"},null,null,null,null,null,null,null,null,null,null,null,null,{"$f":"SUM(Table3[[#This Row],[Jan-21]:[Dec-21]])","v":0},{"$f":"IFERROR(VLOOKUP(Table3[[#This Row],[كود الموظف]],'بيانات الموظفين'!$B$4:$G$117,6,FALSE),\"\")","v":7},7]
[null,63,{"$f":"IFERROR(VLOOKUP(Table3[[#This Row],[كود الموظف]],'بيانات الموظفين'!$B$4:$C$117,2,FALSE),\"\")","v":"محمد63"},{"$f":"IFERROR(VLOOKUP(Table3[[#This Row],[كود الموظف]],'بيانات الموظفين'!$B$4:$D$117,3,FALSE),\"\")","v":"مدرس63"},null,null,null,null,null,null,null,null,null,null,null,null,{"$f":"SUM(Table3[[#This Row],[Jan-21]:[Dec-21]])","v":0},{"$f":"IFERROR(VLOOKUP(Table3[[#This Row],[كود الموظف]],'بيانات الموظفين'!$B$4:$G$117,6,FALSE),\"\")","v":7},7]
[null,64,{"$f":"IFERROR(VLOOKUP(Table3[[#This Row],[كود الموظف]],'بيانات الموظفين'!$B$4:$C$117,2,FALSE),\"\")","v":"محمد64"},{"$f":"IFERROR(VLOOKUP(Table3[[#This Row],[كود الموظف]],'بيانات الموظفين'!$B$4:$D$117,3,FALSE),\"\")","v":"مدرس64"},null,null,null,null,null,null,null,null,null,null,null,null,{"$f":"SUM(Table3[[#This Row],[Jan-21]:[Dec-21]])","v":0},{"$f":"IFERROR(VLOOKUP(Table3[[#This Row],[كود الموظف]],'بيانات الموظفين'!$B$4:$G$117,6,FALSE),\"\")","v":7},7]
[null,65,{"$f":"IFERROR(VLOOKUP(Table3[[#This Row],[كود الموظف]],'بيانات الموظفين'!$B$4:$C$117,2,FALSE),\"\")","v":"محمد65"},{"$f":"IFERROR(VLOOKUP(Table3[[#This Row],[كود الموظف]],'بيانات الموظفين'!$B$4:$D$117,3,FALSE),\"\")","v":"مدرس65"},null,null,null,null,null,null,null,null,null,null,null,null,{"$f":"SUM(Table3[[#This Row],[Jan-21]:[Dec-21]])","v":0},{"$f":"IFERROR(VLOOKUP(Table3[[#This Row],[كود الموظف]],'بيانات الموظفين'!$B$4:$G$117,6,FALSE),\"\")","v":7},7]
[null,{"$f":"ROW()-2","v":66},{"$f":"IFERROR(VLOOKUP(Table3[[#This Row],[كود الموظف]],'بيانات الموظفين'!$B$4:$C$117,2,FALSE),\"\")","v":"محمد66"},{"$f":"IFERROR(VLOOKUP(Table3[[#This Row],[كود الموظف]],'بيانات الموظفين'!$B$4:$D$117,3,FALSE),\"\")","v":"مدرس66"},null,null,null,null,null,null,null,null,null,null,null,null,{"$f":"SUM(Table3[[#This Row],[Jan-21]:[Dec-21]])","v":0},{"$f":"IFERROR(VLOOKUP(Table3[[#This Row],[كود الموظف]],'بيانات الموظفين'!$B$4:$G$117,6,FALSE),\"\")","v":7},7]
[null,67,{"$f":"IFERROR(VLOOKUP(Table3[[#This Row],[كود الموظف]],'بيانات الموظفين'!$B$4:$C$117,2,FALSE),\"\")","v":"محمد67"},{"$f":"IFERROR(VLOOKUP(Table3[[#This Row],[كود الموظف]],'بيانات الموظفين'!$B$4:$D$117,3,FALSE),\"\")","v":"مدرس67"},null,null,null,null,null,null,null,null,null,null,null,null,{"$f":"SUM(Table3[[#This Row],[Jan-21]:[Dec-21]])","v":0},{"$f":"IFERROR(VLOOKUP(Table3[[#This Row],[كود الموظف]],'بيانات الموظفين'!$B$4:$G$117,6,FALSE),\"\")","v":7},7]
[null,68,{"$f":"IFERROR(VLOOKUP(Table3[[#This Row],[كود الموظف]],'بيانات الموظفين'!$B$4:$C$117,2,FALSE),\"\")","v":"محمد68"},{"$f":"IFERROR(VLOOKUP(Table3[[#This Row],[كود الموظف]],'بيانات الموظفين'!$B$4:$D$117,3,FALSE),\"\")","v":"مدرس68"},null,null,null,null,null,null,null,null,null,null,null,null,{"$f":"SUM(Table3[[#This Row],[Jan-21]:[Dec-21]])","v":0},{"$f":"IFERROR(VLOOKUP(Table3[[#This Row],[كود الموظف]],'بيانات الموظفين'!$B$4:$G$117,6,FALSE),\"\")","v":7},7]
[null,69,{"$f":"IFERROR(VLOOKUP(Table3[[#This Row],[كود الموظف]],'بيانات الموظفين'!$B$4:$C$117,2,FALSE),\"\")","v":"محمد69"},{"$f":"IFERROR(VLOOKUP(Table3[[#This Row],[كود الموظف]],'بيانات الموظفين'!$B$4:$D$117,3,FALSE),\"\")","v":"مدرس69"},null,null,null,null,null,null,null,null,null,null,null,null,{"$f":"SUM(Table3[[#This Row],[Jan-21]:[Dec-21]])","v":0},{"$f":"IFERROR(VLOOKUP(Table3[[#This Row],[كود الموظف]],'بيانات الموظفين'!$B$4:$G$117,6,FALSE),\"\")","v":7},7]
[null,70,{"$f":"IFERROR(VLOOKUP(Table3[[#This Row],[كود الموظف]],'بيانات الموظفين'!$B$4:$C$117,2,FALSE),\"\")","v":"محمد70"},{"$f":"IFERROR(VLOOKUP(Table3[[#This Row],[كود الموظف]],'بيانات الموظفين'!$B$4:$D$117,3,FALSE),\"\")","v":"مدرس70"},null,null,null,null,null,null,null,null,null,null,null,null,{"$f":"SUM(Table3[[#This Row],[Jan-21]:[Dec-21]])","v":0},{"$f":"IFERROR(VLOOKUP(Table3[[#This Row],[كود الموظف]],'بيانات الموظفين'!$B$4:$G$117,6,FALSE),\"\")","v":7},7]
[null,71,{"$f":"IFERROR(VLOOKUP(Table3[[#This Row],[كود الموظف]],'بيانات الموظفين'!$B$4:$C$117,2,FALSE),\"\")","v":"محمد71"},{"$f":"IFERROR(VLOOKUP(Table3[[#This Row],[كود الموظف]],'بيانات الموظفين'!$B$4:$D$117,3,FALSE),\"\")","v":"مدرس71"},null,null,null,null,null,null,null,null,null,null,null,null,{"$f":"SUM(Table3[[#This Row],[Jan-21]:[Dec-21]])","v":0},{"$f":"IFERROR(VLOOKUP(Table3[[#This Row],[كود الموظف]],'بيانات الموظفين'!$B$4:$G$117,6,FALSE),\"\")","v":7},7]
[null,72,{"$f":"IFERROR(VLOOKUP(Table3[[#This Row],[كود الموظف]],'بيانات الموظفين'!$B$4:$C$117,2,FALSE),\"\")","v":"محمد72"},{"$f":"IFERROR(VLOOKUP(Table3[[#This Row],[كود الموظف]],'بيانات الموظفين'!$B$4:$D$117,3,FALSE),\"\")","v":"مدرس72"},null,null,null,null,null,null,null,null,null,null,null,null,{"$f":"SUM(Table3[[#This Row],[Jan-21]:[Dec-21]])","v":0},{"$f":"IFERROR(VLOOKUP(Table3[[#This Row],[كود الموظف]],'بيانات الموظفين'!$B$4:$G$117,6,FALSE),\"\")","v":7},7]
[null,73,{"$f":"IFERROR(VLOOKUP(Table3[[#This Row],[كود الموظف]],'بيانات الموظفين'!$B$4:$C$117,2,FALSE),\"\")","v":"محمد73"},{"$f":"IFERROR(VLOOKUP(Table3[[#This Row],[كود الموظف]],'بيانات الموظفين'!$B$4:$D$117,3,FALSE),\"\")","v":"مدرس73"},null,null,null,null,null,null,null,null,null,null,null,null,{"$f":"SUM(Table3[[#This Row],[Jan-21]:[Dec-21]])","v":0},{"$f":"IFERROR(VLOOKUP(Table3[[#This Row],[كود الموظف]],'بيانات الموظفين'!$B$4:$G$117,6,FALSE),\"\")","v":7},7]
[null,74,{"$f":"IFERROR(VLOOKUP(Table3[[#This Row],[كود الموظف]],'بيانات الموظفين'!$B$4:$C$117,2,FALSE),\"\")","v":"محمد74"},{"$f":"IFERROR(VLOOKUP(Table3[[#This Row],[كود الموظف]],'بيانات الموظفين'!$B$4:$D$117,3,FALSE),\"\")","v":"مدرس74"},null,null,null,null,null,null,null,null,null,null,null,null,{"$f":"SUM(Table3[[#This Row],[Jan-21]:[Dec-21]])","v":0},{"$f":"IFERROR(VLOOKUP(Table3[[#This Row],[كود الموظف]],'بيانات الموظفين'!$B$4:$G$117,6,FALSE),\"\")","v":7},7]
[null,75,{"$f":"IFERROR(VLOOKUP(Table3[[#This Row],[كود الموظف]],'بيانات الموظفين'!$B$4:$C$117,2,FALSE),\"\")","v":"محمد75"},{"$f":"IFERROR(VLOOKUP(Table3[[#This Row],[كود الموظف]],'بيانات الموظفين'!$B$4:$D$117,3,FALSE),\"\")","v":"مدرس75"},null,null,null,null,null,null,null,null,null,null,null,null,{"$f":"SUM(Table3[[#This Row],[Jan-21]:[Dec-21]])","v":0},{"$f":"IFERROR(VLOOKUP(Table3[[#This Row],[كود الموظف]],'بيانات الموظفين'!$B$4:$G$117,6,FALSE),\"\")","v":7},7]
[null,76,{"$f":"IFERROR(VLOOKUP(Table3[[#This Row],[كود الموظف]],'بيانات الموظفين'!$B$4:$C$117,2,FALSE),\"\")","v":"محمد76"},{"$f":"IFERROR(VLOOKUP(Table3[[#This Row],[كود الموظف]],'بيانات الموظفين'!$B$4:$D$117,3,FALSE),\"\")","v":"مدرس76"},null,null,null,null,null,null,null,null,null,null,null,null,{"$f":"SUM(Table3[[#This Row],[Jan-21]:[Dec-21]])","v":0},{"$f":"IFERROR(VLOOKUP(Table3[[#This Row],[كود الموظف]],'بيانات الموظفين'!$B$4:$G$117,6,FALSE),\"\")","v":7},7]
[null,77,{"$f":"IFERROR(VLOOKUP(Table3[[#This Row],[كود الموظف]],'بيانات الموظفين'!$B$4:$C$117,2,FALSE),\"\")","v":"محمد77"},{"$f":"IFERROR(VLOOKUP(Table3[[#This Row],[كود الموظف]],'بيانات الموظفين'!$B$4:$D$117,3,FALSE),\"\")","v":"مدرس77"},null,null,null,null,null,null,null,null,null,null,null,null,{"$f":"SUM(Table3[[#This Row],[Jan-21]:[Dec-21]])","v":0},{"$f":"IFERROR(VLOOKUP(Table3[[#This Row],[كود الموظف]],'بيانات الموظفين'!$B$4:$G$117,6,FALSE),\"\")","v":7},{"$f":"R79-Q79","v":7}]
[null,78,{"$f":"IFERROR(VLOOKUP(Table3[[#This Row],[كود الموظف]],'بيانات الموظفين'!$B$4:$C$117,2,FALSE),\"\")","v":"محمد78"},{"$f":"IFERROR(VLOOKUP(Table3[[#This Row],[كود الموظف]],'بيانات الموظفين'!$B$4:$D$117,3,FALSE),\"\")","v":"مدرس78"},null,null,null,null,null,null,null,null,null,null,null,null,{"$f":"SUM(Table3[[#This Row],[Jan-21]:[Dec-21]])","v":0},{"$f":"IFERROR(VLOOKUP(Table3[[#This Row],[كود الموظف]],'بيانات الموظفين'!$B$4:$G$117,6,FALSE),\"\")","v":7},7]
[null,79,{"$f":"IFERROR(VLOOKUP(Table3[[#This Row],[كود الموظف]],'بيانات الموظفين'!$B$4:$C$117,2,FALSE),\"\")","v":"محمد79"},{"$f":"IFERROR(VLOOKUP(Table3[[#This Row],[كود الموظف]],'بيانات الموظفين'!$B$4:$D$117,3,FALSE),\"\")","v":"مدرس79"},null,null,null,null,null,null,null,null,null,null,null,null,{"$f":"SUM(Table3[[#This Row],[Jan-21]:[Dec-21]])","v":0},{"$f":"IFERROR(VLOOKUP(Table3[[#This Row],[كود الموظف]],'بيانات الموظفين'!$B$4:$G$117,6,FALSE),\"\")","v":7},7]
[null,80,{"$f":"IFERROR(VLOOKUP(Table3[[#This Row],[كود الموظف]],'بيانات الموظفين'!$B$4:$C$117,2,FALSE),\"\")","v":"محمد80"},{"$f":"IFERROR(VLOOKUP(Table3[[#This Row],[كود الموظف]],'بيانات الموظفين'!$B$4:$D$117,3,FALSE),\"\")","v":"مدرس80"},null,null,null,null,null,null,null,null,null,null,null,null,{"$f":"SUM(Table3[[#This Row],[Jan-21]:[Dec-21]])","v":0},{"$f":"IFERROR(VLOOKUP(Table3[[#This Row],[كود الموظف]],'بيانات الموظفين'!$B$4:$G$117,6,FALSE),\"\")","v":7},7]
[null,81,{"$f":"IFERROR(VLOOKUP(Table3[[#This Row],[كود الموظف]],'بيانات الموظفين'!$B$4:$C$117,2,FALSE),\"\")","v":"محمد81"},{"$f":"IFERROR(VLOOKUP(Table3[[#This Row],[كود الموظف]],'بيانات الموظفين'!$B$4:$D$117,3,FALSE),\"\")","v":"مدرس81"},null,null,null,null,null,null,null,null,null,null,null,null,{"$f":"SUM(Table3[[#This Row],[Jan-21]:[Dec-21]])","v":0},{"$f":"IFERROR(VLOOKUP(Table3[[#This Row],[كود الموظف]],'بيانات الموظفين'!$B$4:$G$117,6,FALSE),\"\")","v":7},7]
[null,82,{"$f":"IFERROR(VLOOKUP(Table3[[#This Row],[كود الموظف]],'بيانات الموظفين'!$B$4:$C$117,2,FALSE),\"\")","v":"محمد82"},{"$f":"IFERROR(VLOOKUP(Table3[[#This Row],[كود الموظف]],'بيانات الموظفين'!$B$4:$D$117,3,FALSE),\"\")","v":"مدرس82"},null,null,null,null,null,null,null,null,null,null,null,null,{"$f":"SUM(Table3[[#This Row],[Jan-21]:[Dec-21]])","v":0},{"$f":"IFERROR(VLOOKUP(Table3[[#This Row],[كود الموظف]],'بيانات الموظفين'!$B$4:$G$117,6,FALSE),\"\")","v":7},7]
[null,83,{"$f":"IFERROR(VLOOKUP(Table3[[#This Row],[كود الموظف]],'بيانات الموظفين'!$B$4:$C$117,2,FALSE),\"\")","v":"محمد83"},{"$f":"IFERROR(VLOOKUP(Table3[[#This Row],[كود الموظف]],'بيانات الموظفين'!$B$4:$D$117,3,FALSE),\"\")","v":"مدرس83"},null,null,null,null,null,null,null,null,null,null,null,null,{"$f":"SUM(Table3[[#This Row],[Jan-21]:[Dec-21]])","v":0},{"$f":"IFERROR(VLOOKUP(Table3[[#This Row],[كود الموظف]],'بيانات الموظفين'!$B$4:$G$117,6,FALSE),\"\")","v":7},7]
[null,84,{"$f":"IFERROR(VLOOKUP(Table3[[#This Row],[كود الموظف]],'بيانات الموظفين'!$B$4:$C$117,2,FALSE),\"\")","v":"محمد84"},{"$f":"IFERROR(VLOOKUP(Table3[[#This Row],[كود الموظف]],'بيانات الموظفين'!$B$4:$D$117,3,FALSE),\"\")","v":"مدرس84"},null,null,null,null,null,null,null,null,null,null,null,null,{"$f":"SUM(Table3[[#This Row],[Jan-21]:[Dec-21]])","v":0},{"$f":"IFERROR(VLOOKUP(Table3[[#This Row],[كود الموظف]],'بيانات الموظفين'!$B$4:$G$117,6,FALSE),\"\")","v":7},7]
[null,85,{"$f":"IFERROR(VLOOKUP(Table3[[#This Row],[كود الموظف]],'بيانات الموظفين'!$B$4:$C$117,2,FALSE),\"\")","v":"محمد85"},{"$f":"IFERROR(VLOOKUP(Table3[[#This Row],[كود الموظف]],'بيانات الموظفين'!$B$4:$D$117,3,FALSE),\"\")","v":"مدرس85"},null,null,null,null,null,null,null,null,null,null,null,null,{"$f":"SUM(Table3[[#This Row],[Jan-21]:[Dec-21]])","v":0},{"$f":"IFERROR(VLOOKUP(Table3[[#This Row],[كود الموظف]],'بيانات الموظفين'!$B$4:$G$117,6,FALSE),\"\")","v":7},7]
[null,86,{"$f":"IFERROR(VLOOKUP(Table3[[#This Row],[كود الموظف]],'بيانات الموظفين'!$B$4:$C$117,2,FALSE),\"\")","v":"محمد86"},{"$f":"IFERROR(VLOOKUP(Table3[[#This Row],[كود الموظف]],'بيانات الموظفين'!$B$4:$D$117,3,FALSE),\"\")","v":"مدرس86"},null,null,null,null,null,null,null,null,null,null,null,null,{"$f":"SUM(Table3[[#This Row],[Jan-21]:[Dec-21]])","v":0},{"$f":"IFERROR(VLOOKUP(Table3[[#This Row],[كود الموظف]],'بيانات الموظفين'!$B$4:$G$117,6,FALSE),\"\")","v":7},7]
[null,87,{"$f":"IFERROR(VLOOKUP(Table3[[#This Row],[كود الموظف]],'بيانات الموظفين'!$B$4:$C$117,2,FALSE),\"\")","v":"محمد87"},{"$f":"IFERROR(VLOOKUP(Table3[[#This Row],[كود الموظف]],'بيانات الموظفين'!$B$4:$D$117,3,FALSE),\"\")","v":"مدرس87"},null,null,null,null,null,null,null,null,null,null,null,null,{"$f":"SUM(Table3[[#This Row],[Jan-21]:[Dec-21]])","v":0},{"$f":"IFERROR(VLOOKUP(Table3[[#This Row],[كود الموظف]],'بيانات الموظفين'!$B$4:$G$117,6,FALSE),\"\")","v":7},7]
[null,88,{"$f":"IFERROR(VLOOKUP(Table3[[#This Row],[كود الموظف]],'بيانات الموظفين'!$B$4:$C$117,2,FALSE),\"\")","v":"محمد88"},{"$f":"IFERROR(VLOOKUP(Table3[[#This Row],[كود الموظف]],'بيانات الموظفين'!$B$4:$D$117,3,FALSE),\"\")","v":"مدرس88"},null,null,null,null,null,null,null,null,null,null,null,null,{"$f":"SUM(Table3[[#This Row],[Jan-21]:[Dec-21]])","v":0},{"$f":"IFERROR(VLOOKUP(Table3[[#This Row],[كود الموظف]],'بيانات الموظفين'!$B$4:$G$117,6,FALSE),\"\")","v":7},7]
[null,89,{"$f":"IFERROR(VLOOKUP(Table3[[#This Row],[كود الموظف]],'بيانات الموظفين'!$B$4:$C$117,2,FALSE),\"\")","v":"محمد89"},{"$f":"IFERROR(VLOOKUP(Table3[[#This Row],[كود الموظف]],'بيانات الموظفين'!$B$4:$D$117,3,FALSE),\"\")","v":"مدرس89"},null,null,null,null,null,null,null,null,null,null,null,null,{"$f":"SUM(Table3[[#This Row],[Jan-21]:[Dec-21]])","v":0},{"$f":"IFERROR(VLOOKUP(Table3[[#This Row],[كود الموظف]],'بيانات الموظفين'!$B$4:$G$117,6,FALSE),\"\")","v":7},7]
[null,90,{"$f":"IFERROR(VLOOKUP(Table3[[#This Row],[كود الموظف]],'بيانات الموظفين'!$B$4:$C$117,2,FALSE),\"\")","v":"محمد90"},{"$f":"IFERROR(VLOOKUP(Table3[[#This Row],[كود الموظف]],'بيانات الموظفين'!$B$4:$D$117,3,FALSE),\"\")","v":"مدرس90"},null,null,null,null,null,null,null,null,null,null,null,null,{"$f":"SUM(Table3[[#This Row],[Jan-21]:[Dec-21]])","v":0},{"$f":"IFERROR(VLOOKUP(Table3[[#This Row],[كود الموظف]],'بيانات الموظفين'!$B$4:$G$117,6,FALSE),\"\")","v":7},7]
[null,91,{"$f":"IFERROR(VLOOKUP(Table3[[#This Row],[كود الموظف]],'بيانات الموظفين'!$B$4:$C$117,2,FALSE),\"\")","v":"محمد91"},{"$f":"IFERROR(VLOOKUP(Table3[[#This Row],[كود الموظف]],'بيانات الموظفين'!$B$4:$D$117,3,FALSE),\"\")","v":"مدرس91"},null,null,null,null,null,null,null,null,null,null,null,null,{"$f":"SUM(Table3[[#This Row],[Jan-21]:[Dec-21]])","v":0},{"$f":"IFERROR(VLOOKUP(Table3[[#This Row],[كود الموظف]],'بيانات الموظفين'!$B$4:$G$117,6,FALSE),\"\")","v":7},7]
[null,92,{"$f":"IFERROR(VLOOKUP(Table3[[#This Row],[كود الموظف]],'بيانات الموظفين'!$B$4:$C$117,2,FALSE),\"\")","v":"محمد92"},{"$f":"IFERROR(VLOOKUP(Table3[[#This Row],[كود الموظف]],'بيانات الموظفين'!$B$4:$D$117,3,FALSE),\"\")","v":"مدرس92"},null,null,null,null,null,null,null,null,null,null,null,null,{"$f":"SUM(Table3[[#This Row],[Jan-21]:[Dec-21]])","v":0},{"$f":"IFERROR(VLOOKUP(Table3[[#This Row],[كود الموظف]],'بيانات الموظفين'!$B$4:$G$117,6,FALSE),\"\")","v":7},7]
[null,93,{"$f":"IFERROR(VLOOKUP(Table3[[#This Row],[كود الموظف]],'بيانات الموظفين'!$B$4:$C$117,2,FALSE),\"\")","v":"محمد93"},{"$f":"IFERROR(VLOOKUP(Table3[[#This Row],[كود الموظف]],'بيانات الموظفين'!$B$4:$D$117,3,FALSE),\"\")","v":"مدرس93"},null,null,null,null,null,null,null,null,null,null,null,null,{"$f":"SUM(Table3[[#This Row],[Jan-21]:[Dec-21]])","v":0},{"$f":"IFERROR(VLOOKUP(Table3[[#This Row],[كود الموظف]],'بيانات الموظفين'!$B$4:$G$117,6,FALSE),\"\")","v":7},7]
[null,94,{"$f":"IFERROR(VLOOKUP(Table3[[#This Row],[كود الموظف]],'بيانات الموظفين'!$B$4:$C$117,2,FALSE),\"\")","v":"محمد94"},{"$f":"IFERROR(VLOOKUP(Table3[[#This Row],[كود الموظف]],'بيانات الموظفين'!$B$4:$D$117,3,FALSE),\"\")","v":"مدرس94"},null,null,null,null,null,null,null,null,null,null,null,null,{"$f":"SUM(Table3[[#This Row],[Jan-21]:[Dec-21]])","v":0},{"$f":"IFERROR(VLOOKUP(Table3[[#This Row],[كود الموظف]],'بيانات الموظفين'!$B$4:$G$117,6,FALSE),\"\")","v":7},7]
[null,95,{"$f":"IFERROR(VLOOKUP(Table3[[#This Row],[كود الموظف]],'بيانات الموظفين'!$B$4:$C$117,2,FALSE),\"\")","v":"محمد95"},{"$f":"IFERROR(VLOOKUP(Table3[[#This Row],[كود الموظف]],'بيانات الموظفين'!$B$4:$D$117,3,FALSE),\"\")","v":"مدرس95"},null,null,null,null,null,null,null,null,null,null,null,null,{"$f":"SUM(Table3[[#This Row],[Jan-21]:[Dec-21]])","v":0},{"$f":"IFERROR(VLOOKUP(Table3[[#This Row],[كود الموظف]],'بيانات الموظفين'!$B$4:$G$117,6,FALSE),\"\")","v":7},7]
[null,96,{"$f":"IFERROR(VLOOKUP(Table3[[#This Row],[كود الموظف]],'بيانات الموظفين'!$B$4:$C$117,2,FALSE),\"\")","v":"محمد96"},{"$f":"IFERROR(VLOOKUP(Table3[[#This Row],[كود الموظف]],'بيانات الموظفين'!$B$4:$D$117,3,FALSE),\"\")","v":"مدرس96"},null,null,null,null,null,null,null,null,null,null,null,null,{"$f":"SUM(Table3[[#This Row],[Jan-21]:[Dec-21]])","v":0},{"$f":"IFERROR(VLOOKUP(Table3[[#This Row],[كود الموظف]],'بيانات الموظفين'!$B$4:$G$117,6,FALSE),\"\")","v":7},7]
[null,97,{"$f":"IFERROR(VLOOKUP(Table3[[#This Row],[كود الموظف]],'بيانات الموظفين'!$B$4:$C$117,2,FALSE),\"\")","v":"محمد97"},{"$f":"IFERROR(VLOOKUP(Table3[[#This Row],[كود الموظف]],'بيانات الموظفين'!$B$4:$D$117,3,FALSE),\"\")","v":"مدرس97"},null,null,null,null,null,null,null,null,null,null,null,null,{"$f":"SUM(Table3[[#This Row],[Jan-21]:[Dec-21]])","v":0},{"$f":"IFERROR(VLOOKUP(Table3[[#This Row],[كود الموظف]],'بيانات الموظفين'!$B$4:$G$117,6,FALSE),\"\")","v":7},7]
[null,98,{"$f":"IFERROR(VLOOKUP(Table3[[#This Row],[كود الموظف]],'بيانات الموظفين'!$B$4:$C$117,2,FALSE),\"\")","v":"محمد98"},{"$f":"IFERROR(VLOOKUP(Table3[[#This Row],[كود الموظف]],'بيانات الموظفين'!$B$4:$D$117,3,FALSE),\"\")","v":"مدرس98"},null,null,null,null,null,null,null,null,null,null,null,null,{"$f":"SUM(Table3[[#This Row],[Jan-21]:[Dec-21]])","v":0},{"$f":"IFERROR(VLOOKUP(Table3[[#This Row],[كود الموظف]],'بيانات الموظفين'!$B$4:$G$117,6,FALSE),\"\")","v":7},7]
[null,99,{"$f":"IFERROR(VLOOKUP(Table3[[#This Row],[كود الموظف]],'بيانات الموظفين'!$B$4:$C$117,2,FALSE),\"\")","v":"محمد99"},{"$f":"IFERROR(VLOOKUP(Table3[[#This Row],[كود الموظف]],'بيانات الموظفين'!$B$4:$D$117,3,FALSE),\"\")","v":"مدرس99"},null,null,null,null,null,null,null,null,null,null,null,null,{"$f":"SUM(Table3[[#This Row],[Jan-21]:[Dec-21]])","v":0},{"$f":"IFERROR(VLOOKUP(Table3[[#This Row],[كود الموظف]],'بيانات الموظفين'!$B$4:$G$117,6,FALSE),\"\")","v":7},7]
[null,100,{"$f":"IFERROR(VLOOKUP(Table3[[#This Row],[كود الموظف]],'بيانات الموظفين'!$B$4:$C$117,2,FALSE),\"\")","v":"محمد100"},{"$f":"IFERROR(VLOOKUP(Table3[[#This Row],[كود الموظف]],'بيانات الموظفين'!$B$4:$D$117,3,FALSE),\"\")","v":"مدرس100"},null,null,null,null,null,null,null,null,null,null,null,null,{"$f":"SUM(Table3[[#This Row],[Jan-21]:[Dec-21]])","v":0},{"$f":"IFERROR(VLOOKUP(Table3[[#This Row],[كود الموظف]],'بيانات الموظفين'!$B$4:$G$117,6,FALSE),\"\")","v":7},7]
[null,101,{"$f":"IFERROR(VLOOKUP(Table3[[#This Row],[كود الموظف]],'بيانات الموظفين'!$B$4:$C$117,2,FALSE),\"\")","v":"محمد101"},{"$f":"IFERROR(VLOOKUP(Table3[[#This Row],[كود الموظف]],'بيانات الموظفين'!$B$4:$D$117,3,FALSE),\"\")","v":"مدرس101"},null,null,null,null,null,null,null,null,null,null,null,null,{"$f":"SUM(Table3[[#This Row],[Jan-21]:[Dec-21]])","v":0},{"$f":"IFERROR(VLOOKUP(Table3[[#This Row],[كود الموظف]],'بيانات الموظفين'!$B$4:$G$117,6,FALSE),\"\")","v":7},7]
[null,102,{"$f":"IFERROR(VLOOKUP(Table3[[#This Row],[كود الموظف]],'بيانات الموظفين'!$B$4:$C$117,2,FALSE),\"\")","v":"محمد102"},{"$f":"IFERROR(VLOOKUP(Table3[[#This Row],[كود الموظف]],'بيانات الموظفين'!$B$4:$D$117,3,FALSE),\"\")","v":"مدرس102"},null,null,null,null,null,null,null,null,null,null,null,null,{"$f":"SUM(Table3[[#This Row],[Jan-21]:[Dec-21]])","v":0},{"$f":"IFERROR(VLOOKUP(Table3[[#This Row],[كود الموظف]],'بيانات الموظفين'!$B$4:$G$117,6,FALSE),\"\")","v":7},7]
[null,103,{"$f":"IFERROR(VLOOKUP(Table3[[#This Row],[كود الموظف]],'بيانات الموظفين'!$B$4:$C$117,2,FALSE),\"\")","v":"محمد103"},{"$f":"IFERROR(VLOOKUP(Table3[[#This Row],[كود الموظف]],'بيانات الموظفين'!$B$4:$D$117,3,FALSE),\"\")","v":"مدرس103"},null,null,null,null,null,null,null,null,null,null,null,null,{"$f":"SUM(Table3[[#This Row],[Jan-21]:[Dec-21]])","v":0},{"$f":"IFERROR(VLOOKUP(Table3[[#This Row],[كود الموظف]],'بيانات الموظفين'!$B$4:$G$117,6,FALSE),\"\")","v":7},7]
[null,104,{"$f":"IFERROR(VLOOKUP(Table3[[#This Row],[كود الموظف]],'بيانات الموظفين'!$B$4:$C$117,2,FALSE),\"\")","v":"محمد104"},{"$f":"IFERROR(VLOOKUP(Table3[[#This Row],[كود الموظف]],'بيانات الموظفين'!$B$4:$D$117,3,FALSE),\"\")","v":"مدرس104"},null,null,null,null,null,null,null,null,null,null,null,null,{"$f":"SUM(Table3[[#This Row],[Jan-21]:[Dec-21]])","v":0},{"$f":"IFERROR(VLOOKUP(Table3[[#This Row],[كود الموظف]],'بيانات الموظفين'!$B$4:$G$117,6,FALSE),\"\")","v":7},7]
[null,105,{"$f":"IFERROR(VLOOKUP(Table3[[#This Row],[كود الموظف]],'بيانات الموظفين'!$B$4:$C$117,2,FALSE),\"\")","v":"محمد105"},{"$f":"IFERROR(VLOOKUP(Table3[[#This Row],[كود الموظف]],'بيانات الموظفين'!$B$4:$D$117,3,FALSE),\"\")","v":"مدرس105"},null,null,null,null,null,null,null,null,null,null,null,null,{"$f":"SUM(Table3[[#This Row],[Jan-21]:[Dec-21]])","v":0},{"$f":"IFERROR(VLOOKUP(Table3[[#This Row],[كود الموظف]],'بيانات الموظفين'!$B$4:$G$117,6,FALSE),\"\")","v":7},7]
[null,106,{"$f":"IFERROR(VLOOKUP(Table3[[#This Row],[كود الموظف]],'بيانات الموظفين'!$B$4:$C$117,2,FALSE),\"\")","v":"محمد106"},{"$f":"IFERROR(VLOOKUP(Table3[[#This Row],[كود الموظف]],'بيانات الموظفين'!$B$4:$D$117,3,FALSE),\"\")","v":"مدرس106"},null,null,null,null,null,null,null,null,null,null,null,null,{"$f":"SUM(Table3[[#This Row],[Jan-21]:[Dec-21]])","v":0},{"$f":"IFERROR(VLOOKUP(Table3[[#This Row],[كود الموظف]],'بيانات الموظفين'!$B$4:$G$117,6,FALSE),\"\")","v":7},7]
[null,107,{"$f":"IFERROR(VLOOKUP(Table3[[#This Row],[كود الموظف]],'بيانات الموظفين'!$B$4:$C$117,2,FALSE),\"\")","v":"محمد107"},{"$f":"IFERROR(VLOOKUP(Table3[[#This Row],[كود الموظف]],'بيانات الموظفين'!$B$4:$D$117,3,FALSE),\"\")","v":"مدرس107"},null,null,null,null,null,null,null,null,null,null,null,null,{"$f":"SUM(Table3[[#This Row],[Jan-21]:[Dec-21]])","v":0},{"$f":"IFERROR(VLOOKUP(Table3[[#This Row],[كود الموظف]],'بيانات الموظفين'!$B$4:$G$117,6,FALSE),\"\")","v":7},7]
[null,108,{"$f":"IFERROR(VLOOKUP(Table3[[#This Row],[كود الموظف]],'بيانات الموظفين'!$B$4:$C$117,2,FALSE),\"\")","v":"محمد108"},{"$f":"IFERROR(VLOOKUP(Table3[[#This Row],[كود الموظف]],'بيانات الموظفين'!$B$4:$D$117,3,FALSE),\"\")","v":"مدرس108"},null,null,null,null,null,null,null,null,null,null,null,null,{"$f":"SUM(Table3[[#This Row],[Jan-21]:[Dec-21]])","v":0},{"$f":"IFERROR(VLOOKUP(Table3[[#This Row],[كود الموظف]],'بيانات الموظفين'!$B$4:$G$117,6,FALSE),\"\")","v":7},7]
[null,109,{"$f":"IFERROR(VLOOKUP(Table3[[#This Row],[كود الموظف]],'بيانات الموظفين'!$B$4:$C$117,2,FALSE),\"\")","v":"محمد109"},{"$f":"IFERROR(VLOOKUP(Table3[[#This Row],[كود الموظف]],'بيانات الموظفين'!$B$4:$D$117,3,FALSE),\"\")","v":"مدرس109"},null,null,null,null,null,null,null,null,null,null,null,null,{"$f":"SUM(Table3[[#This Row],[Jan-21]:[Dec-21]])","v":0},{"$f":"IFERROR(VLOOKUP(Table3[[#This Row],[كود الموظف]],'بيانات الموظفين'!$B$4:$G$117,6,FALSE),\"\")","v":7},{"$f":"R111-Q111","v":7}]
[null,110,{"$f":"IFERROR(VLOOKUP(Table3[[#This Row],[كود الموظف]],'بيانات الموظفين'!$B$4:$C$117,2,FALSE),\"\")","v":"محمد110"},{"$f":"IFERROR(VLOOKUP(Table3[[#This Row],[كود الموظف]],'بيانات الموظفين'!$B$4:$D$117,3,FALSE),\"\")","v":"مدرس110"},null,null,null,null,null,null,null,null,null,null,null,null,{"$f":"SUM(Table3[[#This Row],[Jan-21]:[Dec-21]])","v":0},{"$f":"IFERROR(VLOOKUP(Table3[[#This Row],[كود الموظف]],'بيانات الموظفين'!$B$4:$G$117,6,FALSE),\"\")","v":7},7]
[null,111,{"$f":"IFERROR(VLOOKUP(Table3[[#This Row],[كود الموظف]],'بيانات الموظفين'!$B$4:$C$117,2,FALSE),\"\")","v":"محمد111"},{"$f":"IFERROR(VLOOKUP(Table3[[#This Row],[كود الموظف]],'بيانات الموظفين'!$B$4:$D$117,3,FALSE),\"\")","v":"مدرس111"},null,null,null,null,null,null,null,null,null,null,null,null,{"$f":"SUM(Table3[[#This Row],[Jan-21]:[Dec-21]])","v":0},{"$f":"IFERROR(VLOOKUP(Table3[[#This Row],[كود الموظف]],'بيانات الموظفين'!$B$4:$G$117,6,FALSE),\"\")","v":7},7]
[null,112,{"$f":"IFERROR(VLOOKUP(Table3[[#This Row],[كود الموظف]],'بيانات الموظفين'!$B$4:$C$117,2,FALSE),\"\")","v":"محمد112"},{"$f":"IFERROR(VLOOKUP(Table3[[#This Row],[كود الموظف]],'بيانات الموظفين'!$B$4:$D$117,3,FALSE),\"\")","v":"مدرس112"},null,null,null,null,null,null,null,null,null,null,null,null,{"$f":"SUM(Table3[[#This Row],[Jan-21]:[Dec-21]])","v":0},{"$f":"IFERROR(VLOOKUP(Table3[[#This Row],[كود الموظف]],'بيانات الموظفين'!$B$4:$G$117,6,FALSE),\"\")","v":7},7]
[null,113,{"$f":"IFERROR(VLOOKUP(Table3[[#This Row],[كود الموظف]],'بيانات الموظفين'!$B$4:$C$117,2,FALSE),\"\")","v":"محمد113"},{"$f":"IFERROR(VLOOKUP(Table3[[#This Row],[كود الموظف]],'بيانات الموظفين'!$B$4:$D$117,3,FALSE),\"\")","v":"مدرس113"},null,null,null,null,null,null,null,null,null,null,null,null,{"$f":"SUM(Table3[[#This Row],[Jan-21]:[Dec-21]])","v":0},{"$f":"IFERROR(VLOOKUP(Table3[[#This Row],[كود الموظف]],'بيانات الموظفين'!$B$4:$G$117,6,FALSE),\"\")","v":7},7]
[null,114,{"$f":"IFERROR(VLOOKUP(Table3[[#This Row],[كود الموظف]],'بيانات الموظفين'!$B$4:$C$117,2,FALSE),\"\")","v":"محمد114"},{"$f":"IFERROR(VLOOKUP(Table3[[#This Row],[كود الموظف]],'بيانات الموظفين'!$B$4:$D$117,3,FALSE),\"\")","v":"مدرس114"},null,null,null,null,null,null,null,null,null,null,null,null,{"$f":"SUM(Table3[[#This Row],[Jan-21]:[Dec-21]])","v":0},{"$f":"IFERROR(VLOOKUP(Table3[[#This Row],[كود الموظف]],'بيانات الموظفين'!$B$4:$G$117,6,FALSE),\"\")","v":7},7]
[null,115,{"$f":"IFERROR(VLOOKUP(Table3[[#This Row],[كود الموظف]],'بيانات الموظفين'!$B$4:$C$117,2,FALSE),\"\")","v":""},{"$f":"IFERROR(VLOOKUP(Table3[[#This Row],[كود الموظف]],'بيانات الموظفين'!$B$4:$D$117,3,FALSE),\"\")","v":""},null,null,null,null,null,null,null,null,null,null,null,null,{"$f":"SUM(Table3[[#This Row],[Jan-21]:[Dec-21]])","v":0},{"$f":"IFERROR(VLOOKUP(Table3[[#This Row],[كود الموظف]],'بيانات الموظفين'!$B$4:$G$117,6,FALSE),\"\")","v":""},{"$error":"#VALUE!"}]
[null,116,{"$f":"IFERROR(VLOOKUP(Table3[[#This Row],[كود الموظف]],'بيانات الموظفين'!$B$4:$C$117,2,FALSE),\"\")","v":""},{"$f":"IFERROR(VLOOKUP(Table3[[#This Row],[كود الموظف]],'بيانات الموظفين'!$B$4:$D$117,3,FALSE),\"\")","v":""},null,null,null,null,null,null,null,null,null,null,null,null,{"$f":"SUM(Table3[[#This Row],[Jan-21]:[Dec-21]])","v":0},{"$f":"IFERROR(VLOOKUP(Table3[[#This Row],[كود الموظف]],'بيانات الموظفين'!$B$4:$G$117,6,FALSE),\"\")","v":""},{"$error":"#VALUE!"}]